Workbook

Sheet Instruções
B2: Intruções e Considerações
B3: O objetivo desta planilha é calcular a produção potencial e atingível de uma cultura, com base em dados meteorológicos e parâmetros de genótipo.
B5: Para realizar a simulção é preciso preencher os requisitos mínimos de dados de entrada, que estão marcados com "*" na planilha "Modelo"
B7: É possivel ajustar o número de linhas da planilha ao número de decendios que serão simulados, basta informar o número de decendios no campo indicado e clicar em "Ajustar linhas"
B9: É obrigatório informar a duração das fases fenológicas em graus-dias e/ou em dias. Caso informado os dois (em Graus-dias e dias), o modelo utilizará a soma térmica para determinar o decendio de colheita. Quando só for informada a duração das fases em dias, o decendio de colheita será fixado de acordo com a duração do ciclo da cultura em dias.
B11: O usuário pode informar a Eto de cada dedecendio no campo indicado, caso não informado, o cálculo será feito com base no método de Camargo (1999) em que Eto = 0,01*(Qo/2,45)*(0,36*(3*Tmax-Tmin))*NDP
B13: A radiação solar global média diária (Qg), quando não informada será calculada pelo método proposto por Hargreavs (1994) em que Qg = Qo*k*Raiz(Tmax-Tmin). Onde k = 0,19 para locais dentro do continente e k=0,16 para regiões litorâneas.

Sheet Modelo
B2: Modelo Agrometeorológico Simples de Produção Vegetal | J2: Informações preenchidas pelo usuário
B4: Murilo dos S. Vianna; Fábio R. Marin; Felipe Gustavo Pilau | J4: Cálculos / Resultados
B6: Depto. Engenharia de Biossistemas - Lab. de Modelagem de Sistemas Agrícolas Tropicais (LMA) | I6: * | J6: Dados obrigatórios
B7: Escola Superior de Agricultura "Luiz de Queiroz" (ESALQ/USP)
B9: Parâmetros do modelo | C9: Valor | D9: Unidade | F9: Fase | G9: Descrição da Fase | H9: Duração (dias)* | I9: Ciclo (dias) | J9: Duração (Graus.dias) | K9: Ciclo (Graus.dias) | L9: IAF* | M9: Kc* | N9: Ky* | Q9: Resultado Geral
B10: Local | C10: Piracicaba, SP | D10: - | F10: 1 | G10: V1 | H10: 10 | I10: =H10 -> 10 | K10: =IF(J10="","",J10) ->  | L10: 1 | M10: 0.6 | N10: 0.4 | Q10: Produtividade | R10: Média | S10: Desv Padrão
B11: Latitude* | C11: -22.708 | D11: decimais | F11: 2 | G11: V2 | H11: 20 | I11: =I10+H11 -> 30 | K11: =IF(ISERROR(J11+K10)=TRUE,"",J11+K10) ->  | L11: 1.5 | M11: 0.85 | N11: 0.4 | Q11: Prod. Potencial (t/ha) | R11: =IF(ISERROR(AVERAGE(AI:AI))=TRUE,0,(AVERAGE(AI:AI))) -> 6.159202123 | S11: =_xlfn.STDEV.S(AI:AI) -> 0.214745124
B12: Longitude | C12: -47.417 | D12: decimais | F12: 3 | G12: F1 | H12: 10 | I12: 40 | L12: 2.5 | M12: 1 | N12: 0.9 | Q12: Prod. Atingível (t/ha) | R12: =AVERAGE(AJ:AJ) -> 4.07528921 | S12: =_xlfn.STDEV.S(AJ:AJ) -> 0.7441369929
B13: Altitude | C13: 580 | D13: m | F13: 4 | G13: F2 | H13: 10 | I13: 50 | L13: 2.2 | M13: 1.2 | N13: 1.5 | Q13: Irrigação Bruta (mm) | R13: =AVERAGE(AK:AK) -> 0 | S13: =_xlfn.STDEV.S(AK:AK) -> 0
B14: Temperatura base inferior (Tb) | C14: 6 | D14: °C | F14: 5 | G14: R1 | H14: 20 | I14: 70 | L14: 2.5 | M14: 1.3 | N14: 2.3
B15: Temperatura ótima 1 (TO1) | C15: 18 | D15: °C | F15: 6 | G15: R2 | H15: 20 | I15: 90 | L15: 3 | M15: 1.05 | N15: 0.5
B16: Temperatura ótima 2 (TO2) | C16: 32 | D16: °C | F16: 7 | G16: M | H16: 30 | I16: 120 | L16: 1.8 | M16: 0.75 | N16: 0.2
B17: Temperatura base superior (TB) | C17: 40 | D17: °C | F17: 8 | G17: - | I17: 120
B18: =IF(C34=1,"Dia do plantio*","Decendio do plantio*") -> Dia do plantio* | C18: 62 | D18: decendio | F18: 9 | G18: - | I18: 120
B19: Ciclo Cultura | C19: =MAX(I10:I24) -> 120 | D19: dias | F19: 10 | G19: - | I19: 120
B20: Kc (entre safra)* | C20: 0.4 | D20: adimensional | F20: 11 | G20: - | I20: 120
B21: Eficiência do uso de Radiação [PAR]* | C21: 3.3 | D21: g MJ-1 | F21: 12 | G21: - | I21: 120
B22: Índice de Colheita (IC)* | C22: 0.33 | D22: 0-1 | F22: 13 | G22: - | I22: 120
B23: Umidade matéria prima* | C23: 0.13 | D23: 0-1 | F23: 14 | G23: - | I23: 120
B24: Coef. Extinção (k)* | C24: 0.55 | D24: adimensional | F24: 15 | G24: - | I24: 120
B25: Refletividade da cultura (r ) [Qg]* | C25: 0.16 | D25: 0-1
B26: CAD do solo* | C26: 100 | D26: mm
B27: Neg-Acum. período Anterior* | C27: 0 | D27: mm
B28: Coeficiente k - Qg (Eq. de Hargreaves)* | C28: 0.16 | D28: adimensional
B29: Coeficente de perda por colheita | C29: 0.05 | D29: 0-1
B30: Irrigação Automática | C30: Não | D30: Sim/Não
B31: Fator P | C31: 0.8 | D31: 0-1
B32: Eficiência do sistema de irrigação | C32: 0.75 | D32: 0-1
B34: Escala Temporal | C34: 1 | D34: 1 = dias; 2 = decendio
B35: Número de dias ou decendios | C35: 12053 | D35: dias ou decendios
AY38: meteoro2017
AH39: Resultados | AY39: classe | AZ39: Time-step | BQ39: Sim | BT39: albedo (k = 0.7, iaf = 3)
B40: Ano* | C40: =IF(C34=1,"Dia do Ano*","Decendio*") -> Dia do Ano* | D40: Tmax* | E40: Tmin* | F40: Qg | G40: Precipitação* | H40: Irrigação Bruta | I40: Eto | J40: Tmed | K40: Qg Har | L40: PAR | M40: Graus dias | N40: Soma térmica | O40: Ciclo | P40: IAF | Q40: Kc | R40: Ky | S40: Eto | T40: Etc | U40: (P+I)-Etc | V40: NAC | W40: ARM | X40: ALT | Y40: ETR | Z40: DEF | AA40: EXC | AB40: a.PAR | AC40: Fator Tar | AD40: Prod. Potencial | AE40: Prod. Atingível | AH40: Ano | AI40: Prod. Potencial (t/ha) | AJ40: Prod. Atingível (t/ha) | AK40: Irritação Bruta (ciclo) | AY40: =($C$35*10)/12 -> 10044.16667 | AZ40: =$C$34 -> 1 | BQ40: Não | BT40: =0.23-(0.23-0.14) * EXP(-0.7*3) -> 0.2189789215
B41: - | C41: - | D41: °C | E41: °C | F41: MJ m-2 dia-1 | G41: mm | H41: mm | I41: mm | J41: °C | K41: MJ m-2 dia-1 | L41: MJ m-2 dia-1 | M41: °C dia | N41: °C dia | O41: dias | P41: adimens. | Q41: adimens. | R41: adimens. | S41: mm | T41: mm | U41: mm | V41: mm | W41: mm | X41: mm | Y41: mm | Z41: mm decendio-1 | AA41: mm decendio-1 | AB41: MJ m-2 dia-1 | AC41: 0-1 | AD41: t ha-1 | AE41: t ha-1 | AI41: t ha-1 | AJ41: t ha-1 | AK41: mm | BA41: Data | BB41: Data media | BC41: NDP | BD41: NDA | BE41: decl | BF41: hn | BG41: N | BH41: (d/D)^2 | BI41: Qo | BJ41: MAXIMO(GD) | BK41: MAXIMO(DIAS) | BL41: PROCV(GD) | BM41: PROCV(DIAS) | BN41: FILTRO | BQ41: irrig | BR41: irrig bruta | BS41: td | BT41: Eto PT | BU41: Decendio | BV41: NDP | BW41: NDA | BY41: DAY | BZ41: MONTH | CA41: N LINHAS | CC41: CAMARGO
B42: 1978 | C42: 1 | D42: 30.7 | E42: 19.8 | G42: 0 | H42: 0 | J42: =AVERAGE(D42:E42) -> 25.25 | K42: =IF(F42="",$C$28*SQRT((D42-E42))*BI42,F42) -> 22.54974543 | L42: =K42*0.5 -> 11.27487272 | M42: =MAX((J42-$C$14)*BC42,0) -> 19.25 | N42: 0 | O42: 0 | P42: =IF(AND(MAX($L$9:$L$25)=0,$O42=0),0,IF(ISERROR($BL42)=TRUE,IF($O42=0,0,(VLOOKUP($BM42,$I$9:$N$24,4,0))),(IF($N42=0,0,VLOOKUP($BL42,$K$9:$N$24,2,0))))) -> 0 | Q42: =IF(AND(MAX($L$9:$L$25)=0,$O42=0),$C$20,IF(ISERROR($BL42)=TRUE,IF($O42=0,$C$20,(VLOOKUP($BM42,$I$9:$N$24,5,0))),(IF($N42=0,$C$20,VLOOKUP($BL42,$K$9:$N$24,3,0))))) -> 0.4 | R42: =IF(AND(MAX($L$9:$L$25)=0,$O42=0),0,IF(ISERROR($BL42)=TRUE,IF($O42=0,0,(VLOOKUP($BM42,$I$9:$N$24,6,0))),(IF($N42=0,0,VLOOKUP($BL42,$K$9:$N$24,4,0))))) -> 0 | S42: =IF(I42="",IF($C$34=1,BT42,0.011*(BI42/2.45)*0.36*(3*D42-E42)*BC42),I42) -> 5.383184153 | T42: =S42*Q42 -> 2.153273661 | U42: =G42+BQ42-T42 -> -2.153273661 | V42: =$C$27 -> 0 | W42: =$C$26-V42 -> 100 | X42: 0 | Y42: =IF(U42<0,MIN(W42,G42+BQ42+ABS(X42)),MIN(T42,W42)) -> 0 | Z42: =T42-Y42 -> 2.153273661 | AA42: =IF(OR(W42<$C$26,Z42>0),0,U42-X42) -> 0 | AB42: =$L42*(1-$C$25)*(1-EXP(-$C$24*$P42)) -> 0 | AC42: =MIN(1,MAX(0,IF(AND(J42>=$C$15,J42<=$C$16),1,IF(OR(J42<$C$14,J42>$C$17),0,IF(AND(J42>$C$16,J42<=$C$17),(J42-MAX($I$10:$I$24))/(C16-MAX($I$10:$I$24)),IF(AND(J42<$C$15,J42>=$C$14),(J42-$C$14)/($C$15-$C$14))))))) -> 1 | AD42: =IF($P42=0,0,(($C$21*$AB42*$AC42*$C$22/(100*(1-$C$23)))*$BC42)+AD41) -> 0 | AE42: =IF(AD42=0,0,(AD42-AD41)*(1-R42*(1-Y42/T42))+AE41) -> 0 | AH42: =MIN($B$42:$B$1048576)+IF($C$18+$C$19>365,1,0) -> 1978 | AI42: =IF(ISERROR(IF(AH42="","",AVERAGEIFS(AD:AD,$B:$B,$AH42,$BN:$BN,1)))=TRUE,"",IF(AH42="","",AVERAGEIFS(AD:AD,$B:$B,$AH42,$BN:$BN,1)*(1-$C$29))) -> 6.579408275 | AJ42: =IF(ISERROR(IF(AI42="","",AVERAGEIFS(AE:AE,$B:$B,$AH42,$BN:$BN,1)*(1-$C$29)))=TRUE,"",IF(AI42="","",MAX(0,AVERAGEIFS(AE:AE,$B:$B,$AH42,$BN:$BN,1)*(1-$C$29)))) -> 2.779738496 | AK42: =IF(AH42="","",SUMIFS(BR:BR,B:B,AH42,O:O,">0")) -> 0 | AZ42: =BA42*1 -> 28491 | BA42: =IF($AZ$40=1,C42+CONCATENATE("1/1/",B42)-1,DATE(B42,VLOOKUP($C42,$BU$42:$BZ$77,6,0),VLOOKUP($C42,$BU$42:$BZ$77,5,0))) -> 1978-01-01 | BB42: =IF($AZ$40=1,BA42,TRUNC(AVERAGE(BA42:BA43))) -> 1978-01-01 | BC42: =IF($AZ$40=1,1,VLOOKUP($C42,$BU$42:$BW$77,2,0)) -> 1 | BD42: =IF($AZ$40=1,C42,VLOOKUP($C42,$BU$42:$BW$77,3,0)) -> 1 | BE42: =23.45*SIN(RADIANS(360*(BD42-80)/365)) -> -22.93054361 | BF42: =ACOS(-TAN(RADIANS($C$11))*TAN(RADIANS($BE42)))*(180/PI()) -> 100.1969831 | BG42: =$BF42*(2/15) -> 13.35959775 | BH42: =1+0.033*COS(RADIANS((360/365)*BD42)) -> 1.032995111 | BI42: =(118.11/PI())*BH42*((PI()/180)*BF42*SIN(RADIANS($C$11))*SIN(RADIANS($BE42))+COS(RADIANS($C$11))*COS(RADIANS($BE42))*SIN(RADIANS(BF42))) -> 42.68825594 | BJ42: =MAX(IF(N42-$K$10>0,-9999,N42-$K$10),IF(N42-$K$11>0,-9999,N42-$K$11),IF(N42-$K$12>0,-9999,N42-$K$12),IF(N42-$K$13>0,-9999,N42-$K$13),IF(N42-$K$14>0,-9999,N42-$K$14),IF(N42-$K$15>0,-9999,N42-$K$15),IF(N42-$K$16>0,-9999,N42-$K$16),IF(N42-$K$17>0,-9999,N42-$K$17),IF(N42-$K$18>0,-9999,N42-$K$18),IF(N42-$K$19>0,-9999,N42-$K$19),IF(N42-$K$20>0,-9999,N42-$K$20),IF(N42-$K$21>0,-9999,N42-$K$21),IF(N42-$K$22>0,-9999,N42-$K$22),IF(N42-$K$23>0,-9999,N42-$K$23),IF(N42-$K$24>0,-9999,N42-$K$24)) ->  | BK42: =MAX(IF(O42-$I$10>0,-9999,O42-$I$10),IF(O42-$I$11>0,-9999,O42-$I$11),IF(O42-$I$12>0,-9999,O42-$I$12),IF(O42-$I$13>0,-9999,O42-$I$13),IF(O42-$I$14>0,-9999,O42-$I$14),IF(O42-$I$15>0,-9999,O42-$I$15),IF(O42-$I$16>0,-9999,O42-$I$16),IF(O42-$I$17>0,-9999,O42-$I$17),IF(O42-$I$18>0,-9999,O42-$I$18),IF(O42-$I$19>0,-9999,O42-$I$19),IF(O42-$I$20>0,-9999,O42-$I$20),IF(O42-$I$21>0,-9999,O42-$I$21),IF(O42-$I$22>0,-9999,O42-$I$22),IF(O42-$I$23>0,-9999,O42-$I$23),IF(O42-$I$24>0,-9999,O42-$I$24)) -> -10 | BL42: =N42-BJ42 ->  | BM42: =O42-BK42 -> 10 | BN42: =IF(AND(AE42>0,AE43=0),1,0) -> 0 | BO42: =AD42 -> 0 | BP42: =AE42 -> 0 | BQ42: =IF($C$30="Sim",IF(W42/$C$26<=$C$31,$C$26-W42+T42,0),H42) -> 0 | BR42: =BQ42/$C$32 -> 0 | BS42: =0.6*D42+0.4*E42 -> 26.34 | BT42: =IF(F42="",K42,F42)*23.923*(0.000204 -0.000183 *$BT$40)*(BS42+29)*IF(D42>32,((D42-32)*0.05+1.1),IF(D42<5,0.01*EXP(0.18*(D42+20)),1.1)) -> 5.383184153 | BU42: 1 | BV42: 10 | BW42: 5 | BX42: 01/01/ | BY42: =MID(BX42,1,2)*1 -> 1 | BZ42: =MID(BX42,4,2)*1 -> 1 | CA42: =COUNTA($J$42:$J$1048576) -> 12053 | CC42: 23 | CD42: 0.01
B43: 1978 | C43: 2 | D43: 27.2 | E43: 17.4 | G43: 6 | H43: 0 | J43: 22.3 | K43: 21.3733401 | L43: 10.68667005 | M43: 16.3 | N43: =IF(OR(N42>0,C43=$C$18),IF(AND(MAX($K$10:$K$24)=0,O43>0),N42+M43,IF(M43+N42>=MAX($K$10:$K$24),0,M43+N42)),0) -> 0 | O43: =IF(OR(O42>0,C43=$C$18),IF(BC43+O42>=MAX($I$10:$I$24),0,BC43+O42),0) -> 0 | P43: 0 | Q43: 0.4 | R43: 0 | S43: =IF(I43="",IF($C$34=1,BT43,0.011*(BI43/2.45)*0.36*(3*D43-E43)*BC43),I43) -> 4.820215045 | T43: 1.928086018 | U43: 4.071913982 | V43: =IF(U43<0,U43+V42,$C$26*LN(W43/$C$26)) -> 0 | W43: =IF(U43<0,$C$26*EXP(-ABS(V43/$C$26)),MIN(W42+U43,$C$26)) -> 100 | X43: =W43-W42 -> 0 | Y43: 1.928086018 | Z43: 0 | AA43: =IF(OR(W43<$C$26,Z43>0),0,U43-X43) -> 4.071913982 | AB43: 0 | AC43: 1 | AD43: =IF($P43=0,0,(($C$21*$AB43*$AC43*$C$22/(100*(1-$C$23)))*$BC43)+AD42) -> 0 | AE43: 0 | AH43: =IF(AH42="","",IF(AND(AH42+1=MAX($B$42:$B$1048576),$C$18+MAX($I$10:$I$24)>365),"",(IF(AH42+1>MAX($B$42:$B$1048576),"",AH42+1)))) -> 1979 | AI43: =IF(ISERROR(IF(AH43="","",AVERAGEIFS(AD:AD,$B:$B,$AH43,$BN:$BN,1)))=TRUE,"",IF(AH43="","",AVERAGEIFS(AD:AD,$B:$B,$AH43,$BN:$BN,1)*(1-$C$29))) -> 6.472274996 | AJ43: 4.64008514 | AK43: =IF(AH43="","",SUMIFS(BR:BR,B:B,AH43,O:O,">0")) -> 0 | AZ43: =BA43*1 -> 28492 | BA43: 1978-01-02 | BB43: =IF($AZ$40=1,BA43,TRUNC(AVERAGE(BA43:BA44))) -> 1978-01-02 | BC43: 1 | BD43: 2 | BE43: =23.45*SIN(RADIANS(360*(BD43-80)/365)) -> -22.84265567 | BF43: 100.1529579 | BG43: =$BF43*(2/15) -> 13.35372772 | BH43: =1+0.033*COS(RADIANS((360/365)*BD43)) -> 1.032980444 | BI43: 42.67164408 | BK43: -10 | BM43: 10 | BN43: =IF(AND(AD43>0,AD44=0),1,0) -> 0 | BO43: 0 | BP43: 0 | BQ43: =IF($C$30="Sim",IF(W42/$C$26<$C$31,$C$26-W42+T42,0),H43) -> 0 | BR43: =BQ43/$C$32 -> 0 | BS43: =0.6*D43+0.4*E43 -> 23.28 | BT43: =IF(F43="",K43,F43)*23.923*(0.000204 -0.000183 *$BT$40)*(BS43+29)*IF(D43>32,((D43-32)*0.05+1.1),IF(D43<5,0.01*EXP(0.18*(D43+20)),1.1)) -> 4.820215045 | BU43: 2 | BV43: 10 | BW43: 15 | BX43: 11/01/ | BY43: =MID(BX43,1,2)*1 -> 11 | BZ43: =MID(BX43,4,2)*1 -> 1 | CC43: 24 | CD43: 0.0105
B44: 1978 | C44: 3 | D44: 21.4 | E44: 13.6 | G44: 0.5 | H44: 0 | J44: =AVERAGE(D44:E44) -> 17.5 | K44: 19.05987193 | L44: 9.529935963 | M44: 11.5 | N44: =IF(OR(N43>0,C44=$C$18),IF(AND(MAX($K$10:$K$24)=0,O44>0),N43+M44,IF(M44+N43>=MAX($K$10:$K$24),0,M44+N43)),0) -> 0 | O44: 0 | P44: 0 | Q44: 0.4 | R44: 0 | S44: 3.887370051 | T44: =S44*Q44 -> 1.554948021 | U44: -1.054948021 | V44: =IF(U44<0,U44+V43,$C$26*LN(W44/$C$26)) -> -1.054948021 | W44: =IF(U44<0,$C$26*EXP(-ABS(V44/$C$26)),MIN(W43+U44,$C$26)) -> 98.95059704 | X44: -1.04940296 | Y44: 1.54940296 | Z44: =T44-Y44 -> 0.005545060332 | AA44: =IF(OR(W44<$C$26,Z44>0),0,U44-X44) -> 0 | AB44: 0 | AC44: =MIN(1,MAX(0,IF(AND(J44>=$C$15,J44<=$C$16),1,IF(OR(J44<$C$14,J44>$C$17),0,IF(AND(J44>$C$16,J44<=$C$17),(J44-MAX($I$10:$I$24))/(C18-MAX($I$10:$I$24)),IF(AND(J44<$C$15,J44>=$C$14),(J44-$C$14)/($C$15-$C$14))))))) -> 0.9583333333 | AD44: 0 | AE44: 0 | AH44: 1980 | AI44: 6.352656836 | AJ44: 4.357880664 | AK44: 0 | AZ44: =BA44*1 -> 28493 | BA44: 1978-01-03 | BB44: 1978-01-03 | BC44: 1 | BD44: 3 | BE44: =23.45*SIN(RADIANS(360*(BD44-80)/365)) -> -22.74799897 | BF44: 100.1056124 | BG44: 13.34741499 | BH44: =1+0.033*COS(RADIANS((360/365)*BD44)) -> 1.032956005 | BI44: 42.65330558 | BK44: -10 | BM44: 10 | BN44: 0 | BO44: 0 | BP44: 0 | BQ44: 0 | BR44: 0 | BS44: 18.28 | BT44: 3.887370051 | BU44: 3 | BV44: 11 | BW44: 25 | BX44: 21/01/ | BY44: 21 | BZ44: 1 | CC44: 25 | CD44: 0.011
B45: 1978 | C45: 4 | D45: 23.2 | E45: 14.3 | G45: 0 | H45: 0 | J45: 18.75 | K45: 20.34994244 | L45: 10.17497122 | M45: 12.75 | N45: 0 | O45: 0 | P45: 0 | Q45: 0.4 | R45: 0 | S45: 4.269875282 | T45: 1.707950113 | U45: -1.707950113 | V45: -2.762898133 | W45: 97.2749208 | X45: -1.675676243 | Y45: 1.675676243 | Z45: 0.03227387019 | AA45: 0 | AB45: 0 | AC45: =MIN(1,MAX(0,IF(AND(J45>=$C$15,J45<=$C$16),1,IF(OR(J45<$C$14,J45>$C$17),0,IF(AND(J45>$C$16,J45<=$C$17),(J45-MAX($I$10:$I$24))/(C19-MAX($I$10:$I$24)),IF(AND(J45<$C$15,J45>=$C$14),(J45-$C$14)/($C$15-$C$14))))))) -> 1 | AD45: 0 | AE45: 0 | AH45: 1981 | AI45: 6.390965372 | AJ45: 4.243058583 | AK45: 0 | AZ45: 28494 | BA45: 1978-01-04 | BB45: 1978-01-04 | BC45: 1 | BD45: 4 | BE45: -22.64660154 | BF45: 100.0549757 | BG45: 13.34066343 | BH45: 1.0329218 | BI45: 42.63322627 | BK45: -10 | BM45: 10 | BN45: 0 | BO45: 0 | BP45: 0 | BQ45: 0 | BR45: 0 | BS45: 19.64 | BT45: 4.269875282 | BU45: 4 | BV45: 10 | BW45: 35 | BX45: 01/02/ | BY45: 1 | BZ45: 2 | CC45: 26 | CD45: 0.0115
B46: 1978 | C46: 5 | D46: 28.8 | E46: 17.2 | G46: 0 | H46: 0 | J46: 23 | K46: 23.22066706 | L46: 11.61033353 | M46: 17 | N46: 0 | O46: 0 | P46: 0 | Q46: 0.4 | R46: 0 | S46: 5.324981488 | T46: 2.129992595 | U46: -2.129992595 | V46: -4.892890729 | W46: 95.22488252 | X46: -2.050038273 | Y46: 2.050038273 | Z46: 0.07995432264 | AA46: 0 | AB46: 0 | AC46: 1 | AD46: 0 | AE46: 0 | AH46: 1982 | AI46: 6.044983686 | AJ46: 4.04096854 | AK46: 0 | AZ46: 28495 | BA46: 1978-01-05 | BB46: 1978-01-05 | BC46: 1 | BD46: 5 | BE46: -22.53849343 | BF46: 100.0010788 | BG46: 13.33347717 | BH46: 1.03287784 | BI46: 42.61139127 | BK46: -10 | BM46: 10 | BN46: 0 | BO46: 0 | BP46: 0 | BQ46: 0 | BR46: 0 | BS46: 24.16 | BT46: 5.324981488 | BU46: 5 | BV46: 10 | BW46: 45 | BX46: 11/02/ | BY46: 11 | BZ46: 2 | CC46: 50 | CD46: 0.012
B47: 1978 | C47: 6 | D47: 31.5 | E47: 19 | G47: 16.4 | H47: 0 | J47: 25.25 | K47: 24.09128922 | L47: 12.04564461 | M47: 19.25 | N47: 0 | O47: 0 | P47: 0 | Q47: 0.4 | R47: 0 | S47: 5.767816873 | T47: 2.307126749 | U47: 14.09287325 | V47: 0 | W47: 100 | X47: 4.775117476 | Y47: 2.307126749 | Z47: 0 | AA47: 9.317755775 | AB47: 0 | AC47: 1 | AD47: 0 | AE47: 0 | AH47: 1983 | AI47: 5.797812593 | AJ47: 4.951795594 | AK47: 0 | AZ47: 28496 | BA47: 1978-01-06 | BB47: 1978-01-06 | BC47: 1 | BD47: 6 | BE47: -22.42370668 | BF47: 99.94395434 | BG47: 13.32586058 | BH47: 1.032824137 | BI47: 42.58778494 | BK47: -10 | BM47: 10 | BN47: 0 | BO47: 0 | BP47: 0 | BQ47: 0 | BR47: 0 | BS47: 26.5 | BT47: 5.767816873 | BU47: 6 | BV47: 8 | BW47: 55 | BX47: 21/02/ | BY47: 21 | BZ47: 2
B48: 1978 | C48: 7 | D48: 29 | E48: 17.5 | G48: 0 | H48: 0 | J48: 23.25 | K48: 23.09377444 | L48: 11.54688722 | M48: 17.25 | N48: 0 | O48: 0 | P48: 0 | Q48: 0.4 | R48: 0 | S48: 5.31979155 | T48: 2.12791662 | U48: -2.12791662 | V48: -2.12791662 | W48: 97.89456379 | X48: -2.105436211 | Y48: 2.105436211 | Z48: 0.02248040857 | AA48: 0 | AB48: 0 | AC48: 1 | AD48: 0 | AE48: 0 | AH48: 1984 | AI48: 6.562366061 | AJ48: 3.23507529 | AK48: 0 | AZ48: 28497 | BA48: 1978-01-07 | BB48: 1978-01-07 | BC48: 1 | BD48: 7 | BE48: -22.30227531 | BF48: 99.88363668 | BG48: 13.31781822 | BH48: 1.032760708 | BI48: 42.56239098 | BK48: -10 | BM48: 10 | BN48: 0 | BO48: 0 | BP48: 0 | BQ48: 0 | BR48: 0 | BS48: 24.4 | BT48: 5.31979155 | BU48: 7 | BV48: 10 | BW48: 65 | BX48: 01/03/ | BY48: 1 | BZ48: 3
B49: 1978 | C49: 8 | D49: 30.1 | E49: 19.2 | G49: 3.8 | H49: 0 | J49: 24.65 | K49: 22.46889079 | L49: 11.2344454 | M49: 18.65 | N49: 0 | O49: 0 | P49: 0 | Q49: 0.4 | R49: 0 | S49: 5.305726572 | T49: 2.122290629 | U49: 1.677709371 | V49: -0.4286442083 | W49: 99.57227316 | X49: 1.677709371 | Y49: 2.122290629 | Z49: 0 | AA49: 0 | AB49: 0 | AC49: 1 | AD49: 0 | AE49: 0 | AH49: 1985 | AI49: 6.236581761 | AJ49: 4.66180162 | AK49: 0 | AZ49: 28498 | BA49: 1978-01-08 | BB49: 1978-01-08 | BC49: 1 | BD49: 8 | BE49: -22.17423529 | BF49: 99.82016178 | BG49: 13.3093549 | BH49: 1.032687571 | BI49: 42.53519242 | BK49: -10 | BM49: 10 | BN49: 0 | BO49: 0 | BP49: 0 | BQ49: 0 | BR49: 0 | BS49: 25.74 | BT49: 5.305726572 | BU49: 8 | BV49: 10 | BW49: 75 | BX49: 11/03/ | BY49: 11 | BZ49: 3
B50: 1978 | C50: 9 | D50: 32.4 | E50: 19.2 | G50: 2.2 | H50: 0 | J50: 25.8 | K50: 24.70921455 | L50: 12.35460728 | M50: 19.8 | N50: 0 | O50: 0 | P50: 0 | Q50: 0.4 | R50: 0 | S50: 6.090604217 | T50: 2.436241687 | U50: -0.236241687 | V50: -0.6648858952 | W50: 99.33731958 | X50: -0.2349535794 | Y50: 2.434953579 | Z50: 0.001288107526 | AA50: 0 | AB50: 0 | AC50: 1 | AD50: 0 | AE50: 0 | AH50: 1986 | AI50: 6.414482634 | AJ50: 4.299057842 | AK50: 0 | AZ50: 28499 | BA50: 1978-01-09 | BB50: 1978-01-09 | BC50: 1 | BD50: 9 | BE50: -22.03962456 | BF50: 99.75356714 | BG50: 13.30047562 | BH50: 1.032604748 | BI50: 42.5061717 | BK50: -10 | BM50: 10 | BN50: 0 | BO50: 0 | BP50: 0 | BQ50: 0 | BR50: 0 | BS50: 27.12 | BT50: 6.090604217 | BU50: 9 | BV50: 11 | BW50: 85 | BX50: 21/03/ | BY50: 21 | BZ50: 3
B51: 1978 | C51: 10 | D51: 30.6 | E51: 19.4 | G51: 3.7 | H51: 0 | J51: 25 | K51: 22.74393252 | L51: 11.37196626 | M51: 19 | N51: 0 | O51: 0 | P51: 0 | Q51: 0.4 | R51: 0 | S51: 5.407956698 | T51: 2.163182679 | U51: 1.536817321 | V51: 0 | W51: 100 | X51: 0.6626804196 | Y51: 2.163182679 | Z51: 0 | AA51: 0.874136901 | AB51: 0 | AC51: 1 | AD51: 0 | AE51: 0 | AH51: 1987 | AI51: 5.869517289 | AJ51: 4.088288759 | AK51: 0 | AZ51: 28500 | BA51: 1978-01-10 | BB51: 1978-01-10 | BC51: 1 | BD51: 10 | BE51: -21.89848302 | BF51: 99.6838917 | BG51: 13.29118556 | BH51: 1.032512264 | BI51: 42.47531067 | BK51: -10 | BM51: 10 | BN51: 0 | BO51: 0 | BP51: 0 | BQ51: 0 | BR51: 0 | BS51: 26.12 | BT51: 5.407956698 | BU51: 10 | BV51: 10 | BW51: 95 | BX51: 01/04/ | BY51: 1 | BZ51: 4
B52: 1978 | C52: 11 | D52: 29.7 | E52: 18.4 | G52: 0 | H52: 0 | J52: 24.05 | K52: 22.82764392 | L52: 11.41382196 | M52: 18.05 | N52: 0 | O52: 0 | P52: 0 | Q52: 0.4 | R52: 0 | S52: 5.335296121 | T52: 2.134118448 | U52: -2.134118448 | V52: -2.134118448 | W52: 97.88849272 | X52: -2.111507276 | Y52: 2.111507276 | Z52: 0.02261117237 | AA52: 0 | AB52: 0 | AC52: 1 | AD52: 0 | AE52: 0 | AH52: 1988 | AI52: 5.953861104 | AJ52: 5.189780468 | AK52: 0 | AZ52: 28501 | BA52: 1978-01-11 | BB52: 1978-01-11 | BC52: 1 | BD52: 11 | BE52: -21.75085248 | BF52: 99.61117583 | BG52: 13.28149011 | BH52: 1.032410145 | BI52: 42.44259067 | BK52: -10 | BM52: 10 | BN52: 0 | BO52: 0 | BP52: 0 | BQ52: 0 | BR52: 0 | BS52: 25.18 | BT52: 5.335296121 | BU52: 11 | BV52: 10 | BW52: 105 | BX52: 11/04/ | BY52: 11 | BZ52: 4
B53: 1978 | C53: 12 | D53: 28.9 | E53: 17.7 | G53: 28 | H53: 0 | J53: 23.3 | K53: 22.70788618 | L53: 11.35394309 | M53: 17.3 | N53: 0 | O53: 0 | P53: 0 | Q53: 0.4 | R53: 0 | S53: 5.232858978 | T53: 2.093143591 | U53: 25.90685641 | V53: 0 | W53: 100 | X53: 2.111507276 | Y53: 2.093143591 | Z53: 0 | AA53: 23.79534913 | AB53: 0 | AC53: 1 | AD53: 0 | AE53: 0 | AH53: 1989 | AI53: 6.184592862 | AJ53: 4.599693947 | AK53: 0 | AZ53: 28502 | BA53: 1978-01-12 | BB53: 1978-01-12 | BC53: 1 | BD53: 12 | BE53: -21.5967767 | BF53: 99.5354612 | BG53: 13.27139483 | BH53: 1.032298423 | BI53: 42.40799253 | BK53: -10 | BM53: 10 | BN53: 0 | BO53: 0 | BP53: 0 | BQ53: 0 | BR53: 0 | BS53: 24.42 | BT53: 5.232858978 | BU53: 12 | BV53: 10 | BW53: 115 | BX53: 21/04/ | BY53: 21 | BZ53: 4
B54: 1978 | C54: 13 | D54: 30.8 | E54: 17.9 | G54: 0 | H54: 0 | J54: 24.35 | K54: 24.3494212 | L54: 12.1747106 | M54: 18.35 | N54: 0 | O54: 0 | P54: 0 | Q54: 0.4 | R54: 0 | S54: 5.739284738 | T54: 2.295713895 | U54: -2.295713895 | V54: -2.295713895 | W54: 97.73043712 | X54: -2.269562883 | Y54: 2.269562883 | Z54: 0.02615101171 | AA54: 0 | AB54: 0 | AC54: 1 | AD54: 0 | AE54: 0 | AH54: 1990 | AI54: 6.085726703 | AJ54: 3.769743312 | AK54: 0 | AZ54: 28503 | BA54: 1978-01-13 | BB54: 1978-01-13 | BC54: 1 | BD54: 13 | BE54: -21.43630132 | BF54: 99.45679072 | BG54: 13.26090543 | BH54: 1.03217713 | BI54: 42.37149665 | BK54: -10 | BM54: 10 | BN54: 0 | BO54: 0 | BP54: 0 | BQ54: 0 | BR54: 0 | BS54: 25.64 | BT54: 5.739284738 | BU54: 13 | BV54: 10 | BW54: 125 | BX54: 01/05/ | BY54: 1 | BZ54: 5
B55: 1978 | C55: 14 | D55: 31.4 | E55: 19 | G55: 6.4 | H55: 0 | J55: 25.2 | K55: 23.85122689 | L55: 11.92561344 | M55: 19.2 | N55: 0 | O55: 0 | P55: 0 | Q55: 0.4 | R55: 0 | S55: 5.704168997 | T55: 2.281667599 | U55: 4.118332401 | V55: 0 | W55: 100 | X55: 2.269562883 | Y55: 2.281667599 | Z55: 0 | AA55: 1.848769518 | AB55: 0 | AC55: 1 | AD55: 0 | AE55: 0 | AH55: 1991 | AI55: 6.064801361 | AJ55: 4.773376745 | AK55: 0 | AZ55: 28504 | BA55: 1978-01-14 | BB55: 1978-01-14 | BC55: 1 | BD55: 14 | BE55: -21.26947391 | BF55: 99.37520846 | BG55: 13.25002779 | BH55: 1.032046302 | BI55: 42.33308304 | BK55: -10 | BM55: 10 | BN55: 0 | BO55: 0 | BP55: 0 | BQ55: 0 | BR55: 0 | BS55: 26.44 | BT55: 5.704168997 | BU55: 14 | BV55: 10 | BW55: 135 | BX55: 11/05/ | BY55: 11 | BZ55: 5
B56: 1978 | C56: 15 | D56: 29.3 | E56: 20.9 | G56: 15.1 | H56: 0 | J56: 25.1 | K56: 19.61215691 | L56: 9.806078457 | M56: 19.1 | N56: 0 | O56: 0 | P56: 0 | Q56: 0.4 | R56: 0 | S56: 4.648067785 | T56: 1.859227114 | U56: 13.24077289 | V56: 0 | W56: 100 | X56: 0 | Y56: 1.859227114 | Z56: 0 | AA56: 13.24077289 | AB56: 0 | AC56: 1 | AD56: 0 | AE56: 0 | AH56: 1992 | AI56: 6.083210142 | AJ56: 5.249047697 | AK56: 0 | AZ56: 28505 | BA56: 1978-01-15 | BB56: 1978-01-15 | BC56: 1 | BD56: 15 | BE56: -21.09634389 | BF56: 99.29075959 | BG56: 13.23876795 | BH56: 1.031905978 | BI56: 42.29273135 | BK56: -10 | BM56: 10 | BN56: 0 | BO56: 0 | BP56: 0 | BQ56: 0 | BR56: 0 | BS56: 25.94 | BT56: 4.648067785 | BU56: 15 | BV56: 11 | BW56: 145 | BX56: 21/05/ | BY56: 21 | BZ56: 5
B57: 1978 | C57: 16 | D57: 31 | E57: 18.3 | G57: 4.1 | H57: 0 | J57: 24.65 | K57: 24.09089215 | L57: 12.04544607 | M57: 18.65 | N57: 0 | O57: 0 | P57: 0 | Q57: 0.4 | R57: 0 | S57: 5.707446516 | T57: 2.282978607 | U57: 1.817021393 | V57: 0 | W57: 100 | X57: 0 | Y57: 2.282978607 | Z57: 0 | AA57: 1.817021393 | AB57: 0 | AC57: 1 | AD57: 0 | AE57: 0 | AH57: 1993 | AI57: 6.148338209 | AJ57: 4.296996346 | AK57: 0 | AZ57: 28506 | BA57: 1978-01-16 | BB57: 1978-01-16 | BC57: 1 | BD57: 16 | BE57: -20.91696257 | BF57: 99.2034903 | BG57: 13.22713204 | BH57: 1.0317562 | BI57: 42.25042094 | BK57: -10 | BM57: 10 | BN57: 0 | BO57: 0 | BP57: 0 | BQ57: 0 | BR57: 0 | BS57: 25.92 | BT57: 5.707446516 | BU57: 16 | BV57: 10 | BW57: 155 | BX57: 01/06/ | BY57: 1 | BZ57: 6
B58: 1978 | C58: 17 | D58: 24.5 | E58: 17.4 | G58: 0 | H58: 0 | J58: 20.95 | K58: 17.99387499 | L58: 8.996937495 | M58: 14.95 | N58: 0 | O58: 0 | P58: 0 | Q58: 0.4 | R58: 0 | S58: 3.932315209 | T58: 1.572926084 | U58: -1.572926084 | V58: -1.572926084 | W58: 98.43937979 | X58: -1.560620206 | Y58: 1.560620206 | Z58: 0.01230587705 | AA58: 0 | AB58: 0 | AC58: 1 | AD58: 0 | AE58: 0 | AH58: 1994 | AI58: 5.969561048 | AJ58: 4.69919828 | AK58: 0 | AZ58: 28507 | BA58: 1978-01-17 | BB58: 1978-01-17 | BC58: 1 | BD58: 17 | BE58: -20.73138311 | BF58: 99.11344767 | BG58: 13.21512636 | BH58: 1.031597011 | BI58: 42.20613094 | BK58: -10 | BM58: 10 | BN58: 0 | BO58: 0 | BP58: 0 | BQ58: 0 | BR58: 0 | BS58: 21.66 | BT58: 3.932315209 | BU58: 17 | BV58: 10 | BW58: 165 | BX58: 11/06/ | BY58: 11 | BZ58: 6
B59: 1978 | C59: 18 | D59: 31 | E59: 17.8 | G59: 0 | H59: 0 | J59: 24.4 | K59: 24.50788902 | L59: 12.25394451 | M59: 18.4 | N59: 0 | O59: 0 | P59: 0 | Q59: 0.4 | R59: 0 | S59: 5.785094163 | T59: 2.314037665 | U59: -2.314037665 | V59: -3.886963749 | W59: 96.18760936 | X59: -2.251770438 | Y59: 2.251770438 | Z59: 0.06226722746 | AA59: 0 | AB59: 0 | AC59: 1 | AD59: 0 | AE59: 0 | AH59: 1995 | AI59: 6.16900431 | AJ59: 4.79650836 | AK59: 0 | AZ59: 28508 | BA59: 1978-01-18 | BB59: 1978-01-18 | BC59: 1 | BD59: 18 | BE59: -20.53966049 | BF59: 99.02067969 | BG59: 13.20275729 | BH59: 1.03142846 | BI59: 42.15984026 | BK59: -10 | BM59: 10 | BN59: 0 | BO59: 0 | BP59: 0 | BQ59: 0 | BR59: 0 | BS59: 25.72 | BT59: 5.785094163 | BU59: 18 | BV59: 10 | BW59: 175 | BX59: 21/06/ | BY59: 21 | BZ59: 6
B60: 1978 | C60: 19 | D60: 32.1 | E60: 17.6 | G60: 0 | H60: 0 | J60: 24.85 | K60: 25.6569472 | L60: 12.8284736 | M60: 18.85 | N60: 0 | O60: 0 | P60: 0 | Q60: 0.4 | R60: 0 | S60: 6.148343787 | T60: 2.459337515 | U60: -2.459337515 | V60: -6.346301263 | W60: 93.85088316 | X60: -2.336726193 | Y60: 2.336726193 | Z60: 0.1226113217 | AA60: 0 | AB60: 0 | AC60: 1 | AD60: 0 | AE60: 0 | AH60: 1996 | AI60: 6.213293592 | AJ60: 2.9982825 | AK60: 0 | AZ60: 28509 | BA60: 1978-01-19 | BB60: 1978-01-19 | BC60: 1 | BD60: 19 | BE60: -20.34185152 | BF60: 98.92523509 | BG60: 13.19003135 | BH60: 1.031250596 | BI60: 42.11152769 | BK60: -10 | BM60: 10 | BN60: 0 | BO60: 0 | BP60: 0 | BQ60: 0 | BR60: 0 | BS60: 26.3 | BT60: 6.148343787 | BU60: 19 | BV60: 10 | BW60: 185 | BX60: 01/07/ | BY60: 1 | BZ60: 7
B61: 1978 | C61: 20 | D61: 33.9 | E61: 18.8 | G61: 0 | H61: 0 | J61: 26.35 | K61: 26.15109182 | L61: 13.07554591 | M61: 20.35 | N61: 0 | O61: 0 | P61: 0 | Q61: 0.4 | R61: 0 | S61: 6.968356156 | T61: 2.787342462 | U61: -2.787342462 | V61: -9.133643726 | W61: 91.27105894 | X61: -2.579824224 | Y61: 2.579824224 | Z61: 0.2075182386 | AA61: 0 | AB61: 0 | AC61: 1 | AD61: 0 | AE61: 0 | AH61: 1997 | AI61: 6.057075259 | AJ61: 2.794556811 | AK61: 0 | AZ61: 28510 | BA61: 1978-01-20 | BB61: 1978-01-20 | BC61: 1 | BD61: 20 | BE61: -20.13801482 | BF61: 98.82716332 | BG61: 13.17695511 | BH61: 1.031063471 | BI61: 42.06117195 | BK61: -10 | BM61: 10 | BN61: 0 | BO61: 0 | BP61: 0 | BQ61: 0 | BR61: 0 | BS61: 27.86 | BT61: 6.968356156 | BU61: 20 | BV61: 10 | BW61: 195 | BX61: 11/07/ | BY61: 11 | BZ61: 7
B62: 1978 | C62: 21 | D62: 34.2 | E62: 20.1 | G62: 2.1 | H62: 0 | J62: 27.15 | K62: 25.23883565 | L62: 12.61941782 | M62: 21.15 | N62: 0 | O62: 0 | P62: 0 | Q62: 0.4 | R62: 0 | S62: 6.89352293 | T62: 2.757409172 | U62: -0.6574091721 | V62: -9.791052898 | W62: 90.67300262 | X62: -0.5980563204 | Y62: 2.69805632 | Z62: 0.05935285165 | AA62: 0 | AB62: 0 | AC62: 1 | AD62: 0 | AE62: 0 | AH62: 1998 | AI62: 5.88173085 | AJ62: 4.785390008 | AK62: 0 | AZ62: 28511 | BA62: 1978-01-21 | BB62: 1978-01-21 | BC62: 1 | BD62: 21 | BE62: -19.9282108 | BF62: 98.72651445 | BG62: 13.16353526 | BH62: 1.030867142 | BI62: 42.0087517 | BK62: -10 | BM62: 10 | BN62: 0 | BO62: 0 | BP62: 0 | BQ62: 0 | BR62: 0 | BS62: 28.56 | BT62: 6.89352293 | BU62: 21 | BV62: 11 | BW62: 205 | BX62: 21/07/ | BY62: 21 | BZ62: 7
B63: 1978 | C63: 22 | D63: 33.4 | E63: 18.6 | G63: 0 | H63: 0 | J63: 26 | K63: 25.82419291 | L63: 12.91209646 | M63: 20 | N63: 0 | O63: 0 | P63: 0 | Q63: 0.4 | R63: 0 | S63: 6.692263932 | T63: 2.676905573 | U63: -2.676905573 | V63: -12.46795847 | W63: 88.27797134 | X63: -2.395031279 | Y63: 2.395031279 | Z63: 0.2818742936 | AA63: 0 | AB63: 0 | AC63: 1 | AD63: 0 | AE63: 0 | AH63: 1999 | AI63: 6.085317944 | AJ63: 4.373797572 | AK63: 0 | AZ63: 28512 | BA63: 1978-01-22 | BB63: 1978-01-22 | BC63: 1 | BD63: 22 | BE63: -19.71250161 | BF63: 98.62333911 | BG63: 13.14977855 | BH63: 1.030661667 | BI63: 41.95424567 | BK63: -10 | BM63: 10 | BN63: 0 | BO63: 0 | BP63: 0 | BQ63: 0 | BR63: 0 | BS63: 27.48 | BT63: 6.692263932 | BU63: 22 | BV63: 10 | BW63: 215 | BX63: 01/08/ | BY63: 1 | BZ63: 8
B64: 1978 | C64: 23 | D64: 33 | E64: 18.5 | G64: 0 | H64: 0 | J64: 25.75 | K64: 25.52662912 | L64: 12.76331456 | M64: 19.75 | N64: 0 | O64: 0 | P64: 0 | Q64: 0.4 | R64: 0 | S64: 6.469837576 | T64: 2.58793503 | U64: -2.58793503 | V64: -15.0558935 | W64: 86.0227031 | X64: -2.255268237 | Y64: 2.255268237 | Z64: 0.3326667933 | AA64: 0 | AB64: 0 | AC64: 1 | AD64: 0 | AE64: 0 | AH64: 2000 | AI64: 6.488695742 | AJ64: 2.841321558 | AK64: 0 | AZ64: 28513 | BA64: 1978-01-23 | BB64: 1978-01-23 | BC64: 1 | BD64: 23 | BE64: -19.49095119 | BF64: 98.51768839 | BG64: 13.13569178 | BH64: 1.030447105 | BI64: 41.89763266 | BK64: -10 | BM64: 10 | BN64: 0 | BO64: 0 | BP64: 0 | BQ64: 0 | BR64: 0 | BS64: 27.2 | BT64: 6.469837576 | BU64: 23 | BV64: 10 | BW64: 225 | BX64: 11/08/ | BY64: 11 | BZ64: 8
B65: 1978 | C65: 24 | D65: 34.4 | E65: 19.5 | G65: 0 | H65: 0 | J65: 26.95 | K65: 25.84004633 | L65: 12.92002317 | M65: 20.95 | N65: 0 | O65: 0 | P65: 0 | Q65: 0.4 | R65: 0 | S65: 7.10122549 | T65: 2.840490196 | U65: -2.840490196 | V65: -17.8963837 | W65: 83.61361361 | X65: -2.409089496 | Y65: 2.409089496 | Z65: 0.4314007002 | AA65: 0 | AB65: 0 | AC65: 1 | AD65: 0 | AE65: 0 | AH65: 2001 | AI65: 6.050042904 | AJ65: 3.348585416 | AK65: 0 | AZ65: 28514 | BA65: 1978-01-24 | BB65: 1978-01-24 | BC65: 1 | BD65: 24 | BE65: -19.26362517 | BF65: 98.4096138 | BG65: 13.12128184 | BH65: 1.030223522 | BI65: 41.83889165 | BK65: -10 | BM65: 10 | BN65: 0 | BO65: 0 | BP65: 0 | BQ65: 0 | BR65: 0 | BS65: 28.44 | BT65: 7.10122549 | BU65: 24 | BV65: 11 | BW65: 235 | BX65: 21/08/ | BY65: 21 | BZ65: 8
B66: 1978 | C66: 25 | D66: 35 | E66: 19 | G66: 0 | H66: 0 | J66: 27 | K66: 26.73792115 | L66: 13.36896058 | M66: 21 | N66: 0 | O66: 0 | P66: 0 | Q66: 0.4 | R66: 0 | S66: 7.54963383 | T66: 3.019853532 | U66: -3.019853532 | V66: -20.91623723 | W66: 81.12634982 | X66: -2.487263783 | Y66: 2.487263783 | Z66: 0.532589749 | AA66: 0 | AB66: 0 | AC66: 1 | AD66: 0 | AE66: 0 | AH66: 2002 | AI66: 6.386724414 | AJ66: 3.974109396 | AK66: 0 | AZ66: 28515 | BA66: 1978-01-25 | BB66: 1978-01-25 | BC66: 1 | BD66: 25 | BE66: -19.03059093 | BF66: 98.29916719 | BG66: 13.10655562 | BH66: 1.029990982 | BI66: 41.7780018 | BK66: -10 | BM66: 10 | BN66: 0 | BO66: 0 | BP66: 0 | BQ66: 0 | BR66: 0 | BS66: 28.6 | BT66: 7.54963383 | BU66: 25 | BV66: 10 | BW66: 245 | BX66: 01/09/ | BY66: 1 | BZ66: 9
B67: 1978 | C67: 26 | D67: 35.6 | E67: 19.6 | G67: 0 | H67: 0 | J67: 27.6 | K67: 26.69756325 | L67: 13.34878162 | M67: 21.6 | N67: 0 | O67: 0 | P67: 0 | Q67: 0.4 | R67: 0 | S67: 7.799564102 | T67: 3.119825641 | U67: -3.119825641 | V67: -24.03606287 | W67: 78.63442316 | X67: -2.491926661 | Y67: 2.491926661 | Z67: 0.6278989803 | AA67: 0 | AB67: 0 | AC67: 1 | AD67: 0 | AE67: 0 | AH67: 2003 | AI67: 6.225220496 | AJ67: 4.369849349 | AK67: 0 | AZ67: 28516 | BA67: 1978-01-26 | BB67: 1978-01-26 | BC67: 1 | BD67: 26 | BE67: -18.79191752 | BF67: 98.18640067 | BG67: 13.09152009 | BH67: 1.029749556 | BI67: 41.71494257 | BK67: -10 | BM67: 10 | BN67: 0 | BO67: 0 | BP67: 0 | BQ67: 0 | BR67: 0 | BS67: 29.2 | BT67: 7.799564102 | BU67: 26 | BV67: 10 | BW67: 255 | BX67: 11/09/ | BY67: 11 | BZ67: 9
B68: 1978 | C68: 27 | D68: 36.7 | E68: 19.6 | G68: 7.2 | H68: 0 | J68: 28.15 | K68: 27.55686765 | L68: 13.77843382 | M68: 22.15 | N68: 0 | O68: 0 | P68: 0 | Q68: 0.4 | R68: 0 | S68: 8.491748579 | T68: 3.396699432 | U68: 3.803300568 | V68: -19.31270416 | W68: 82.43772373 | X68: 3.803300568 | Y68: 3.396699432 | Z68: 0 | AA68: 0 | AB68: 0 | AC68: 1 | AD68: 0 | AE68: 0 | AH68: 2004 | AI68: 5.83574909 | AJ68: 4.351945772 | AK68: 0 | AZ68: 28517 | BA68: 1978-01-27 | BB68: 1978-01-27 | BC68: 1 | BD68: 27 | BE68: -18.54767565 | BF68: 98.07136656 | BG68: 13.07618221 | BH68: 1.029499314 | BI68: 41.64969376 | BK68: -10 | BM68: 10 | BN68: 0 | BO68: 0 | BP68: 0 | BQ68: 0 | BR68: 0 | BS68: 29.86 | BT68: 8.491748579 | BU68: 27 | BV68: 10 | BW68: 265 | BX68: 21/09/ | BY68: 21 | BZ68: 9
B69: 1978 | C69: 28 | D69: 34 | E69: 18.1 | G69: 0 | H69: 0 | J69: 26.05 | K69: 26.52933594 | L69: 13.26466797 | M69: 20.05 | N69: 0 | O69: 0 | P69: 0 | Q69: 0.4 | R69: 0 | S69: 7.071257027 | T69: 2.828502811 | U69: -2.828502811 | V69: -22.14120697 | W69: 80.13863852 | X69: -2.29908521 | Y69: 2.29908521 | Z69: 0.5294176013 | AA69: 0 | AB69: 0 | AC69: 1 | AD69: 0 | AE69: 0 | AH69: 2005 | AI69: 6.270567388 | AJ69: 3.405316651 | AK69: 0 | AZ69: 28518 | BA69: 1978-01-28 | BB69: 1978-01-28 | BC69: 1 | BD69: 28 | BE69: -18.29793771 | BF69: 97.95411731 | BG69: 13.06054897 | BH69: 1.029240331 | BI69: 41.58223556 | BK69: -10 | BM69: 10 | BN69: 0 | BO69: 0 | BP69: 0 | BQ69: 0 | BR69: 0 | BS69: 27.64 | BT69: 7.071257027 | BU69: 28 | BV69: 10 | BW69: 275 | BX69: 01/10/ | BY69: 1 | BZ69: 10
B70: 1978 | C70: 29 | D70: 33.9 | E70: 18.6 | G70: 0 | H70: 0 | J70: 26.25 | K70: 25.98035587 | L70: 12.99017793 | M70: 20.25 | N70: 0 | O70: 0 | P70: 0 | Q70: 0.4 | R70: 0 | S70: 6.913120746 | T70: 2.765248298 | U70: -2.765248298 | V70: -24.90645527 | W70: 77.9529651 | X70: -2.185673417 | Y70: 2.185673417 | Z70: 0.5795748817 | AA70: 0 | AB70: 0 | AC70: 1 | AD70: 0 | AE70: 0 | AH70: 2006 | AI70: 6.250368409 | AJ70: 3.504421258 | AK70: 0 | AZ70: 28519 | BA70: 1978-01-29 | BB70: 1978-01-29 | BC70: 1 | BD70: 29 | BE70: -18.04277769 | BF70: 97.83470546 | BG70: 13.04462739 | BH70: 1.028972683 | BI70: 41.51254864 | BK70: -10 | BM70: 10 | BN70: 0 | BO70: 0 | BP70: 0 | BQ70: 0 | BR70: 0 | BS70: 27.78 | BT70: 6.913120746 | BU70: 29 | BV70: 10 | BW70: 285 | BX70: 11/10/ | BY70: 11 | BZ70: 10
B71: 1978 | C71: 30 | D71: 34.4 | E71: 18.3 | G71: 17.1 | H71: 0 | J71: 26.35 | K71: 26.60474521 | L71: 13.3023726 | M71: 20.35 | N71: 0 | O71: 0 | P71: 0 | Q71: 0.4 | R71: 0 | S71: 7.25027816 | T71: 2.900111264 | U71: 14.19988874 | V71: -8.172153284 | W71: 92.15285384 | X71: 14.19988874 | Y71: 2.900111264 | Z71: 0 | AA71: 0 | AB71: 0 | AC71: 1 | AD71: 0 | AE71: 0 | AH71: 2007 | AI71: 6.222035012 | AJ71: 3.437095979 | AK71: 0 | AZ71: 28520 | BA71: 1978-01-30 | BB71: 1978-01-30 | BC71: 1 | BD71: 30 | BE71: -17.78227121 | BF71: 97.71318354 | BG71: 13.02842447 | BH71: 1.02869645 | BI71: 41.44061418 | BK71: -10 | BM71: 10 | BN71: 0 | BO71: 0 | BP71: 0 | BQ71: 0 | BR71: 0 | BS71: 27.96 | BT71: 7.25027816 | BU71: 30 | BV71: 11 | BW71: 295 | BX71: 21/10/ | BY71: 21 | BZ71: 10
B72: 1978 | C72: 31 | D72: 35.3 | E72: 18.1 | G72: 0 | H72: 0 | J72: 26.7 | K72: 27.44935096 | L72: 13.72467548 | M72: 20.7 | N72: 0 | O72: 0 | P72: 0 | Q72: 0.4 | R72: 0 | S72: 7.819006013 | T72: 3.127602405 | U72: -3.127602405 | V72: -11.29975569 | W72: 89.31528422 | X72: -2.837569622 | Y72: 2.837569622 | Z72: 0.2900327829 | AA72: 0 | AB72: 0 | AC72: 1 | AD72: 0 | AE72: 0 | AH72: 2008 | AI72: 5.811307471 | AJ72: 4.961785734 | AK72: 0 | AZ72: 28521 | BA72: 1978-01-31 | BB72: 1978-01-31 | BC72: 1 | BD72: 31 | BE72: -17.51649546 | BF72: 97.58960406 | BG72: 13.01194721 | BH72: 1.028411714 | BI72: 41.36641398 | BK72: -10 | BM72: 10 | BN72: 0 | BO72: 0 | BP72: 0 | BQ72: 0 | BR72: 0 | BS72: 28.42 | BT72: 7.819006013 | BU72: 31 | BV72: 10 | BW72: 305 | BX72: 01/11/ | BY72: 1 | BZ72: 11
B73: 1978 | C73: 32 | D73: 34.5 | E73: 17.8 | G73: 0 | H73: 0 | J73: 26.15 | K73: 26.99742665 | L73: 13.49871333 | M73: 20.15 | N73: 0 | O73: 0 | P73: 0 | Q73: 0.4 | R73: 0 | S73: 7.369286505 | T73: 2.947714602 | U73: -2.947714602 | V73: -14.24747029 | W73: 86.72094919 | X73: -2.594335029 | Y73: 2.594335029 | Z73: 0.3533795727 | AA73: 0 | AB73: 0 | AC73: 1 | AD73: 0 | AE73: 0 | AH73: =IF(AH72="","",IF(AND(AH72+1=MAX($B$42:$B$1048576),$C$18+MAX($I$10:$I$24)>365),"",(IF(AH72+1>MAX($B$42:$B$1048576),"",AH72+1)))) -> 2009 | AI73: 6.079647253 | AJ73: 2.774998289 | AK73: 0 | AZ73: 28522 | BA73: 1978-02-01 | BB73: 1978-02-01 | BC73: 1 | BD73: 32 | BE73: -17.24552919 | BF73: 97.46401943 | BG73: 12.99520259 | BH73: 1.028118558 | BI73: 41.28993049 | BK73: -10 | BM73: 10 | BN73: 0 | BO73: 0 | BP73: 0 | BQ73: 0 | BR73: 0 | BS73: 27.82 | BT73: 7.369286505 | BU73: 32 | BV73: 10 | BW73: 315 | BX73: 11/11/ | BY73: 11 | BZ73: 11
B74: 1978 | C74: 33 | D74: 34.5 | E74: 18.7 | G74: 0 | H74: 0 | J74: 26.6 | K74: 26.20977102 | L74: 13.10488551 | M74: 20.6 | N74: 0 | O74: 0 | P74: 0 | Q74: 0.4 | R74: 0 | S74: 7.199614117 | T74: 2.879845647 | U74: -2.879845647 | V74: -17.12731594 | W74: 84.25913803 | X74: -2.46181116 | Y74: 2.46181116 | Z74: 0.4180344873 | AA74: 0 | AB74: 0 | AC74: 1 | AD74: 0 | AE74: 0 | AH74: =IF(AH73="","",IF(AND(AH73+1=MAX($B$42:$B$1048576),$C$18+MAX($I$10:$I$24)>365),"",(IF(AH73+1>MAX($B$42:$B$1048576),"",AH73+1)))) -> 2010 | AI74: 6.015749002 | AJ74: =IF(ISERROR(IF(AI74="","",AVERAGEIFS(AE:AE,$B:$B,$AH74,$BN:$BN,1)*(1-$C$29)))=TRUE,"",IF(AI74="","",MAX(0,AVERAGEIFS(AE:AE,$B:$B,$AH74,$BN:$BN,1)*(1-$C$29)))) -> 3.890991944 | AK74: 0 | AZ74: 28523 | BA74: 1978-02-02 | BB74: 1978-02-02 | BC74: 1 | BD74: 33 | BE74: -16.9694527 | BF74: 97.33648191 | BG74: 12.97819759 | BH74: 1.027817071 | BI74: 41.21114686 | BK74: -10 | BM74: 10 | BN74: 0 | BO74: 0 | BP74: 0 | BQ74: 0 | BR74: 0 | BS74: 28.18 | BT74: 7.199614117 | BU74: 33 | BV74: 10 | BW74: 325 | BX74: 21/11/ | BY74: 21 | BZ74: 11
B75: 1978 | C75: 34 | D75: 34.4 | E75: 19 | G75: 0 | H75: 0 | J75: 26.7 | K75: 25.82495357 | L75: 12.91247679 | M75: 20.7 | N75: 0 | O75: 0 | P75: 0 | Q75: 0.4 | R75: 0 | S75: 7.072366504 | T75: 2.828946602 | U75: -2.828946602 | V75: -19.95626254 | W75: 81.90889234 | X75: -2.350245686 | Y75: 2.350245686 | Z75: 0.478700916 | AA75: 0 | AB75: 0 | AC75: 1 | AD75: 0 | AE75: 0 | AZ75: 28524 | BA75: 1978-02-03 | BB75: 1978-02-03 | BC75: 1 | BD75: 34 | BE75: -16.68834779 | BF75: 97.20704355 | BG75: 12.96093914 | BH75: 1.02750734 | BI75: 41.13004705 | BK75: -10 | BM75: 10 | BN75: 0 | BO75: 0 | BP75: 0 | BQ75: 0 | BR75: 0 | BS75: 28.24 | BT75: 7.072366504 | BU75: 34 | BV75: 10 | BW75: 335 | BX75: 01/12/ | BY75: 1 | BZ75: 12
B76: 1978 | C76: 35 | D76: 35.3 | E76: 18.4 | G76: 4.1 | H76: 0 | J76: 26.85 | K76: 26.99856566 | L76: 13.49928283 | M76: 20.85 | N76: 0 | O76: 0 | P76: 0 | Q76: 0.4 | R76: 0 | S76: 7.706671168 | T76: 3.082668467 | U76: 1.017331533 | V76: -18.72188424 | W76: 82.92622388 | X76: 1.017331533 | Y76: 3.082668467 | Z76: 0 | AA76: 0 | AB76: 0 | AC76: 1 | AD76: 0 | AE76: 0 | AZ76: 28525 | BA76: 1978-02-04 | BB76: 1978-02-04 | BC76: 1 | BD76: 35 | BE76: -16.40229777 | BF76: 97.07575619 | BG76: 12.94343416 | BH76: 1.027189459 | BI76: 41.04661589 | BK76: -10 | BM76: 10 | BN76: 0 | BO76: 0 | BP76: 0 | BQ76: 0 | BR76: 0 | BS76: 28.54 | BT76: 7.706671168 | BU76: 35 | BV76: 10 | BW76: 345 | BX76: 11/12/ | BY76: 11 | BZ76: 12
B77: 1978 | C77: 36 | D77: 32.8 | E77: 20.4 | G77: 0.7 | H77: 0 | J77: 26.6 | K77: 23.07807975 | L77: 11.53903987 | M77: 20.6 | N77: 0 | O77: 0 | P77: 0 | Q77: 0.4 | R77: 0 | S77: 5.864410244 | T77: 2.345764098 | U77: -1.645764098 | V77: -20.36764834 | W77: 81.57262295 | X77: -1.353600929 | Y77: 2.053600929 | Z77: 0.2921631688 | AA77: 0 | AB77: 0 | AC77: 1 | AD77: 0 | AE77: 0 | AZ77: 28526 | BA77: 1978-02-05 | BB77: 1978-02-05 | BC77: 1 | BD77: 36 | BE77: -16.11138739 | BF77: 96.94267135 | BG77: 12.92568951 | BH77: 1.026863521 | BI77: 40.96083907 | BK77: -10 | BM77: 10 | BN77: 0 | BO77: 0 | BP77: 0 | BQ77: 0 | BR77: 0 | BS77: 27.84 | BT77: 5.864410244 | BU77: 36 | BV77: 11 | BW77: 355 | BX77: 21/12/ | BY77: 21 | BZ77: 12
B78: 1978 | C78: 37 | D78: 30.6 | E78: 19.7 | G78: 41.1 | H78: 0 | J78: 25.15 | K78: 21.59069361 | L78: 10.7953468 | M78: 19.15 | N78: 0 | O78: 0 | P78: 0 | Q78: 0.4 | R78: 0 | S78: 5.144920909 | T78: 2.057968364 | U78: 39.04203164 | V78: 0 | W78: 100 | X78: 18.42737705 | Y78: 2.057968364 | Z78: 0 | AA78: 20.61465458 | AB78: 0 | AC78: 1 | AD78: 0 | AE78: 0 | AZ78: 28527 | BA78: 1978-02-06 | BB78: 1978-02-06 | BC78: 1 | BD78: 37 | BE78: -15.81570286 | BF78: 96.80784022 | BG78: 12.90771203 | BH78: 1.026529623 | BI78: 40.87270331 | BK78: -10 | BM78: 10 | BN78: 0 | BO78: 0 | BP78: 0 | BQ78: 0 | BR78: 0 | BS78: 26.24 | BT78: 5.144920909
B79: 1978 | C79: 38 | D79: 27 | E79: 16.8 | G79: 0 | H79: 0 | J79: 21.9 | K79: 20.83966243 | L79: 10.41983121 | M79: 15.9 | N79: 0 | O79: 0 | P79: 0 | Q79: 0.4 | R79: 0 | S79: 4.667494362 | T79: 1.866997745 | U79: -1.866997745 | V79: -1.866997745 | W79: 98.1503227 | X79: -1.8496773 | Y79: 1.8496773 | Z79: 0.01732044463 | AA79: 0 | AB79: 0 | AC79: 1 | AD79: 0 | AE79: 0 | AZ79: 28528 | BA79: 1978-02-07 | BB79: 1978-02-07 | BC79: 1 | BD79: 38 | BE79: -15.5153318 | BF79: 96.67131364 | BG79: 12.88950849 | BH79: 1.026187863 | BI79: 40.78219634 | BK79: -10 | BM79: 10 | BN79: 0 | BO79: 0 | BP79: 0 | BQ79: 0 | BR79: 0 | BS79: 22.92 | BT79: 4.667494362
B80: 1978 | C80: 39 | D80: 28.3 | E80: 15.4 | G80: 0 | H80: 0 | J80: 21.85 | K80: 23.38272548 | L80: 11.69136274 | M80: 15.85 | N80: 0 | O80: 0 | P80: 0 | Q80: 0.4 | R80: 0 | S80: 5.259259456 | T80: 2.103703782 | U80: -2.103703782 | V80: -3.970701527 | W80: 96.1070977 | X80: -2.043224997 | Y80: 2.043224997 | Z80: 0.06047878516 | AA80: 0 | AB80: 0 | AC80: 1 | AD80: 0 | AE80: 0 | AZ80: 28529 | BA80: 1978-02-08 | BB80: 1978-02-08 | BC80: 1 | BD80: 39 | BE80: -15.21036321 | BF80: 96.53314204 | BG80: 12.87108561 | BH80: 1.025838343 | BI80: 40.689307 | BK80: -10 | BM80: 10 | BN80: 0 | BO80: 0 | BP80: 0 | BQ80: 0 | BR80: 0 | BS80: 23.14 | BT80: 5.259259456
B81: 1978 | C81: 40 | D81: 30.6 | E81: 14.2 | G81: 0 | H81: 0 | J81: 22.4 | K81: 26.30292367 | L81: 13.15146183 | M81: 16.4 | N81: 0 | O81: 0 | P81: 0 | Q81: 0.4 | R81: 0 | S81: 6.018191163 | T81: 2.407276465 | U81: -2.407276465 | V81: -6.377977992 | W81: 93.82115898 | X81: -2.285938721 | Y81: 2.285938721 | Z81: 0.1213377436 | AA81: 0 | AB81: 0 | AC81: 1 | AD81: 0 | AE81: 0 | AZ81: 28530 | BA81: 1978-02-09 | BB81: 1978-02-09 | BC81: 1 | BD81: 40 | BE81: -14.90088746 | BF81: 96.39337541 | BG81: 12.85245005 | BH81: 1.025481167 | BI81: 40.59402529 | BK81: -10 | BM81: 10 | BN81: 0 | BO81: 0 | BP81: 0 | BQ81: 0 | BR81: 0 | BS81: 24.04 | BT81: 6.018191163
B82: 1978 | C82: 41 | D82: 30.8 | E82: 14.8 | G82: 0 | H82: 0 | J82: 22.8 | K82: 25.91765916 | L82: 12.95882958 | M82: 16.8 | N82: 0 | O82: 0 | P82: 0 | Q82: 0.4 | R82: 0 | S82: 5.970290588 | T82: 2.388116235 | U82: -2.388116235 | V82: -8.766094227 | W82: 91.60714252 | X82: -2.214016464 | Y82: 2.214016464 | Z82: 0.1740997708 | AA82: 0 | AB82: 0 | AC82: 1 | AD82: 0 | AE82: 0 | AZ82: 28531 | BA82: 1978-02-10 | BB82: 1978-02-10 | BC82: 1 | BD82: 41 | BE82: -14.58699625 | BF82: 96.25206326 | BG82: 12.83360844 | BH82: 1.025116441 | BI82: 40.49634243 | BK82: -10 | BM82: 10 | BN82: 0 | BO82: 0 | BP82: 0 | BQ82: 0 | BR82: 0 | BS82: 24.4 | BT82: 5.970290588
B83: 1978 | C83: 42 | D83: 33 | E83: 17 | G83: 21.2 | H83: 0 | J83: 25 | K83: 25.8536006 | L83: 12.9268003 | M83: 19 | N83: 0 | O83: 0 | P83: 0 | Q83: 0.4 | R83: 0 | S83: 6.482752191 | T83: 2.593100876 | U83: 18.60689912 | V83: 0 | W83: 100 | X83: 8.392857483 | Y83: 2.593100876 | Z83: 0 | AA83: 10.21404164 | AB83: 0 | AC83: 1 | AD83: 0 | AE83: 0 | AZ83: 28532 | BA83: 1978-02-11 | BB83: 1978-02-11 | BC83: 1 | BD83: 42 | BE83: -14.2687826 | BF83: 96.10925464 | BG83: 12.81456729 | BH83: 1.024744271 | BI83: 40.39625093 | BK83: -10 | BM83: 10 | BN83: 0 | BO83: 0 | BP83: 0 | BQ83: 0 | BR83: 0 | BS83: 26.6 | BT83: 6.482752191
B84: 1978 | C84: 43 | D84: 33.4 | E84: 17.2 | G84: 1.6 | H84: 0 | J84: 25.3 | K84: 25.94867099 | L84: 12.97433549 | M84: 19.3 | N84: 0 | O84: 0 | P84: 0 | Q84: 0.4 | R84: 0 | S84: 6.65784833 | T84: 2.663139332 | U84: -1.063139332 | V84: -1.063139332 | W84: 98.94249202 | X84: -1.05750798 | Y84: 2.65750798 | Z84: 0.005631352154 | AA84: 0 | AB84: 0 | AC84: 1 | AD84: 0 | AE84: 0 | AZ84: 28533 | BA84: 1978-02-12 | BB84: 1978-02-12 | BC84: 1 | BD84: 43 | BE84: -13.94634081 | BF84: 95.96499806 | BG84: 12.79533307 | BH84: 1.02436477 | BI84: 40.29374462 | BK84: -10 | BM84: 10 | BN84: 0 | BO84: 0 | BP84: 0 | BQ84: 0 | BR84: 0 | BS84: 26.92 | BT84: 6.65784833
B85: 1978 | C85: 44 | D85: 31.4 | E85: 18 | G85: 5.3 | H85: 0 | J85: 24.7 | K85: 23.53843709 | L85: 11.76921854 | M85: 18.7 | N85: 0 | O85: 0 | P85: 0 | Q85: 0.4 | R85: 0 | S85: 5.588747477 | T85: 2.235498991 | U85: 3.064501009 | V85: 0 | W85: 100 | X85: 1.05750798 | Y85: 2.235498991 | Z85: 0 | AA85: 2.006993029 | AB85: 0 | AC85: 1 | AD85: 0 | AE85: 0 | AZ85: 28534 | BA85: 1978-02-13 | BB85: 1978-02-13 | BC85: 1 | BD85: 44 | BE85: -13.61976641 | BF85: 95.81934148 | BG85: 12.7759122 | BH85: 1.023978048 | BI85: 40.18881873 | BK85: -10 | BM85: 10 | BN85: 0 | BO85: 0 | BP85: 0 | BQ85: 0 | BR85: 0 | BS85: 26.04 | BT85: 5.588747477
B86: 1978 | C86: 45 | D86: 32 | E86: 17.2 | G86: 0 | H86: 0 | J86: 24.6 | K86: 24.67143898 | L86: 12.33571949 | M86: 18.6 | N86: 0 | O86: 0 | P86: 0 | Q86: 0.4 | R86: 0 | S86: 5.862013995 | T86: 2.344805598 | U86: -2.344805598 | V86: -2.344805598 | W86: 97.68247136 | X86: -2.317528645 | Y86: 2.317528645 | Z86: 0.02727695335 | AA86: 0 | AB86: 0 | AC86: 1 | AD86: 0 | AE86: 0 | AZ86: 28535 | BA86: 1978-02-14 | BB86: 1978-02-14 | BC86: 1 | BD86: 45 | BE86: -13.28915619 | BF86: 95.67233232 | BG86: 12.75631098 | BH86: 1.023584222 | BI86: 40.08146995 | BK86: -10 | BM86: 10 | BN86: 0 | BO86: 0 | BP86: 0 | BQ86: 0 | BR86: 0 | BS86: 26.08 | BT86: 5.862013995
B87: 1978 | C87: 46 | D87: 33.2 | E87: 18 | G87: 0 | H87: 0 | J87: 25.6 | K87: 24.9341379 | L87: 12.46706895 | M87: 19.6 | N87: 0 | O87: 0 | P87: 0 | Q87: 0.4 | R87: 0 | S87: 6.365547483 | T87: 2.546218993 | U87: -2.546218993 | V87: -4.891024591 | W87: 95.22665957 | X87: -2.455811787 | Y87: 2.455811787 | Z87: 0.09040720614 | AA87: 0 | AB87: 0 | AC87: 1 | AD87: 0 | AE87: 0 | AZ87: 28536 | BA87: 1978-02-15 | BB87: 1978-02-15 | BC87: 1 | BD87: 46 | BE87: -12.95460809 | BF87: 95.52401741 | BG87: 12.73653566 | BH87: 1.023183407 | BI87: 39.97169643 | BK87: -10 | BM87: 10 | BN87: 0 | BO87: 0 | BP87: 0 | BQ87: 0 | BR87: 0 | BS87: 27.12 | BT87: 6.365547483
B88: 1978 | C88: 47 | D88: 33.4 | E88: 18.2 | G88: 0.1 | H88: 0 | J88: 25.8 | K88: 24.86414905 | L88: 12.43207452 | M88: 19.8 | N88: 0 | O88: 0 | P88: 0 | Q88: 0.4 | R88: 0 | S88: 6.425217918 | T88: 2.570087167 | U88: -2.470087167 | V88: -7.361111759 | W88: 92.90329082 | X88: -2.323368752 | Y88: 2.423368752 | Z88: 0.1467184153 | AA88: 0 | AB88: 0 | AC88: 1 | AD88: 0 | AE88: 0 | AZ88: 28537 | BA88: 1978-02-16 | BB88: 1978-02-16 | BC88: 1 | BD88: 47 | BE88: -12.61622127 | BF88: 95.37444302 | BG88: 12.7165924 | BH88: 1.022775722 | BI88: 39.85949792 | BK88: -10 | BM88: 10 | BN88: 0 | BO88: 0 | BP88: 0 | BQ88: 0 | BR88: 0 | BS88: 27.32 | BT88: 6.425217918
B89: 1978 | C89: 48 | D89: 32.6 | E89: 19.4 | G89: 0 | H89: 0 | J89: 26 | K89: 23.10404871 | L89: 11.55202436 | M89: 20 | N89: 0 | O89: 0 | P89: 0 | Q89: 0.4 | R89: 0 | S89: 5.766269478 | T89: 2.306507791 | U89: -2.306507791 | V89: -9.66761955 | W89: 90.78499244 | X89: -2.118298372 | Y89: 2.118298372 | Z89: 0.1882094187 | AA89: 0 | AB89: 0 | AC89: 1 | AD89: 0 | AE89: 0 | AZ89: 28538 | BA89: 1978-02-17 | BB89: 1978-02-17 | BC89: 1 | BD89: 48 | BE89: -12.27409599 | BF89: 95.22365478 | BG89: 12.6964873 | BH89: 1.022361288 | BI89: 39.74487572 | BK89: -10 | BM89: 10 | BN89: 0 | BO89: 0 | BP89: 0 | BQ89: 0 | BR89: 0 | BS89: 27.32 | BT89: 5.766269478
B90: 1978 | C90: 49 | D90: 31 | E90: 17 | G90: 0 | H90: 0 | J90: 24 | K90: 23.72380374 | L90: 11.86190187 | M90: 18 | N90: 0 | O90: 0 | P90: 0 | Q90: 0.4 | R90: 0 | S90: 5.567262011 | T90: 2.226904804 | U90: -2.226904804 | V90: -11.89452435 | W90: 88.78564153 | X90: -1.999350913 | Y90: 1.999350913 | Z90: 0.227553891 | AA90: 0 | AB90: 0 | AC90: 1 | AD90: 0 | AE90: 0 | AZ90: 28539 | BA90: 1978-02-18 | BB90: 1978-02-18 | BC90: 1 | BD90: 49 | BE90: -11.92833363 | BF90: 95.07169773 | BG90: 12.67622636 | BH90: 1.021940228 | BI90: 39.62783282 | BK90: -10 | BM90: 10 | BN90: 0 | BO90: 0 | BP90: 0 | BQ90: 0 | BR90: 0 | BS90: 25.4 | BT90: 5.567262011
B91: 1978 | C91: 50 | D91: 31.4 | E91: 18.6 | G91: 6.6 | H91: 0 | J91: 25 | K91: 22.61591287 | L91: 11.30795643 | M91: 19 | N91: 0 | O91: 0 | P91: 0 | Q91: 0.4 | R91: 0 | S91: 5.393126352 | T91: 2.157250541 | U91: 4.442749459 | V91: -7.011788633 | W91: 93.22839099 | X91: 4.442749459 | Y91: 2.157250541 | Z91: 0 | AA91: 0 | AB91: 0 | AC91: 1 | AD91: 0 | AE91: 0 | AZ91: 28540 | BA91: 1978-02-19 | BB91: 1978-02-19 | BC91: 1 | BD91: 50 | BE91: -11.57903665 | BF91: 94.9186163 | BG91: 12.65581551 | BH91: 1.021512667 | BI91: 39.50837386 | BK91: -10 | BM91: 10 | BN91: 0 | BO91: 0 | BP91: 0 | BQ91: 0 | BR91: 0 | BS91: 26.28 | BT91: 5.393126352
B92: 1978 | C92: 51 | D92: 33.2 | E92: 17.5 | G92: 0 | H92: 0 | J92: 25.35 | K92: 24.96992607 | L92: 12.48496303 | M92: 19.35 | N92: 0 | O92: 0 | P92: 0 | Q92: 0.4 | R92: 0 | S92: 6.351965957 | T92: 2.540786383 | U92: -2.540786383 | V92: -9.552575016 | W92: 90.88949572 | X92: -2.338895274 | Y92: 2.338895274 | Z92: 0.2018911093 | AA92: 0 | AB92: 0 | AC92: 1 | AD92: 0 | AE92: 0 | AZ92: 28541 | BA92: 1978-02-20 | BB92: 1978-02-20 | BC92: 1 | BD92: 51 | BE92: -11.22630855 | BF92: 94.76445428 | BG92: 12.63526057 | BH92: 1.021078731 | BI92: 39.38650524 | BK92: -10 | BM92: 10 | BN92: 0 | BO92: 0 | BP92: 0 | BQ92: 0 | BR92: 0 | BS92: 26.92 | BT92: 6.351965957
B93: 1978 | C93: 52 | D93: 34 | E93: 18.2 | G93: 1 | H93: 0 | J93: 26.1 | K93: 24.97028766 | L93: 12.48514383 | M93: 20.1 | N93: 0 | O93: 0 | P93: 0 | Q93: 0.4 | R93: 0 | S93: 6.660401142 | T93: 2.664160457 | U93: -1.664160457 | V93: -11.21673547 | W93: 89.38946475 | X93: -1.500030968 | Y93: 2.500030968 | Z93: 0.1641294892 | AA93: 0 | AB93: 0 | AC93: 1 | AD93: 0 | AE93: 0 | AZ93: 28542 | BA93: 1978-02-21 | BB93: 1978-02-21 | BC93: 1 | BD93: 52 | BE93: -10.87025385 | BF93: 94.60925487 | BG93: 12.61456732 | BH93: 1.020638549 | BI93: 39.26223512 | BK93: -10 | BM93: 10 | BN93: 0 | BO93: 0 | BP93: 0 | BQ93: 0 | BR93: 0 | BS93: 27.68 | BT93: 6.660401142
B94: 1978 | C94: 53 | D94: 26.8 | E94: 19.4 | G94: 7.2 | H94: 0 | J94: 23.1 | K94: 17.03364314 | L94: 8.516821572 | M94: 17.1 | N94: 0 | O94: 0 | P94: 0 | Q94: 0.4 | R94: 0 | S94: 3.882654908 | T94: 1.553061963 | U94: 5.646938037 | V94: -5.091018057 | W94: 95.03640279 | X94: 5.646938037 | Y94: 1.553061963 | Z94: 0 | AA94: 0 | AB94: 0 | AC94: 1 | AD94: 0 | AE94: 0 | AZ94: 28543 | BA94: 1978-02-22 | BB94: 1978-02-22 | BC94: 1 | BD94: 53 | BE94: -10.51097806 | BF94: 94.45306062 | BG94: 12.59374142 | BH94: 1.020192251 | BI94: 39.13557346 | BK94: -10 | BM94: 10 | BN94: 0 | BO94: 0 | BP94: 0 | BQ94: 0 | BR94: 0 | BS94: 23.84 | BT94: 3.882654908
B95: 1978 | C95: 54 | D95: 29.2 | E95: 18 | G95: 0 | H95: 0 | J95: 23.6 | K95: 20.88653195 | L95: 10.44326597 | M95: 17.6 | N95: 0 | O95: 0 | P95: 0 | Q95: 0.4 | R95: 0 | S95: 4.840171801 | T95: 1.936068721 | U95: -1.936068721 | V95: -7.027086778 | W95: 93.21412987 | X95: -1.822272919 | Y95: 1.822272919 | Z95: 0.1137958019 | AA95: 0 | AB95: 0 | AC95: 1 | AD95: 0 | AE95: 0 | AZ95: 28544 | BA95: 1978-02-23 | BB95: 1978-02-23 | BC95: 1 | BD95: 54 | BE95: -10.14858765 | BF95: 94.29591347 | BG95: 12.57278846 | BH95: 1.01973997 | BI95: 39.00653208 | BK95: -10 | BM95: 10 | BN95: 0 | BO95: 0 | BP95: 0 | BQ95: 0 | BR95: 0 | BS95: 24.72 | BT95: 4.840171801
B96: 1978 | C96: 55 | D96: 31.4 | E96: 16.8 | G96: 0 | H96: 0 | J96: 24.1 | K96: 23.76666285 | L96: 11.88333143 | M96: 18.1 | N96: 0 | O96: 0 | P96: 0 | Q96: 0.4 | R96: 0 | S96: 5.593723634 | T96: 2.237489454 | U96: -2.237489454 | V96: -9.264576231 | W96: 91.15163366 | X96: -2.062496212 | Y96: 2.062496212 | Z96: 0.1749932421 | AA96: 0 | AB96: 0 | AC96: 1 | AD96: 0 | AE96: 0 | AZ96: 28545 | BA96: 1978-02-24 | BB96: 1978-02-24 | BC96: 1 | BD96: 55 | BE96: -9.783189981 | BF96: 94.13785476 | BG96: 12.55171397 | BH96: 1.01928184 | BI96: 38.87512468 | BK96: -10 | BM96: 10 | BN96: 0 | BO96: 0 | BP96: 0 | BQ96: 0 | BR96: 0 | BS96: 25.56 | BT96: 5.593723634
B97: 1978 | C97: 56 | D97: 32.2 | E97: 16.4 | G97: 0 | H97: 0 | J97: 24.3 | K97: 24.63902199 | L97: 12.319511 | M97: 18.3 | N97: 0 | O97: 0 | P97: 0 | Q97: 0.4 | R97: 0 | S97: 5.886081893 | T97: 2.354432757 | U97: -2.354432757 | V97: -11.61900899 | W97: 89.03059691 | X97: -2.12103675 | Y97: 2.12103675 | Z97: 0.2333960073 | AA97: 0 | AB97: 0 | AC97: 1 | AD97: 0 | AE97: 0 | AZ97: 28546 | BA97: 1978-02-25 | BB97: 1978-02-25 | BC97: 1 | BD97: 56 | BE97: -9.414893347 | BF97: 93.9789252 | BG97: 12.53052336 | BH97: 1.018817996 | BI97: 38.74136684 | BK97: -10 | BM97: 10 | BN97: 0 | BO97: 0 | BP97: 0 | BQ97: 0 | BR97: 0 | BS97: 25.88 | BT97: 5.886081893
B98: 1978 | C98: 57 | D98: 30.8 | E98: 15.6 | G98: 0 | H98: 0 | J98: 23.2 | K98: 24.08177196 | L98: 12.04088598 | M98: 17.2 | N98: 0 | O98: 0 | P98: 0 | Q98: 0.4 | R98: 0 | S98: 5.580625537 | T98: 2.232250215 | U98: -2.232250215 | V98: -13.8512592 | W98: 87.06522879 | X98: -1.965368113 | Y98: 1.965368113 | Z98: 0.2668821014 | AA98: 0 | AB98: 0 | AC98: 1 | AD98: 0 | AE98: 0 | AZ98: 28547 | BA98: 1978-02-26 | BB98: 1978-02-26 | BC98: 1 | BD98: 57 | BE98: -9.043806876 | BF98: 93.81916492 | BG98: 12.50922199 | BH98: 1.018348575 | BI98: 38.60527611 | BK98: -10 | BM98: 10 | BN98: 0 | BO98: 0 | BP98: 0 | BQ98: 0 | BR98: 0 | BS98: 24.72 | BT98: 5.580625537
B99: 1978 | C99: 58 | D99: 30.6 | E99: 15.6 | G99: 16.4 | H99: 0 | J99: 23.1 | K99: 23.83704872 | L99: 11.91852436 | M99: 17.1 | N99: 0 | O99: 0 | P99: 0 | Q99: 0.4 | R99: 0 | S99: 5.511574884 | T99: 2.204629954 | U99: 14.19537005 | V99: 0 | W99: 100 | X99: 12.93477121 | Y99: 2.204629954 | Z99: 0 | AA99: 1.260598838 | AB99: 0 | AC99: 1 | AD99: 0 | AE99: 0 | AZ99: 28548 | BA99: 1978-02-27 | BB99: 1978-02-27 | BC99: 1 | BD99: 58 | BE99: -8.670040531 | BF99: 93.65861344 | BG99: 12.48781513 | BH99: 1.017873718 | BI99: 38.46687197 | BK99: -10 | BM99: 10 | BN99: 0 | BO99: 0 | BP99: 0 | BQ99: 0 | BR99: 0 | BS99: 24.6 | BT99: 5.511574884
B100: 1978 | C100: 59 | D100: 31.6 | E100: 15.6 | G100: 6.3 | H100: 0 | J100: 23.6 | K100: 24.52875256 | L100: 12.26437628 | M100: 17.6 | N100: 0 | O100: 0 | P100: 0 | Q100: 0.4 | R100: 0 | S100: 5.734996898 | T100: 2.293998759 | U100: 4.006001241 | V100: 0 | W100: 100 | X100: 0 | Y100: 2.293998759 | Z100: 0 | AA100: 4.006001241 | AB100: 0 | AC100: 1 | AD100: 0 | AE100: 0 | AZ100: 28549 | BA100: 1978-02-28 | BB100: 1978-02-28 | BC100: 1 | BD100: 59 | BE100: -8.293705065 | BF100: 93.49730974 | BG100: 12.46630797 | BH100: 1.017393564 | BI100: 38.32617588 | BK100: -10 | BM100: 10 | BN100: 0 | BO100: 0 | BP100: 0 | BQ100: 0 | BR100: 0 | BS100: 25.2 | BT100: 5.734996898
B101: 1978 | C101: 60 | D101: 30.2 | E101: 15.8 | G101: 0 | H101: 0 | J101: 23 | K101: 23.1832159 | L101: 11.59160795 | M101: 17 | N101: 0 | O101: 0 | P101: 0 | Q101: 0.4 | R101: 0 | S101: 5.344395231 | T101: 2.137758092 | U101: -2.137758092 | V101: -2.137758092 | W101: 97.88493 | X101: -2.115070004 | Y101: 2.115070004 | Z101: 0.02268808856 | AA101: 0 | AB101: 0 | AC101: 1 | AD101: 0 | AE101: 0 | AZ101: 28550 | BA101: 1978-03-01 | BB101: 1978-03-01 | BC101: 1 | BD101: 60 | BE101: -7.914911995 | BF101: 93.3352922 | BG101: 12.44470563 | BH101: 1.016908257 | BI101: 38.18321132 | BK101: -10 | BM101: 10 | BN101: 0 | BO101: 0 | BP101: 0 | BQ101: 0 | BR101: 0 | BS101: 24.44 | BT101: 5.344395231
B102: 1978 | C102: 61 | D102: 30.4 | E102: 16.6 | G102: 0.5 | H102: 0 | J102: 23.5 | K102: 22.60878599 | L102: 11.30439299 | M102: 17.5 | N102: 0 | O102: 0 | P102: 0 | Q102: 0.4 | R102: 0 | S102: 5.254885633 | T102: 2.101954253 | U102: -1.601954253 | V102: -3.739712346 | W102: 96.32935129 | X102: -1.555578703 | Y102: 2.055578703 | Z102: 0.04637555013 | AA102: 0 | AB102: 0 | AC102: 1 | AD102: 0 | AE102: 0 | AZ102: 28551 | BA102: 1978-03-02 | BB102: 1978-03-02 | BC102: 1 | BD102: 61 | BE102: -7.533773567 | BF102: 93.17259866 | BG102: 12.42301315 | BH102: 1.016417939 | BI102: 38.03800376 | BK102: -10 | BM102: 10 | BN102: 0 | BO102: 0 | BP102: 0 | BQ102: 0 | BR102: 0 | BS102: 24.88 | BT102: 5.254885633
B103: 1978 | C103: 62 | D103: 26.6 | E103: 18.6 | G103: 7.8 | H103: 0 | J103: 22.6 | K103: 17.1473194 | L103: 8.573659698 | M103: 16.6 | N103: 16.6 | O103: 1 | P103: 1 | Q103: 0.6 | R103: 0.4 | S103: 3.876019586 | T103: 2.325611752 | U103: 5.474388248 | V103: 0 | W103: 100 | X103: 3.670648707 | Y103: 2.325611752 | Z103: 0 | AA103: 1.803739542 | AB103: 3.046754223 | AC103: 1 | AD103: 0.03813695804 | AE103: 0.03813695804 | AZ103: 28552 | BA103: 1978-03-03 | BB103: 1978-03-03 | BC103: 1 | BD103: 62 | BE103: -7.150402718 | BF103: 93.00926645 | BG103: 12.40123553 | BH103: 1.015922755 | BI103: 37.8905807 | BK103: -9 | BM103: 10 | BN103: 0 | BO103: 0.03813695804 | BP103: 0.03813695804 | BQ103: 0 | BR103: 0 | BS103: 23.4 | BT103: 3.876019586
B104: 1978 | C104: 63 | D104: 25.6 | E104: 19.1 | G104: 3.6 | H104: 0 | J104: 22.35 | K104: 15.39535609 | L104: 7.697678043 | M104: 16.35 | N104: 32.95 | O104: 2 | P104: 1 | Q104: 0.6 | R104: 0.4 | S104: 3.453436863 | T104: 2.072062118 | U104: 1.527937882 | V104: 0 | W104: 100 | X104: 0 | Y104: 2.072062118 | Z104: 0 | AA104: 1.527937882 | AB104: 2.735463491 | AC104: 1 | AD104: 0.07237741483 | AE104: 0.07237741483 | AZ104: 28553 | BA104: 1978-03-04 | BB104: 1978-03-04 | BC104: 1 | BD104: 63 | BE104: -6.764913051 | BF104: 92.84533237 | BG104: 12.37937765 | BH104: 1.015422854 | BI104: 37.74097168 | BK104: -8 | BM104: 10 | BN104: 0 | BO104: 0.07237741483 | BP104: 0.07237741483 | BQ104: 0 | BR104: 0 | BS104: 23 | BT104: 3.453436863
B105: 1978 | C105: 64 | D105: 28.8 | E105: 19.2 | G105: 0 | H105: 0 | J105: 24 | K105: 18.63454434 | L105: 9.317272169 | M105: 18 | N105: 50.95 | O105: 3 | P105: 1 | Q105: 0.6 | R105: 0.4 | S105: 4.337596574 | T105: 2.602557944 | U105: -2.602557944 | V105: -2.602557944 | W105: 97.4310167 | X105: -2.568983302 | Y105: 2.568983302 | Z105: 0.03357464216 | AA105: 0 | AB105: 3.311005957 | AC105: 1 | AD105: 0.1138220756 | AE105: 0.1136082107 | AZ105: 28554 | BA105: 1978-03-05 | BB105: 1978-03-05 | BC105: 1 | BD105: 64 | BE105: -6.377418794 | BF105: 92.68083273 | BG105: 12.35744436 | BH105: 1.014918383 | BI105: 37.58920827 | BK105: -7 | BM105: 10 | BN105: 0 | BO105: 0.1138220756 | BP105: 0.1136082107 | BQ105: 0 | BR105: 0 | BS105: 24.96 | BT105: 4.337596574
B106: 1978 | C106: 65 | D106: 30.6 | E106: 17.8 | G106: 0 | H106: 0 | J106: 24.2 | K106: =IF(F106="",$C$28*SQRT((D106-E106))*BI106,F106) -> 21.42922993 | L106: =K106*0.5 -> 10.71461497 | M106: =MAX((J106-$C$14)*BC106,0) -> 18.2 | N106: 69.15 | O106: 4 | P106: =IF(AND(MAX($L$9:$L$25)=0,$O106=0),0,IF(ISERROR($BL106)=TRUE,IF($O106=0,0,(VLOOKUP($BM106,$I$9:$N$24,4,0))),(IF($N106=0,0,VLOOKUP($BL106,$K$9:$N$24,2,0))))) -> 1 | Q106: =IF(AND(MAX($L$9:$L$25)=0,$O106=0),$C$20,IF(ISERROR($BL106)=TRUE,IF($O106=0,$C$20,(VLOOKUP($BM106,$I$9:$N$24,5,0))),(IF($N106=0,$C$20,VLOOKUP($BL106,$K$9:$N$24,3,0))))) -> 0.6 | R106: =IF(AND(MAX($L$9:$L$25)=0,$O106=0),0,IF(ISERROR($BL106)=TRUE,IF($O106=0,0,(VLOOKUP($BM106,$I$9:$N$24,6,0))),(IF($N106=0,0,VLOOKUP($BL106,$K$9:$N$24,4,0))))) -> 0.4 | S106: 5.036189953 | T106: 3.021713972 | U106: =G106+BQ106-T106 -> -3.021713972 | V106: -5.624271916 | W106: 94.53096633 | X106: -2.900050371 | Y106: =IF(U106<0,MIN(W106,G106+BQ106+ABS(X106)),MIN(T106,W106)) -> 2.900050371 | Z106: 0.1216636014 | AA106: 0 | AB106: =$L106*(1-$C$25)*(1-EXP(-$C$24*$P106)) -> 3.807568711 | AC106: 1 | AD106: 0.1614823322 | AE106: =IF(AD106=0,0,(AD106-AD105)*(1-R106*(1-Y106/T106))+AE105) -> 0.1605008872 | AJ106: =IF(ISERROR(IF(AI106="","",AVERAGEIFS(AE:AE,$B:$B,$AH106,$BN:$BN,1)*(1-$C$29)))=TRUE,"",IF(AI106="","",MAX(0,AVERAGEIFS(AE:AE,$B:$B,$AH106,$BN:$BN,1)*(1-$C$29)))) ->  | AZ106: 28555 | BA106: =IF($AZ$40=1,C106+CONCATENATE("1/1/",B106)-1,DATE(B106,VLOOKUP($C106,$BU$42:$BZ$77,6,0),VLOOKUP($C106,$BU$42:$BZ$77,5,0))) -> 1978-03-06 | BB106: 1978-03-06 | BC106: =IF($AZ$40=1,1,VLOOKUP($C106,$BU$42:$BW$77,2,0)) -> 1 | BD106: =IF($AZ$40=1,C106,VLOOKUP($C106,$BU$42:$BW$77,3,0)) -> 65 | BE106: -5.98803477 | BF106: =ACOS(-TAN(RADIANS($C$11))*TAN(RADIANS($BE106)))*(180/PI()) -> 92.51580337 | BG106: 12.33544045 | BH106: 1.014409491 | BI106: =(118.11/PI())*BH106*((PI()/180)*BF106*SIN(RADIANS($C$11))*SIN(RADIANS($BE106))+COS(RADIANS($C$11))*COS(RADIANS($BE106))*SIN(RADIANS(BF106))) -> 37.43532409 | BJ106: =MAX(IF(N106-$K$10>0,-9999,N106-$K$10),IF(N106-$K$11>0,-9999,N106-$K$11),IF(N106-$K$12>0,-9999,N106-$K$12),IF(N106-$K$13>0,-9999,N106-$K$13),IF(N106-$K$14>0,-9999,N106-$K$14),IF(N106-$K$15>0,-9999,N106-$K$15),IF(N106-$K$16>0,-9999,N106-$K$16),IF(N106-$K$17>0,-9999,N106-$K$17),IF(N106-$K$18>0,-9999,N106-$K$18),IF(N106-$K$19>0,-9999,N106-$K$19),IF(N106-$K$20>0,-9999,N106-$K$20),IF(N106-$K$21>0,-9999,N106-$K$21),IF(N106-$K$22>0,-9999,N106-$K$22),IF(N106-$K$23>0,-9999,N106-$K$23),IF(N106-$K$24>0,-9999,N106-$K$24)) ->  | BK106: =MAX(IF(O106-$I$10>0,-9999,O106-$I$10),IF(O106-$I$11>0,-9999,O106-$I$11),IF(O106-$I$12>0,-9999,O106-$I$12),IF(O106-$I$13>0,-9999,O106-$I$13),IF(O106-$I$14>0,-9999,O106-$I$14),IF(O106-$I$15>0,-9999,O106-$I$15),IF(O106-$I$16>0,-9999,O106-$I$16),IF(O106-$I$17>0,-9999,O106-$I$17),IF(O106-$I$18>0,-9999,O106-$I$18),IF(O106-$I$19>0,-9999,O106-$I$19),IF(O106-$I$20>0,-9999,O106-$I$20),IF(O106-$I$21>0,-9999,O106-$I$21),IF(O106-$I$22>0,-9999,O106-$I$22),IF(O106-$I$23>0,-9999,O106-$I$23),IF(O106-$I$24>0,-9999,O106-$I$24)) -> -6 | BL106: =N106-BJ106 ->  | BM106: =O106-BK106 -> 10 | BN106: 0 | BO106: =AD106 -> 0.1614823322 | BP106: =AE106 -> 0.1605008872 | BQ106: 0 | BR106: 0 | BS106: 25.48 | BT106: 5.036189953
B107: 1978 | C107: 66 | D107: 29.4 | E107: 17.1 | G107: 6.2 | H107: 0 | J107: 23.25 | K107: 20.91900028 | L107: 10.45950014 | M107: 17.25 | N107: 86.4 | O107: =IF(OR(O106>0,C107=$C$18),IF(BC107+O106>=MAX($I$10:$I$24),0,BC107+O106),0) -> 5 | P107: 1 | Q107: 0.6 | R107: 0.4 | S107: =IF(I107="",IF($C$34=1,BT107,0.011*(BI107/2.45)*0.36*(3*D107-E107)*BC107),I107) -> 4.826038285 | T107: 2.895622971 | U107: 3.304377029 | V107: -2.188429022 | W107: 97.83534336 | X107: =W107-W106 -> 3.304377029 | Y107: 2.895622971 | Z107: 0 | AA107: 0 | AB107: 3.716910555 | AC107: 1 | AD107: =IF($P107=0,0,(($C$21*$AB107*$AC107*$C$22/(100*(1-$C$23)))*$BC107)+AD106) -> 0.2080077988 | AE107: 0.2070263538 | AI107: =IF(ISERROR(IF(AH107="","",AVERAGEIFS(AD:AD,$B:$B,$AH107,$BN:$BN,1)))=TRUE,"",IF(AH107="","",AVERAGEIFS(AD:AD,$B:$B,$AH107,$BN:$BN,1)*(1-$C$29))) ->  | AK107: =IF(AH107="","",SUMIFS(BR:BR,B:B,AH107,O:O,">0")) ->  | AZ107: =BA107*1 -> 28556 | BA107: 1978-03-07 | BB107: =IF($AZ$40=1,BA107,TRUNC(AVERAGE(BA107:BA108))) -> 1978-03-07 | BC107: 1 | BD107: 66 | BE107: -5.596876363 | BF107: 92.35027966 | BG107: =$BF107*(2/15) -> 12.31337062 | BH107: 1.013896329 | BI107: 37.2793548 | BK107: -5 | BM107: 10 | BN107: =IF(AND(AD107>0,AD108=0),1,0) -> 0 | BO107: 0.2080077988 | BP107: 0.2070263538 | BQ107: =IF($C$30="Sim",IF(W106/$C$26<$C$31,$C$26-W106+T106,0),H107) -> 0 | BR107: =BQ107/$C$32 -> 0 | BS107: =0.6*D107+0.4*E107 -> 24.48 | BT107: =IF(F107="",K107,F107)*23.923*(0.000204 -0.000183 *$BT$40)*(BS107+29)*IF(D107>32,((D107-32)*0.05+1.1),IF(D107<5,0.01*EXP(0.18*(D107+20)),1.1)) -> 4.826038285
B108: 1978 | C108: 67 | D108: 28.4 | E108: 17.2 | G108: 1.2 | H108: 0 | J108: =AVERAGE(D108:E108) -> 22.8 | K108: 19.87708142 | L108: 9.938540709 | M108: 16.8 | N108: =IF(OR(N107>0,C108=$C$18),IF(AND(MAX($K$10:$K$24)=0,O108>0),N107+M108,IF(M108+N107>=MAX($K$10:$K$24),0,M108+N107)),0) -> 103.2 | O108: 6 | P108: 1 | Q108: 0.6 | R108: 0.4 | S108: 4.537648914 | T108: =S108*Q108 -> 2.722589348 | U108: -1.522589348 | V108: =IF(U108<0,U108+V107,$C$26*LN(W108/$C$26)) -> -3.71101837 | W108: =IF(U108<0,$C$26*EXP(-ABS(V108/$C$26)),MIN(W107+U108,$C$26)) -> 96.35699598 | X108: -1.478347377 | Y108: 2.678347377 | Z108: =T108-Y108 -> 0.0442419714 | AA108: =IF(OR(W108<$C$26,Z108>0),0,U108-X108) -> 0 | AB108: 3.531781286 | AC108: 1 | AD108: 0.2522159577 | AE108: 0.2509471603 | AZ108: 28557 | BA108: 1978-03-08 | BB108: 1978-03-08 | BC108: 1 | BD108: 67 | BE108: =23.45*SIN(RADIANS(360*(BD108-80)/365)) -> -5.20405948 | BF108: 92.18429658 | BG108: 12.29123954 | BH108: =1+0.033*COS(RADIANS((360/365)*BD108)) -> 1.013379049 | BI108: 37.12133809 | BK108: -4 | BM108: 10 | BN108: 0 | BO108: 0.2522159577 | BP108: 0.2509471603 | BQ108: 0 | BR108: 0 | BS108: 23.92 | BT108: 4.537648914
B109: 1978 | C109: 68 | D109: 25.9 | E109: 16.1 | G109: 5.4 | H109: 0 | J109: 21 | K109: 18.51315423 | L109: 9.256577116 | M109: 15 | N109: 118.2 | O109: 7 | P109: 1 | Q109: 0.6 | R109: 0.4 | S109: 4.071352345 | T109: 2.442811407 | U109: 2.957188593 | V109: -0.6881779498 | W109: 99.31418457 | X109: 2.957188593 | Y109: 2.442811407 | Z109: 0 | AA109: 0 | AB109: 3.289437232 | AC109: =MIN(1,MAX(0,IF(AND(J109>=$C$15,J109<=$C$16),1,IF(OR(J109<$C$14,J109>$C$17),0,IF(AND(J109>$C$16,J109<=$C$17),(J109-MAX($I$10:$I$24))/(C83-MAX($I$10:$I$24)),IF(AND(J109<$C$15,J109>=$C$14),(J109-$C$14)/($C$15-$C$14))))))) -> 1 | AD109: 0.2933906375 | AE109: 0.2921218402 | AZ109: 28558 | BA109: 1978-03-09 | BB109: 1978-03-09 | BC109: 1 | BD109: 68 | BE109: -4.809700522 | BF109: 92.01788868 | BG109: 12.26905182 | BH109: 1.012857805 | BI109: 36.9613137 | BK109: -3 | BM109: 10 | BN109: 0 | BO109: 0.2933906375 | BP109: 0.2921218402 | BQ109: 0 | BR109: 0 | BS109: 21.98 | BT109: 4.071352345
B110: 1978 | C110: 69 | D110: 23.9 | E110: 15.8 | G110: 27.9 | H110: 0 | J110: 19.85 | K110: 16.75723366 | L110: 8.37861683 | M110: 13.85 | N110: 132.05 | O110: 8 | P110: 1 | Q110: 0.6 | R110: 0.4 | S110: 3.589777071 | T110: 2.153866242 | U110: 25.74613376 | V110: 0 | W110: 100 | X110: 0.6858154279 | Y110: 2.153866242 | Z110: 0 | AA110: 25.06031833 | AB110: 2.977443368 | AC110: 1 | AD110: 0.3306600148 | AE110: 0.3293912175 | AZ110: 28559 | BA110: 1978-03-10 | BB110: 1978-03-10 | BC110: 1 | BD110: 69 | BE110: -4.413916346 | BF110: 91.85109013 | BG110: 12.24681202 | BH110: 1.012332751 | BI110: 36.79932337 | BK110: -2 | BM110: 10 | BN110: 0 | BO110: 0.3306600148 | BP110: 0.3293912175 | BQ110: 0 | BR110: 0 | BS110: 20.66 | BT110: 3.589777071
B111: 1978 | C111: 70 | D111: 28.5 | E111: 18.4 | G111: 0 | H111: 0 | J111: 23.45 | K111: 18.62866513 | L111: 9.314332566 | M111: 17.45 | N111: 149.5 | O111: 9 | P111: 1 | Q111: 0.6 | R111: 0.4 | S111: 4.296048038 | T111: 2.577628823 | U111: -2.577628823 | V111: -2.577628823 | W111: 97.45530842 | X111: -2.544691578 | Y111: 2.544691578 | Z111: 0.03293724492 | AA111: 0 | AB111: 3.309961333 | AC111: 1 | AD111: 0.3720915998 | AE111: 0.3706110354 | AZ111: 28560 | BA111: 1978-03-11 | BB111: 1978-03-11 | BC111: 1 | BD111: 70 | BE111: -4.016824231 | BF111: 91.68393476 | BG111: 12.22452463 | BH111: 1.011804042 | BI111: 36.63541085 | BK111: -1 | BM111: 10 | BN111: 0 | BO111: 0.3720915998 | BP111: 0.3706110354 | BQ111: 0 | BR111: 0 | BS111: 24.46 | BT111: 4.296048038
B112: 1978 | C112: 71 | D112: 28 | E112: 17.4 | G112: 0 | H112: 0 | J112: 22.7 | K112: 18.99783783 | L112: 9.498918917 | M112: 16.7 | N112: 166.2 | O112: 10 | P112: 1 | Q112: 0.6 | R112: 0.4 | S112: 4.323817965 | T112: 2.594290779 | U112: -2.594290779 | V112: -5.171919602 | W112: 94.95954796 | X112: -2.495760462 | Y112: 2.495760462 | Z112: 0.09853031689 | AA112: 0 | AB112: 3.375556337 | AC112: 1 | AD112: 0.4143442533 | AE112: 0.4122217921 | AZ112: 28561 | BA112: 1978-03-12 | BB112: 1978-03-12 | BC112: 1 | BD112: 71 | BE112: -3.618541845 | BF112: 91.51645606 | BG112: 12.20219414 | BH112: 1.011271835 | BI112: 36.46962191 | BK112: 0 | BM112: 10 | BN112: 0 | BO112: 0.4143442533 | BP112: 0.4122217921 | BQ112: 0 | BR112: 0 | BS112: 23.76 | BT112: 4.323817965
B113: 1978 | C113: 72 | D113: 32.4 | E113: 16.7 | G113: 0 | H113: 0 | J113: 24.55 | K113: 23.01444003 | L113: 11.50722001 | M113: 18.55 | N113: 184.75 | O113: 11 | P113: 1.5 | Q113: 0.85 | R113: 0.4 | S113: 5.57177278 | T113: 4.736006863 | U113: -4.736006863 | V113: -9.907926465 | W113: 90.56709175 | X113: -4.392456211 | Y113: 4.392456211 | Z113: 0.3435506522 | AA113: 0 | AB113: 5.430056971 | AC113: 1 | AD113: 0.4823135871 | AE113: 0.4782189236 | AZ113: 28562 | BA113: 1978-03-13 | BB113: 1978-03-13 | BC113: 1 | BD113: 72 | BE113: -3.219187206 | BF113: 91.34868724 | BG113: 12.17982496 | BH113: 1.010736289 | BI113: 36.30200427 | BK113: -19 | BM113: 30 | BN113: 0 | BO113: 0.4823135871 | BP113: 0.4782189236 | BQ113: 0 | BR113: 0 | BS113: 26.12 | BT113: 5.57177278
B114: 1978 | C114: 73 | D114: 33 | E114: 17.9 | G114: 0 | H114: 0 | J114: 25.45 | K114: 22.4650692 | L114: 11.2325346 | M114: 19.45 | N114: 204.2 | O114: 12 | P114: 1.5 | Q114: 0.85 | R114: 0.4 | S114: 5.669556144 | T114: 4.819122723 | U114: -4.819122723 | V114: -14.72704919 | W114: 86.3060495 | X114: -4.26104225 | Y114: 4.26104225 | Z114: 0.5580804724 | AA114: 0 | AB114: 5.300437704 | AC114: 1 | AD114: 0.5486604452 | AE114: 0.5414924518 | AZ114: 28563 | BA114: 1978-03-14 | BB114: 1978-03-14 | BC114: 1 | BD114: 73 | BE114: -2.818878653 | BF114: 91.18066121 | BG114: 12.1574215 | BH114: 1.010197561 | BI114: 36.13260759 | BK114: -18 | BM114: 30 | BN114: 0 | BO114: 0.5486604452 | BP114: 0.5414924518 | BQ114: 0 | BR114: 0 | BS114: 26.96 | BT114: 5.669556144
B115: 1978 | C115: 74 | D115: 32.4 | E115: 17.2 | G115: 0 | H115: 0 | J115: 24.8 | K115: 22.43258776 | L115: 11.21629388 | M115: 18.8 | N115: 223 | O115: 13 | P115: 1.5 | Q115: 0.85 | R115: 0.4 | S115: 5.450612689 | T115: 4.633020786 | U115: -4.633020786 | V115: -19.36006997 | W115: 82.39868568 | X115: -3.907363823 | Y115: 3.907363823 | Z115: 0.725656963 | AA115: 0 | AB115: 5.292773989 | AC115: 1 | AD115: 0.6149113748 | AE115: 0.6035927029 | AZ115: 28564 | BA115: 1978-03-15 | BB115: 1978-03-15 | BC115: 1 | BD115: 74 | BE115: -2.417734805 | BF115: 91.01241068 | BG115: 12.13498809 | BH115: 1.009655811 | BI115: 35.96148347 | BK115: -17 | BM115: 30 | BN115: 0 | BO115: 0.6149113748 | BP115: 0.6035927029 | BQ115: 0 | BR115: 0 | BS115: 26.32 | BT115: 5.450612689
B116: 1978 | C116: 75 | D116: 33.7 | E116: 16.2 | G116: 0 | H116: 0 | J116: 24.95 | K116: 23.95436999 | L116: 11.97718499 | M116: 18.95 | N116: 241.95 | O116: 14 | P116: 1.5 | Q116: 0.85 | R116: 0.4 | S116: 6.200462027 | T116: 5.270392723 | U116: -5.270392723 | V116: -24.6304627 | W116: 78.16840666 | X116: -4.230279015 | Y116: 4.230279015 | Z116: 1.040113708 | AA116: 0 | AB116: 5.651825272 | AC116: 1 | AD116: 0.685656636 | AE116: 0.668753324 | AZ116: 28565 | BA116: 1978-03-16 | BB116: 1978-03-16 | BC116: 1 | BD116: 75 | BE116: -2.01587453 | BF116: 90.84396811 | BG116: 12.11252908 | BH116: 1.0091112 | BI116: 35.78868541 | BK116: -16 | BM116: 30 | BN116: 0 | BO116: 0.685656636 | BP116: 0.668753324 | BQ116: 0 | BR116: 0 | BS116: 26.7 | BT116: 6.200462027
B117: 1978 | C117: 76 | D117: 33.4 | E117: 16.6 | G117: 0 | H117: 0 | J117: 25 | K117: 23.35601015 | L117: 11.67800508 | M117: 19 | N117: 260.95 | O117: 15 | P117: 1.5 | Q117: 0.85 | R117: 0.4 | S117: 5.966910134 | T117: 5.071873614 | U117: -5.071873614 | V117: -29.70233631 | W117: 74.30266528 | X117: -3.865741386 | Y117: 3.865741386 | Z117: 1.206132228 | AA117: 0 | AB117: 5.510647472 | AC117: 1 | AD117: 0.7546347405 | AE117: 0.73117001 | AZ117: 28566 | BA117: 1978-03-17 | BB117: 1978-03-17 | BC117: 1 | BD117: 76 | BE117: -1.613416909 | BF117: 90.67536578 | BG117: 12.09004877 | BH117: 1.008563889 | BI117: 35.61426877 | BK117: -15 | BM117: 30 | BN117: 0 | BO117: 0.7546347405 | BP117: 0.73117001 | BQ117: 0 | BR117: 0 | BS117: 26.68 | BT117: 5.966910134
B118: 1978 | C118: 77 | D118: 33 | E118: 16.1 | G118: 0 | H118: 0 | J118: 24.55 | K118: 23.30966874 | L118: 11.65483437 | M118: 18.55 | N118: 279.5 | O118: 16 | P118: 1.5 | Q118: 0.85 | R118: 0.4 | S118: 5.807020583 | T118: 4.935967495 | U118: -4.935967495 | V118: -34.63830381 | W118: 70.72415348 | X118: -3.578511796 | Y118: 3.578511796 | Z118: 1.3574557 | AA118: 0 | AB118: 5.499713619 | AC118: 1 | AD118: 0.8234759834 | AE118: 0.7924383555 | AZ118: 28567 | BA118: 1978-03-18 | BB118: 1978-03-18 | BC118: 1 | BD118: 77 | BE118: -1.210481196 | BF118: 90.50663584 | BG118: 12.06755144 | BH118: 1.008014041 | BI118: 35.43829073 | BK118: -14 | BM118: 30 | BN118: 0 | BO118: 0.8234759834 | BP118: 0.7924383555 | BQ118: 0 | BR118: 0 | BS118: 26.24 | BT118: 5.807020583
B119: 1978 | C119: 78 | D119: 33.8 | E119: 16.5 | G119: 0 | H119: 0 | J119: 25.15 | K119: 23.4657977 | L119: 11.73289885 | M119: 19.15 | N119: 298.65 | O119: 17 | P119: 1.5 | Q119: 0.85 | R119: 0.4 | S119: 6.119337894 | T119: 5.20143721 | U119: -5.20143721 | V119: -39.83974102 | W119: 67.13951554 | X119: -3.584637941 | Y119: 3.584637941 | Z119: 1.616799269 | AA119: 0 | AB119: 5.536550889 | AC119: 1 | AD119: 0.8927783273 | AE119: 0.8531240057 | AZ119: 28568 | BA119: 1978-03-19 | BB119: 1978-03-19 | BC119: 1 | BD119: 78 | BE119: -0.8071867926 | BF119: 90.33781029 | BG119: 12.04504137 | BH119: 1.007461818 | BI119: 35.26081028 | BK119: -13 | BM119: 30 | BN119: 0 | BO119: 0.8927783273 | BP119: 0.8531240057 | BQ119: 0 | BR119: 0 | BS119: 26.88 | BT119: 6.119337894
B120: 1978 | C120: 79 | D120: 33.9 | E120: 16.8 | G120: 0 | H120: 0 | J120: 25.35 | K120: 23.21138192 | L120: 11.60569096 | M120: 19.35 | N120: 318 | O120: 18 | P120: 1.5 | Q120: 0.85 | R120: 0.4 | S120: 6.098004628 | T120: 5.183303934 | U120: -5.183303934 | V120: -45.02304495 | W120: 63.74812275 | X120: -3.391392791 | Y120: 3.391392791 | Z120: 1.791911142 | AA120: 0 | AB120: 5.476523698 | AC120: 1 | AD120: 0.9613292964 | AE120: 0.9121955194 | AZ120: 28569 | BA120: 1978-03-20 | BB120: 1978-03-20 | BC120: 1 | BD120: 79 | BE120: -0.4036532019 | BF120: 90.16892106 | BG120: 12.02252281 | BH120: 1.006907383 | BI120: 35.08188815 | BK120: -12 | BM120: 30 | BN120: 0 | BO120: 0.9613292964 | BP120: 0.9121955194 | BQ120: 0 | BR120: 0 | BS120: 27.06 | BT120: 6.098004628
B121: 1978 | C121: 80 | D121: 33.8 | E121: 15.8 | G121: 0 | H121: 0 | J121: 24.8 | K121: 23.69198275 | L121: 11.84599137 | M121: 18.8 | N121: 336.8 | O121: 19 | P121: 1.5 | Q121: 0.85 | R121: 0.4 | S121: 6.147363782 | T121: 5.225259215 | U121: -5.225259215 | V121: -50.24830416 | W121: 60.50264871 | X121: -3.245474041 | Y121: 3.245474041 | Z121: 1.979785174 | AA121: 0 | AB121: 5.589917284 | AC121: 1 | AD121: 1.03129964 | AE121: 0.9715615091 | AZ121: 28570 | BA121: 1978-03-21 | BB121: 1978-03-21 | BC121: 1 | BD121: 80 | BE121: 0 | BF121: 90 | BG121: 12 | BH121: 1.006350902 | BI121: 34.90158679 | BK121: -11 | BM121: 30 | BN121: 0 | BO121: 1.03129964 | BP121: 0.9715615091 | BQ121: 0 | BR121: 0 | BS121: 26.6 | BT121: 6.147363782
B122: 1978 | C122: 81 | D122: 32.3 | E122: 14.9 | G122: 0 | H122: 0 | J122: 23.6 | K122: 23.17255662 | L122: 11.58627831 | M122: 17.6 | N122: 354.4 | O122: 20 | P122: 1.5 | Q122: 0.85 | R122: 0.4 | S122: 5.505974641 | T122: 4.680078445 | U122: -4.680078445 | V122: -54.92838261 | W122: 57.73631548 | X122: -2.766333228 | Y122: 2.766333228 | Z122: 1.913745216 | AA122: 0 | AB122: 5.467363206 | AC122: 1 | AD122: 1.099735945 | AE122: 1.028804014 | AZ122: 28571 | BA122: 1978-03-22 | BB122: 1978-03-22 | BC122: 1 | BD122: 81 | BE122: 0.4036532019 | BF122: 89.83107894 | BG122: 11.97747719 | BH122: 1.005792539 | BI122: 34.71997031 | BK122: -10 | BM122: 30 | BN122: 0 | BO122: 1.099735945 | BP122: 1.028804014 | BQ122: 0 | BR122: 0 | BS122: 25.34 | BT122: 5.505974641
B123: 1978 | C123: 82 | D123: 31.6 | E123: 15.2 | G123: 0 | H123: 0 | J123: 23.4 | K123: 22.37833807 | L123: 11.18916903 | M123: 17.4 | N123: 371.8 | O123: 21 | P123: 1.5 | Q123: 0.85 | R123: 0.4 | S123: 5.216769035 | T123: 4.43425368 | U123: -4.43425368 | V123: -59.36263629 | W123: 55.23207333 | X123: -2.504242149 | Y123: 2.504242149 | Z123: 1.93001153 | AA123: 0 | AB123: 5.279974247 | AC123: 1 | AD123: 1.165826657 | AE123: 1.083388318 | AZ123: 28572 | BA123: 1978-03-23 | BB123: 1978-03-23 | BC123: 1 | BD123: 82 | BE123: 0.8071867926 | BF123: 89.66218971 | BG123: 11.95495863 | BH123: 1.00523246 | BI123: 34.53710443 | BK123: -9 | BM123: 30 | BN123: 0 | BO123: 1.165826657 | BP123: 1.083388318 | BQ123: 0 | BR123: 0 | BS123: 25.04 | BT123: 5.216769035
B124: 1978 | C124: 83 | D124: 31.7 | E124: 17 | G124: 0 | H124: 0 | J124: 24.35 | K124: 21.07385721 | L124: 10.53692861 | M124: 18.35 | N124: 390.15 | O124: 22 | P124: 1.5 | Q124: 0.85 | R124: 0.4 | S124: 4.983580787 | T124: 4.236043669 | U124: -4.236043669 | V124: -63.59867996 | W124: 52.94128061 | X124: -2.290792715 | Y124: 2.290792715 | Z124: 1.945250954 | AA124: 0 | AB124: 4.972193333 | AC124: 1 | AD124: 1.228064802 | AE124: 1.134194209 | AZ124: 28573 | BA124: 1978-03-24 | BB124: 1978-03-24 | BC124: 1 | BD124: 83 | BE124: 1.210481196 | BF124: 89.49336416 | BG124: 11.93244856 | BH124: 1.00467083 | BI124: 34.35305645 | BK124: -8 | BM124: 30 | BN124: 0 | BO124: 1.228064802 | BP124: 1.134194209 | BQ124: 0 | BR124: 0 | BS124: 25.82 | BT124: 4.983580787
B125: 1978 | C125: 84 | D125: 31.6 | E125: 16 | G125: 0 | H125: 0 | J125: 23.8 | K125: 21.59237967 | L125: 10.79618983 | M125: 17.8 | N125: 407.95 | O125: 23 | P125: 1.5 | Q125: 0.85 | R125: 0.4 | S125: 5.063355199 | T125: 4.303851919 | U125: -4.303851919 | V125: -67.90253188 | W125: 50.71110232 | X125: -2.230178297 | Y125: 2.230178297 | Z125: 2.073673622 | AA125: 0 | AB125: 5.094534197 | AC125: 1 | AD125: 1.291834316 | AE125: 1.185673601 | AZ125: 28574 | BA125: 1978-03-25 | BB125: 1978-03-25 | BC125: 1 | BD125: 84 | BE125: 1.613416909 | BF125: 89.32463422 | BG125: 11.90995123 | BH125: 1.004107816 | BI125: 34.16789519 | BK125: -7 | BM125: 30 | BN125: 0 | BO125: 1.291834316 | BP125: 1.185673601 | BQ125: 0 | BR125: 0 | BS125: 25.36 | BT125: 5.063355199
B126: 1978 | C126: 85 | D126: 32.8 | E126: 16.2 | G126: 0 | H126: 0 | J126: 24.5 | K126: 22.15230957 | L126: 11.07615479 | M126: 18.5 | N126: 426.45 | O126: 24 | P126: 1.5 | Q126: 0.85 | R126: 0.4 | S126: 5.462782056 | T126: 4.643364747 | U126: -4.643364747 | V126: -72.54589662 | W126: 48.41023313 | X126: -2.300869183 | Y126: 2.300869183 | Z126: 2.342495564 | AA126: 0 | AB126: 5.226644788 | AC126: 1 | AD126: 1.35725749 | AE126: 1.237894841 | AZ126: 28575 | BA126: 1978-03-26 | BB126: 1978-03-26 | BC126: 1 | BD126: 85 | BE126: 2.01587453 | BF126: 89.15603189 | BG126: 11.88747092 | BH126: 1.003543584 | BI126: 33.9816909 | BK126: -6 | BM126: 30 | BN126: 0 | BO126: 1.35725749 | BP126: 1.237894841 | BQ126: 0 | BR126: 0 | BS126: 26.16 | BT126: 5.462782056
B127: 1978 | C127: 86 | D127: 32.7 | E127: 17.8 | G127: 0 | H127: 0 | J127: 25.25 | K127: 20.87177279 | L127: 10.4358864 | M127: 19.25 | N127: 445.7 | O127: 25 | P127: 1.5 | Q127: 0.85 | R127: 0.4 | S127: 5.178308472 | T127: 4.401562201 | U127: -4.401562201 | V127: -76.94745883 | W127: 46.32564047 | X127: -2.08459266 | Y127: 2.08459266 | Z127: 2.316969542 | AA127: 0 | AB127: 4.924513272 | AC127: 1 | AD127: 1.418898811 | AE127: 1.286557038 | AZ127: 28576 | BA127: 1978-03-27 | BB127: 1978-03-27 | BC127: 1 | BD127: 86 | BE127: 2.417734805 | BF127: 88.98758932 | BG127: 11.86501191 | BH127: 1.002978303 | BI127: 33.79451528 | BK127: -5 | BM127: 30 | BN127: 0 | BO127: 1.418898811 | BP127: 1.286557038 | BQ127: 0 | BR127: 0 | BS127: 26.74 | BT127: 5.178308472
B128: 1978 | C128: 87 | D128: 31.4 | E128: 18.4 | G128: 0 | H128: 0 | J128: 24.9 | K128: 19.38715958 | L128: 9.693579791 | M128: 18.9 | N128: 464.6 | O128: 26 | P128: 1.5 | Q128: 0.85 | R128: 0.4 | S128: 4.616487899 | T128: 3.924014714 | U128: -3.924014714 | V128: -80.87147354 | W128: 44.54301941 | X128: -1.78262106 | Y128: 1.78262106 | Z128: 2.141393654 | AA128: 0 | AB128: 4.574231697 | AC128: 1 | AD128: 1.476155574 | AE128: 1.33131545 | AZ128: 28577 | BA128: 1978-03-28 | BB128: 1978-03-28 | BC128: 1 | BD128: 87 | BE128: 2.818878653 | BF128: 88.81933879 | BG128: 11.8425785 | BH128: 1.002412139 | BI128: 33.60644133 | BK128: -4 | BM128: 30 | BN128: 0 | BO128: 1.476155574 | BP128: 1.33131545 | BQ128: 0 | BR128: 0 | BS128: 26.2 | BT128: 4.616487899
B129: 1978 | C129: 88 | D129: 32.6 | E129: 18.6 | G129: 32.5 | H129: 0 | J129: 25.6 | K129: 20.00591968 | L129: 10.00295984 | M129: 19.6 | N129: 484.2 | O129: 27 | P129: 1.5 | Q129: 0.85 | R129: 0.4 | S129: 4.964674096 | T129: 4.219972981 | U129: 28.28002702 | V129: -31.7137709 | W129: 72.82304643 | X129: 28.28002702 | Y129: 4.219972981 | Z129: 0 | AA129: 0 | AB129: 4.720222759 | AC129: 1 | AD129: 1.535239741 | AE129: 1.390399618 | AZ129: 28578 | BA129: 1978-03-29 | BB129: 1978-03-29 | BC129: 1 | BD129: 88 | BE129: 3.219187206 | BF129: 88.65131276 | BG129: 11.82017504 | BH129: 1.001845261 | BI129: 33.41754336 | BK129: -3 | BM129: 30 | BN129: 0 | BO129: 1.535239741 | BP129: 1.390399618 | BQ129: 0 | BR129: 0 | BS129: 27 | BT129: 4.964674096
B130: 1978 | C130: 89 | D130: 24.2 | E130: 17 | G130: 0 | H130: 0 | J130: 20.6 | K130: 14.26556856 | L130: 7.132784279 | M130: 14.6 | N130: 498.8 | O130: 28 | P130: 1.5 | Q130: 0.85 | R130: 0.4 | S130: 3.096621724 | T130: 2.632128466 | U130: -2.632128466 | V130: -34.34589937 | W130: 70.93125669 | X130: -1.891789747 | Y130: 1.891789747 | Z130: 0.7403387188 | AA130: 0 | AB130: 3.365836836 | AC130: 1 | AD130: 1.577370734 | AE130: 1.427790537 | AZ130: 28579 | BA130: 1978-03-30 | BB130: 1978-03-30 | BC130: 1 | BD130: 89 | BE130: 3.618541845 | BF130: 88.48354394 | BG130: 11.79780586 | BH130: 1.001277835 | BI130: 33.22789691 | BK130: -2 | BM130: 30 | BN130: 0 | BO130: 1.577370734 | BP130: 1.427790537 | BQ130: 0 | BR130: 0 | BS130: 21.32 | BT130: 3.096621724
B131: 1978 | C131: 90 | D131: 29.6 | E131: 15.6 | G131: 0 | H131: 0 | J131: 22.6 | K131: 19.77844803 | L131: 9.889224016 | M131: 16.6 | N131: 515.4 | O131: 29 | P131: 1.5 | Q131: 0.85 | R131: 0.4 | S131: 4.521957942 | T131: 3.843664251 | U131: -3.843664251 | V131: -38.18956362 | W131: 68.25662847 | X131: -2.674628214 | Y131: 2.674628214 | Z131: 1.169036037 | AA131: 0 | AB131: 4.666552803 | AC131: 1 | AD131: 1.635783101 | AE131: 1.479096544 | AZ131: 28580 | BA131: 1978-03-31 | BB131: 1978-03-31 | BC131: 1 | BD131: 90 | BE131: 4.016824231 | BF131: 88.31606524 | BG131: 11.77547537 | BH131: 1.000710031 | BI131: 33.03757865 | BK131: -1 | BM131: 30 | BN131: 0 | BO131: 1.635783101 | BP131: 1.479096544 | BQ131: 0 | BR131: 0 | BS131: 24 | BT131: 4.521957942
B132: 1978 | C132: 91 | D132: 31.2 | E132: 17 | G132: 3.4 | H132: 0 | J132: 24.1 | K132: 19.80411566 | L132: 9.902057832 | M132: 18.1 | N132: 533.5 | O132: 30 | P132: 1.5 | Q132: 0.85 | R132: 0.4 | S132: 4.65768099 | T132: 3.959028841 | U132: -0.5590288414 | V132: -38.74859246 | W132: 67.8761188 | X132: -0.380509669 | Y132: 3.780509669 | Z132: 0.1785191724 | AA132: 0 | AB132: 4.672608858 | AC132: 1 | AD132: 1.694271274 | AE132: 1.536529785 | AZ132: 28581 | BA132: 1978-04-01 | BB132: 1978-04-01 | BC132: 1 | BD132: 91 | BE132: 4.413916346 | BF132: 88.14890987 | BG132: 11.75318798 | BH132: 1.000142017 | BI132: 32.84666637 | BK132: 0 | BM132: 30 | BN132: 0 | BO132: 1.694271274 | BP132: 1.536529785 | BQ132: 0 | BR132: 0 | BS132: 25.52 | BT132: 4.65768099
B133: 1978 | C133: 92 | D133: 29.4 | E133: 16 | G133: 0 | H133: 0 | J133: 22.7 | K133: 19.12604824 | L133: 9.563024119 | M133: 16.7 | N133: 550.2 | O133: 31 | P133: 2.5 | Q133: 1 | R133: 0.9 | S133: 4.376099628 | T133: 4.376099628 | U133: -4.376099628 | V133: -43.12469209 | W133: 64.96984669 | X133: -2.906272117 | Y133: 2.906272117 | Z133: 1.469827511 | AA133: 0 | AB133: 6.001894891 | AC133: 1 | AD133: 1.769398441 | AE133: 1.588946871 | AZ133: 28582 | BA133: 1978-04-02 | BB133: 1978-04-02 | BC133: 1 | BD133: 92 | BE133: 4.809700522 | BF133: 87.98211132 | BG133: 11.73094818 | BH133: 0.9995739602 | BI133: 32.65523887 | BK133: -9 | BM133: 40 | BN133: 0 | BO133: 1.769398441 | BP133: 1.588946871 | BQ133: 0 | BR133: 0 | BS133: 24.04 | BT133: 4.376099628
B134: 1978 | C134: 93 | D134: 27.8 | E134: 16.1 | G134: 0 | H134: 0 | J134: 21.95 | K134: 17.76669285 | L134: 8.883346425 | M134: 15.95 | N134: 566.15 | O134: 32 | P134: 2.5 | Q134: 1 | R134: 0.9 | S134: 3.994564517 | T134: 3.994564517 | U134: -3.994564517 | V134: -47.1192566 | W134: 62.42573561 | X134: -2.544111079 | Y134: 2.544111079 | Z134: 1.450453438 | AA134: 0 | AB134: 5.575319153 | AC134: 1 | AD134: 1.839186057 | AE134: 1.635928166 | AZ134: 28583 | BA134: 1978-04-03 | BB134: 1978-04-03 | BC134: 1 | BD134: 93 | BE134: 5.20405948 | BF134: 87.81570342 | BG134: 11.70876046 | BH134: 0.9990060299 | BI134: 32.46337592 | BK134: -8 | BM134: 40 | BN134: 0 | BO134: 1.839186057 | BP134: 1.635928166 | BQ134: 0 | BR134: 0 | BS134: 23.12 | BT134: 3.994564517
B135: 1978 | C135: 94 | D135: 27.9 | E135: 13.3 | G135: 0 | H135: 0 | J135: 20.6 | K135: 19.72926756 | L135: 9.864633778 | M135: 14.6 | N135: 580.75 | O135: 33 | P135: 2.5 | Q135: 1 | R135: 0.9 | S135: 4.345604636 | T135: 4.345604636 | U135: -4.345604636 | V135: -51.46486124 | W135: 59.77105858 | X135: -2.654677026 | Y135: 2.654677026 | Z135: 1.69092761 | AA135: 0 | AB135: 6.191189559 | AC135: 1 | AD135: 1.916682671 | AE135: 1.686285393 | AZ135: 28584 | BA135: 1978-04-04 | BB135: 1978-04-04 | BC135: 1 | BD135: 94 | BE135: 5.596876363 | BF135: 87.64972034 | BG135: 11.68662938 | BH135: 0.9984383942 | BI135: 32.27115817 | BK135: -7 | BM135: 40 | BN135: 0 | BO135: 1.916682671 | BP135: 1.686285393 | BQ135: 0 | BR135: 0 | BS135: 22.06 | BT135: 4.345604636
B136: 1978 | C136: 95 | D136: 28.2 | E136: 12.6 | G136: 0 | H136: 0 | J136: 20.4 | K136: 20.2720933 | L136: 10.13604665 | M136: 14.4 | N136: 595.15 | O136: 34 | P136: 2.5 | Q136: 1 | R136: 0.9 | S136: 4.456423486 | T136: 4.456423486 | U136: -4.456423486 | V136: -55.92128472 | W136: 57.16588696 | X136: -2.605171617 | Y136: 2.605171617 | Z136: 1.851251869 | AA136: 0 | AB136: 6.36153228 | AC136: 1 | AD136: 1.996311506 | AE136: 1.73614333 | AZ136: 28585 | BA136: 1978-04-05 | BB136: 1978-04-05 | BC136: 1 | BD136: 95 | BE136: 5.98803477 | BF136: 87.48419663 | BG136: 11.66455955 | BH136: 0.9978712212 | BI136: 32.0786671 | BK136: -6 | BM136: 40 | BN136: 0 | BO136: 1.996311506 | BP136: 1.73614333 | BQ136: 0 | BR136: 0 | BS136: 21.96 | BT136: 4.456423486
B137: 1978 | C137: 96 | D137: 29.2 | E137: 13.2 | G137: 0 | H137: 0 | J137: 21.2 | K137: 20.40703035 | L137: 10.20351518 | M137: 15.2 | N137: 610.35 | O137: 35 | P137: 2.5 | Q137: 1 | R137: 0.9 | S137: 4.560033244 | T137: 4.560033244 | U137: -4.560033244 | V137: -60.48131797 | W137: 54.6176454 | X137: -2.548241568 | Y137: 2.548241568 | Z137: 2.011791676 | AA137: 0 | AB137: 6.40387652 | AC137: 1 | AD137: 2.076470374 | AE137: 1.784474218 | AZ137: 28586 | BA137: 1978-04-06 | BB137: 1978-04-06 | BC137: 1 | BD137: 96 | BE137: 6.377418794 | BF137: 87.31916727 | BG137: 11.64255564 | BH137: 0.997304679 | BI137: 31.88598493 | BK137: -5 | BM137: 40 | BN137: 0 | BO137: 2.076470374 | BP137: 1.784474218 | BQ137: 0 | BR137: 0 | BS137: 22.8 | BT137: 4.560033244
B138: 1978 | C138: 97 | D138: 29.2 | E138: 13.1 | G138: 0 | H138: 0 | J138: 21.15 | K138: 20.34693217 | L138: 10.17346609 | M138: 15.15 | N138: 625.5 | O138: 36 | P138: 2.5 | Q138: 1 | R138: 0.9 | S138: 4.543093172 | T138: 4.543093172 | U138: -4.543093172 | V138: -65.02441114 | W138: 52.1918355 | X138: -2.425809898 | Y138: 2.425809898 | Z138: 2.117283274 | AA138: 0 | AB138: 6.385017268 | AC138: 1 | AD138: 2.156393177 | AE138: 1.830874201 | AH138: =IF(AH137="","",IF(AND(AH137+1=MAX($B$42:$B$1048576),$C$18+MAX($I$10:$I$24)>365),"",(IF(AH137+1>MAX($B$42:$B$1048576),"",AH137+1)))) ->  | AJ138: =IF(ISERROR(IF(AI138="","",AVERAGEIFS(AE:AE,$B:$B,$AH138,$BN:$BN,1)*(1-$C$29)))=TRUE,"",IF(AI138="","",MAX(0,AVERAGEIFS(AE:AE,$B:$B,$AH138,$BN:$BN,1)*(1-$C$29)))) ->  | AZ138: 28587 | BA138: 1978-04-07 | BB138: 1978-04-07 | BC138: 1 | BD138: 97 | BE138: 6.764913051 | BF138: 87.15466763 | BG138: 11.62062235 | BH138: 0.9967389354 | BI138: 31.69319456 | BK138: -4 | BM138: 40 | BN138: 0 | BO138: 2.156393177 | BP138: 1.830874201 | BQ138: 0 | BR138: 0 | BS138: 22.76 | BT138: 4.543093172
B139: 1978 | C139: 98 | D139: 29.6 | E139: 12.8 | G139: 0 | H139: 0 | J139: 21.2 | K139: 20.65810162 | L139: 10.32905081 | M139: 15.2 | N139: 640.7 | O139: 37 | P139: 2.5 | Q139: 1 | R139: 0.9 | S139: 4.623265299 | T139: 4.623265299 | U139: -4.623265299 | V139: -69.64767644 | W139: 49.83379765 | X139: -2.358037844 | Y139: 2.358037844 | Z139: 2.265227454 | AA139: 0 | AB139: 6.482664534 | AC139: 1 | AD139: 2.237538254 | AE139: 1.876237024 | AZ139: 28588 | BA139: 1978-04-08 | BB139: 1978-04-08 | BC139: 1 | BD139: 98 | BE139: 7.150402718 | BF139: 86.99073355 | BG139: 11.59876447 | BH139: 0.9961741582 | BI139: 31.5003795 | BK139: -3 | BM139: 40 | BN139: 0 | BO139: 2.237538254 | BP139: 1.876237024 | BQ139: 0 | BR139: 0 | BS139: 22.88 | BT139: 4.623265299
B140: 1978 | C140: 99 | D140: 29.8 | E140: 11 | G140: 0 | H140: 0 | J140: 20.4 | K140: 21.71945952 | L140: 10.85972976 | M140: 14.4 | N140: 655.1 | O140: 38 | P140: 2.5 | Q140: 1 | R140: 0.9 | S140: 4.804580439 | T140: 4.804580439 | U140: -4.804580439 | V140: -74.45225688 | W140: 47.4961007 | X140: -2.337696951 | Y140: 2.337696951 | Z140: 2.466883488 | AA140: 0 | AB140: 6.815726463 | AC140: 1 | AD140: 2.322852347 | AE140: 1.922127502 | AZ140: 28589 | BA140: 1978-04-09 | BB140: 1978-04-09 | BC140: 1 | BD140: 99 | BE140: 7.533773567 | BF140: 86.82740134 | BG140: 11.57698685 | BH140: 0.9956105147 | BI140: 31.30762379 | BK140: -2 | BM140: 40 | BN140: 0 | BO140: 2.322852347 | BP140: 1.922127502 | BQ140: 0 | BR140: 0 | BS140: 22.28 | BT140: 4.804580439
B141: 1978 | C141: 100 | D141: 29.6 | E141: 12 | G141: 0 | H141: 0 | J141: 20.8 | K141: 20.88556788 | L141: 10.44278394 | M141: 14.8 | N141: 669.9 | O141: 39 | P141: 2.5 | Q141: 1 | R141: 0.9 | S141: 4.645341384 | T141: 4.645341384 | U141: -4.645341384 | V141: -79.09759826 | W141: 45.34020667 | X141: -2.15589403 | Y141: 2.15589403 | Z141: 2.489447354 | AA141: 0 | AB141: 6.554045124 | AC141: 1 | AD141: 2.404890912 | AE141: 1.964597905 | AZ141: 28590 | BA141: 1978-04-10 | BB141: 1978-04-10 | BC141: 1 | BD141: 100 | BE141: 7.914911995 | BF141: 86.6647078 | BG141: 11.55529437 | BH141: 0.9950481719 | BI141: 31.11501193 | BK141: -1 | BM141: 40 | BN141: 0 | BO141: 2.404890912 | BP141: 1.964597905 | BQ141: 0 | BR141: 0 | BS141: 22.56 | BT141: 4.645341384
B142: 1978 | C142: 101 | D142: 28.4 | E142: 10 | G142: 0 | H142: 0 | J142: 19.2 | K142: 21.22292803 | L142: 10.61146402 | M142: 13.2 | N142: 683.1 | O142: 40 | P142: 2.5 | Q142: 1 | R142: 0.9 | S142: 4.58121887 | T142: 4.58121887 | U142: -4.58121887 | V142: -83.67881713 | W142: 43.30993328 | X142: -2.030273395 | Y142: 2.030273395 | Z142: 2.550945475 | AA142: 0 | AB142: 6.659911224 | AC142: 1 | AD142: 2.488254628 | AE142: 2.006184384 | AZ142: 28591 | BA142: 1978-04-11 | BB142: 1978-04-11 | BC142: 1 | BD142: 101 | BE142: 8.293705065 | BF142: 86.50269026 | BG142: 11.53369203 | BH142: 0.9944872964 | BI142: 30.9226288 | BK142: 0 | BM142: 40 | BN142: 0 | BO142: 2.488254628 | BP142: 2.006184384 | BQ142: 0 | BR142: 0 | BS142: 21.04 | BT142: 4.58121887
B143: 1978 | C143: 102 | D143: 28 | E143: 10.2 | G143: 0 | H143: 0 | J143: 19.1 | K143: 20.74437969 | L143: 10.37218985 | M143: 13.1 | N143: 696.2 | O143: 41 | P143: 2.2 | Q143: 1.2 | R143: 1.5 | S143: 4.463600692 | T143: 5.35632083 | U143: -5.35632083 | V143: -89.03513796 | W143: 41.0511482 | X143: -2.258785075 | Y143: 2.258785075 | Z143: 3.097535756 | AA143: 0 | AB143: 6.114554083 | AC143: 1 | AD143: 2.564791977 | AE143: 2.016329937 | AZ143: 28592 | BA143: 1978-04-12 | BB143: 1978-04-12 | BC143: 1 | BD143: 102 | BE143: 8.670040531 | BF143: 86.34138656 | BG143: 11.51218487 | BH143: 0.9939280544 | BI143: 30.73055962 | BK143: -9 | BM143: 50 | BN143: 0 | BO143: 2.564791977 | BP143: 2.016329937 | BQ143: 0 | BR143: 0 | BS143: 20.88 | BT143: 4.463600692
B144: 1978 | C144: 103 | D144: 28.9 | E144: 11.3 | G144: 0 | H144: 0 | J144: 20.1 | K144: 20.49885303 | L144: 10.24942651 | M144: 14.1 | N144: 710.3 | O144: 42 | P144: 2.2 | Q144: 1.2 | R144: 1.5 | S144: 4.497429415 | T144: 5.396915298 | U144: -5.396915298 | V144: -94.43205326 | W144: 38.89437557 | X144: -2.15677263 | Y144: 2.15677263 | Z144: 3.240142668 | AA144: 0 | AB144: 6.042183345 | AC144: 1 | AD144: 2.640423445 | AE144: 2.023851179 | AZ144: 28593 | BA144: 1978-04-13 | BB144: 1978-04-13 | BC144: 1 | BD144: 103 | BE144: 9.043806876 | BF144: 86.18083508 | BG144: 11.49077801 | BH144: 0.9933706117 | BI144: 30.53888982 | BK144: -8 | BM144: 50 | BN144: 0 | BO144: 2.640423445 | BP144: 2.023851179 | BQ144: 0 | BR144: 0 | BS144: 21.86 | BT144: 4.497429415
B145: 1978 | C145: 104 | D145: 30 | E145: 8.2 | G145: 0 | H145: 0 | J145: 19.1 | K145: 22.67117782 | L145: 11.33558891 | M145: 13.1 | N145: 723.4 | O145: 43 | P145: 2.2 | Q145: 1.2 | R145: 1.5 | S145: 4.917312296 | T145: 5.900774755 | U145: -5.900774755 | V145: -100.332828 | W145: 36.66570707 | X145: -2.228668509 | Y145: 2.228668509 | Z145: 3.672106246 | AA145: 0 | AB145: 6.682491596 | AC145: 1 | AD145: 2.724069805 | AE145: 2.029416693 | AZ145: 28594 | BA145: 1978-04-14 | BB145: 1978-04-14 | BC145: 1 | BD145: 104 | BE145: 9.414893347 | BF145: 86.0210748 | BG145: 11.46947664 | BH145: 0.9928151334 | BI145: 30.34770501 | BK145: -7 | BM145: 50 | BN145: 0 | BO145: 2.724069805 | BP145: 2.029416693 | BQ145: 0 | BR145: 0 | BS145: 21.28 | BT145: 4.917312296
B146: 1978 | C146: 105 | D146: 31 | E146: 13 | G146: 0 | H146: 0 | J146: 22 | K146: 20.47131214 | L146: 10.23565607 | M146: 16 | N146: 739.4 | O146: 44 | P146: 2.2 | Q146: 1.2 | R146: 1.5 | S146: 4.662706097 | T146: 5.595247316 | U146: -5.595247316 | V146: -105.9280753 | W146: 34.67050872 | X146: -1.995198349 | Y146: 1.995198349 | Z146: 3.600048967 | AA146: 0 | AB146: 6.034065474 | AC146: 1 | AD146: 2.799599659 | AE146: 2.032051332 | AZ146: 28595 | BA146: 1978-04-15 | BB146: 1978-04-15 | BC146: 1 | BD146: 105 | BE146: 9.783189981 | BF146: 85.86214524 | BG146: 11.44828603 | BH146: 0.9922617841 | BI146: 30.15709091 | BK146: -6 | BM146: 50 | BN146: 0 | BO146: 2.799599659 | BP146: 2.032051332 | BQ146: 0 | BR146: 0 | BS146: 23.8 | BT146: 4.662706097
B147: 1978 | C147: 106 | D147: 30.2 | E147: 13.8 | G147: 0 | H147: 0 | J147: 22 | K147: 19.41722243 | L147: 9.708611215 | M147: 16 | N147: 755.4 | O147: 45 | P147: 2.2 | Q147: 1.2 | R147: 1.5 | S147: 4.409216509 | T147: 5.291059811 | U147: -5.291059811 | V147: -111.2191351 | W147: 32.88375723 | X147: -1.786751488 | Y147: 1.786751488 | Z147: 3.504308322 | AA147: 0 | AB147: 5.723365002 | AC147: 1 | AD147: 2.8712404 | AE147: 2.032519778 | AZ147: 28596 | BA147: 1978-04-16 | BB147: 1978-04-16 | BC147: 1 | BD147: 106 | BE147: 10.14858765 | BF147: 85.70408653 | BG147: 11.42721154 | BH147: 0.9917107279 | BI147: 29.96713325 | BK147: -5 | BM147: 50 | BN147: 0 | BO147: 2.8712404 | BP147: 2.032519778 | BQ147: 0 | BR147: 0 | BS147: 23.64 | BT147: 4.409216509
B148: 1978 | C148: 107 | D148: 30.7 | E148: 13 | G148: 0 | H148: 0 | J148: 21.85 | K148: 20.04476372 | L148: 10.02238186 | M148: 15.85 | N148: 771.25 | O148: 46 | P148: 2.2 | Q148: 1.2 | R148: 1.5 | S148: 4.549987711 | T148: 5.459985253 | U148: -5.459985253 | V148: -116.6791204 | W148: 31.1364445 | X148: -1.747312726 | Y148: 1.747312726 | Z148: 3.712672527 | AA148: 0 | AB148: 5.908337279 | AC148: 1 | AD148: 2.945196484 | AE148: 2.031043043 | AZ148: 28597 | BA148: 1978-04-17 | BB148: 1978-04-17 | BC148: 1 | BD148: 107 | BE148: 10.51097806 | BF148: 85.54693938 | BG148: 11.40625858 | BH148: 0.9911621279 | BI148: 29.77791772 | BK148: -4 | BM148: 50 | BN148: 0 | BO148: 2.945196484 | BP148: 2.031043043 | BQ148: 0 | BR148: 0 | BS148: 23.62 | BT148: 4.549987711
B149: 1978 | C149: 108 | D149: 30 | E149: 13.4 | G149: 0 | H149: 0 | J149: 21.7 | K149: 19.28910565 | L149: 9.644552824 | M149: 15.7 | N149: 786.95 | O149: 47 | P149: 2.2 | Q149: 1.2 | R149: 1.5 | S149: 4.356825524 | T149: 5.228190628 | U149: -5.228190628 | V149: -121.907311 | W149: 29.55039396 | X149: -1.586050541 | Y149: 1.586050541 | Z149: 3.642140087 | AA149: 0 | AB149: 5.685601665 | AC149: 1 | AD149: 3.016364533 | AE149: 2.027843871 | AZ149: 28598 | BA149: 1978-04-18 | BB149: 1978-04-18 | BC149: 1 | BD149: 108 | BE149: 10.87025385 | BF149: 85.39074513 | BG149: 11.38543268 | BH149: 0.9906161468 | BI149: 29.58952988 | BK149: -3 | BM149: 50 | BN149: 0 | BO149: 3.016364533 | BP149: 2.027843871 | BQ149: 0 | BR149: 0 | BS149: 23.36 | BT149: 4.356825524
B150: 1978 | C150: 109 | D150: 30.6 | E150: 14.4 | G150: 11.3 | H150: 0 | J150: 22.5 | K150: 18.93455825 | L150: 9.467279127 | M150: 16.5 | N150: 803.45 | O150: 48 | P150: 2.2 | Q150: 1.2 | R150: 1.5 | S150: 4.338820489 | T150: 5.206584587 | U150: 6.093415413 | V150: -103.1594704 | W150: 35.64380937 | X150: 6.093415413 | Y150: 5.206584587 | Z150: 0 | AA150: 0 | AB150: 5.581096288 | AC150: 1 | AD150: 3.086224462 | AE150: 2.0977038 | AZ150: 28599 | BA150: 1978-04-19 | BB150: 1978-04-19 | BC150: 1 | BD150: 109 | BE150: 11.22630855 | BF150: 85.23554572 | BG150: 11.36473943 | BH150: 0.9900729463 | BI150: 29.40205512 | BK150: -2 | BM150: 50 | BN150: 0 | BO150: 3.086224462 | BP150: 2.0977038 | BQ150: 0 | BR150: 0 | BS150: 24.12 | BT150: 4.338820489
B151: 1978 | C151: 110 | D151: 29.9 | E151: 16.4 | G151: 0 | H151: 0 | J151: 23.15 | K151: 17.17518242 | L151: 8.587591208 | M151: 17.15 | N151: 820.6 | O151: 49 | P151: 2.2 | Q151: 1.2 | R151: 1.5 | S151: 3.963816845 | T151: 4.756580214 | U151: -4.756580214 | V151: -107.9160506 | W151: 33.98807336 | X151: -1.655736014 | Y151: 1.655736014 | Z151: 3.1008442 | AA151: 0 | AB151: 5.062507693 | AC151: 1 | AD151: 3.149593093 | AE151: 2.099106825 | AZ151: 28600 | BA151: 1978-04-20 | BB151: 1978-04-20 | BC151: 1 | BD151: 110 | BE151: 11.57903665 | BF151: 85.0813837 | BG151: 11.34418449 | BH151: 0.9895326875 | BI151: 29.21557858 | BK151: -1 | BM151: 50 | BN151: 0 | BO151: 3.149593093 | BP151: 2.099106825 | BQ151: 0 | BR151: 0 | BS151: 24.5 | BT151: 3.963816845
B152: 1978 | C152: 111 | D152: 26.3 | E152: 11.2 | G152: 0 | H152: 0 | J152: 18.75 | K152: 18.0492126 | L152: 9.024606302 | M152: 12.75 | N152: 833.35 | O152: 50 | P152: 2.2 | Q152: 1.2 | R152: 1.5 | S152: 3.83540391 | T152: 4.602484692 | U152: -4.602484692 | V152: -112.5185353 | W152: 32.45922975 | X152: -1.528843609 | Y152: 1.528843609 | Z152: 3.073641083 | AA152: 0 | AB152: 5.320134334 | AC152: 1 | AD152: 3.216186498 | AE152: 2.098991407 | AZ152: 28601 | BA152: 1978-04-21 | BB152: 1978-04-21 | BC152: 1 | BD152: 111 | BE152: 11.92833363 | BF152: 84.92830227 | BG152: 11.32377364 | BH152: 0.9889955303 | BI152: 29.03018505 | BK152: 0 | BM152: 50 | BN152: 0 | BO152: 3.216186498 | BP152: 2.098991407 | BQ152: 0 | BR152: 0 | BS152: 20.26 | BT152: 3.83540391
B153: 1978 | C153: 112 | D153: 27.4 | E153: 12.6 | G153: 0 | H153: 0 | J153: 20 | K153: 17.75561917 | L153: 8.877809587 | M153: 14 | N153: 847.35 | O153: 51 | P153: 2.5 | Q153: 1.3 | R153: 2.3 | S153: 3.866460755 | T153: 5.026398982 | U153: -5.026398982 | V153: -117.5449343 | W153: 30.86802452 | X153: -1.591205235 | Y153: 1.591205235 | Z153: 3.435193747 | AA153: 0 | AB153: 5.571844151 | AC153: 1 | AD153: 3.285930617 | AE153: 2.059105452 | AZ153: 28602 | BA153: 1978-04-22 | BB153: 1978-04-22 | BC153: 1 | BD153: 112 | BE153: 12.27409599 | BF153: 84.77634522 | BG153: 11.3035127 | BH153: 0.988461634 | BI153: 28.84595896 | BK153: -19 | BM153: 70 | BN153: 0 | BO153: 3.285930617 | BP153: 2.059105452 | BQ153: 0 | BR153: 0 | BS153: 21.48 | BT153: 3.866460755
B154: 1978 | C154: 113 | D154: 29.4 | E154: 13.8 | G154: 0 | H154: 0 | J154: 21.6 | K154: 18.1135547 | L154: 9.056777349 | M154: 15.6 | N154: 862.95 | O154: 52 | P154: 2.5 | Q154: 1.3 | R154: 2.3 | S154: 4.075676527 | T154: 5.298379485 | U154: -5.298379485 | V154: -122.8433138 | W154: 29.27509188 | X154: -1.592932637 | Y154: 1.592932637 | Z154: 3.705446848 | AA154: 0 | AB154: 5.684166957 | AC154: 1 | AD154: 3.357080706 | AE154: 2.01580949 | AZ154: 28603 | BA154: 1978-04-23 | BB154: 1978-04-23 | BC154: 1 | BD154: 113 | BE154: 12.61622127 | BF154: 84.62555698 | BG154: 11.2834076 | BH154: 0.9879311567 | BI154: 28.66298425 | BK154: -18 | BM154: 70 | BN154: 0 | BO154: 3.357080706 | BP154: 2.01580949 | BQ154: 0 | BR154: 0 | BS154: 23.16 | BT154: 4.075676527
B155: 1978 | C155: 114 | D155: 27.6 | E155: 12.8 | G155: 0 | H155: 0 | J155: 20.2 | K155: 17.53118713 | L155: 8.765593563 | M155: 14.2 | N155: 877.15 | O155: 53 | P155: 2.5 | Q155: 1.3 | R155: 2.3 | S155: 3.832713621 | T155: 4.982527707 | U155: -4.982527707 | V155: -127.8258415 | W155: 27.85219479 | X155: -1.422897087 | Y155: 1.422897087 | Z155: 3.559630621 | AA155: 0 | AB155: 5.501415721 | AC155: 1 | AD155: 3.425943255 | AE155: 1.971519021 | AZ155: 28604 | BA155: 1978-04-24 | BB155: 1978-04-24 | BC155: 1 | BD155: 114 | BE155: 12.95460809 | BF155: 84.47598259 | BG155: 11.26346434 | BH155: 0.9874042557 | BI155: 28.48134438 | BK155: -17 | BM155: 70 | BN155: 0 | BO155: 3.425943255 | BP155: 1.971519021 | BQ155: 0 | BR155: 0 | BS155: 21.68 | BT155: 3.832713621
B156: 1978 | C156: 115 | D156: 27.8 | E156: 10.8 | G156: 0 | H156: 0 | J156: 19.3 | K156: 18.67016258 | L156: 9.335081289 | M156: 13.3 | N156: 890.45 | O156: 54 | P156: 2.5 | Q156: 1.3 | R156: 2.3 | S156: 4.026952832 | T156: 5.235038681 | U156: -5.235038681 | V156: -133.0608802 | W156: 26.4316296 | X156: -1.420565188 | Y156: 1.420565188 | Z156: 3.814473493 | AA156: 0 | AB156: 5.858834612 | AC156: 1 | AD156: 3.499279702 | AE156: 1.92195249 | AZ156: 28605 | BA156: 1978-04-25 | BB156: 1978-04-25 | BC156: 1 | BD156: 115 | BE156: 13.28915619 | BF156: 84.32766768 | BG156: 11.24368902 | BH156: 0.9868810871 | BI156: 28.30112219 | BK156: -16 | BM156: 70 | BN156: 0 | BO156: 3.499279702 | BP156: 1.92195249 | BQ156: 0 | BR156: 0 | BS156: 21 | BT156: 4.026952832
B157: 1978 | C157: 116 | D157: 27.9 | E157: 9.8 | G157: 0 | H157: 0 | J157: 18.85 | K157: 19.14307275 | L157: 9.571536375 | M157: 12.85 | N157: 903.3 | O157: 55 | P157: 2.5 | Q157: 1.3 | R157: 2.3 | S157: 4.100877568 | T157: 5.331140839 | U157: -5.331140839 | V157: -138.392021 | W157: 25.05942428 | X157: -1.37220532 | Y157: 1.37220532 | Z157: 3.958935518 | AA157: 0 | AB157: 6.007237309 | AC157: 1 | AD157: 3.574473741 | AE157: 1.86871563 | AZ157: 28606 | BA157: 1978-04-26 | BB157: 1978-04-26 | BC157: 1 | BD157: 116 | BE157: 13.61976641 | BF157: 84.18065852 | BG157: 11.2240878 | BH157: 0.9863618059 | BI157: 28.12239991 | BK157: -15 | BM157: 70 | BN157: 0 | BO157: 3.574473741 | BP157: 1.86871563 | BQ157: 0 | BR157: 0 | BS157: 20.66 | BT157: 4.100877568
B158: 1978 | C158: 117 | D158: 28.9 | E158: 9.1 | G158: 0 | H158: 0 | J158: 19 | K158: 19.89576843 | L158: 9.947884215 | M158: 13 | N158: 916.3 | O158: 56 | P158: 2.5 | Q158: 1.3 | R158: 2.3 | S158: 4.289586283 | T158: 5.576462167 | U158: -5.576462167 | V158: -143.9684832 | W158: 23.70024425 | X158: -1.359180033 | Y158: 1.359180033 | Z158: 4.217282134 | AA158: 0 | AB158: 6.243438761 | AC158: 1 | AD158: 3.652624371 | AE158: 1.810930345 | AZ158: 28607 | BA158: 1978-04-27 | BB158: 1978-04-27 | BC158: 1 | BD158: 117 | BE158: 13.94634081 | BF158: 84.03500194 | BG158: 11.20466693 | BH158: 0.985846566 | BI158: 27.94525904 | BK158: -14 | BM158: 70 | BN158: 0 | BO158: 3.652624371 | BP158: 1.810930345 | BQ158: 0 | BR158: 0 | BS158: 20.98 | BT158: 4.289586283
B159: 1978 | C159: 118 | D159: 29.6 | E159: 10.4 | G159: 0 | H159: 0 | J159: 20 | K159: 19.46897294 | L159: 9.734486469 | M159: 14 | N159: 930.3 | O159: 57 | P159: 2.5 | Q159: 1.3 | R159: 2.3 | S159: 4.276513772 | T159: 5.559467904 | U159: -5.559467904 | V159: -149.5279511 | W159: 22.41859335 | X159: -1.281650897 | Y159: 1.281650897 | Z159: 4.277817007 | AA159: 0 | AB159: 6.109507189 | AC159: 1 | AD159: 3.729098548 | AE159: 1.752062823 | AZ159: 28608 | BA159: 1978-04-28 | BB159: 1978-04-28 | BC159: 1 | BD159: 118 | BE159: 14.2687826 | BF159: 83.89074536 | BG159: 11.18543271 | BH159: 0.9853355201 | BI159: 27.76978034 | BK159: -13 | BM159: 70 | BN159: 0 | BO159: 3.729098548 | BP159: 1.752062823 | BQ159: 0 | BR159: 0 | BS159: 21.92 | BT159: 4.276513772
B160: 1978 | C160: 119 | D160: 29 | E160: 10.1 | G160: 0 | H160: 0 | J160: 19.55 | K160: 19.19542398 | L160: 9.597711992 | M160: 13.55 | N160: 943.85 | O160: 58 | P160: 2.5 | Q160: 1.3 | R160: 2.3 | S160: 4.176680221 | T160: 5.429684287 | U160: -5.429684287 | V160: -154.9576354 | W160: 21.23379109 | X160: -1.184802263 | Y160: 1.184802263 | Z160: 4.244882024 | AA160: 0 | AB160: 6.023665512 | AC160: 1 | AD160: 3.804498223 | AE160: 1.691884769 | AZ160: 28609 | BA160: 1978-04-29 | BB160: 1978-04-29 | BC160: 1 | BD160: 119 | BE160: 14.58699625 | BF160: 83.74793674 | BG160: 11.16639156 | BH160: 0.9848288196 | BI160: 27.59604373 | BK160: -12 | BM160: 70 | BN160: 0 | BO160: 3.804498223 | BP160: 1.691884769 | BQ160: 0 | BR160: 0 | BS160: 21.44 | BT160: 4.176680221
B161: 1978 | C161: 120 | D161: 27.6 | E161: 10.8 | G161: 0.8 | H161: 0 | J161: 19.2 | K161: 17.9848763 | L161: 8.99243815 | M161: 13.2 | N161: 957.05 | O161: 59 | P161: 2.5 | Q161: 1.3 | R161: 2.3 | S161: 3.869834022 | T161: 5.030784229 | U161: -4.230784229 | V161: -159.1884196 | W161: 20.35417376 | X161: -0.8796173269 | Y161: 1.679617327 | Z161: 3.351166902 | AA161: 0 | AB161: 5.643786727 | AC161: 1 | AD161: 3.875142864 | AE161: 1.654294484 | AZ161: 28610 | BA161: 1978-04-30 | BB161: 1978-04-30 | BC161: 1 | BD161: 120 | BE161: 14.90088746 | BF161: 83.60662459 | BG161: 11.14754995 | BH161: 0.9843266146 | BI161: 27.42412827 | BK161: -11 | BM161: 70 | BN161: 0 | BO161: 3.875142864 | BP161: 1.654294484 | BQ161: 0 | BR161: 0 | BS161: 20.88 | BT161: 3.869834022
B162: 1978 | C162: 121 | D162: 26.2 | E162: 11.8 | G162: 0 | H162: 0 | J162: 19 | K162: 16.54753341 | L162: 8.273766706 | M162: 13 | N162: 970.05 | O162: 60 | P162: 2.5 | Q162: 1.3 | R162: 2.3 | S162: 3.529150404 | T162: 4.587895525 | U162: -4.587895525 | V162: -163.7763151 | W162: 19.44144319 | X162: -0.9127305714 | Y162: 0.9127305714 | Z162: 3.675164953 | AA162: 0 | AB162: 5.192737936 | AC162: 1 | AD162: 3.940141618 | AE162: 1.59953754 | AZ162: 28611 | BA162: 1978-05-01 | BB162: 1978-05-01 | BC162: 1 | BD162: 121 | BE162: 15.21036321 | BF162: 83.46685796 | BG162: 11.12891439 | BH162: 0.983829054 | BI162: 27.2541121 | BK162: -10 | BM162: 70 | BN162: 0 | BO162: 3.940141618 | BP162: 1.59953754 | BQ162: 0 | BR162: 0 | BS162: 20.44 | BT162: 3.529150404
B163: 1978 | C163: 122 | D163: 25.6 | E163: 12 | G163: 0 | H163: 0 | J163: 18.8 | K163: 15.9821599 | L163: 7.991079951 | M163: 12.8 | N163: 982.85 | O163: 61 | P163: 2.5 | Q163: 1.3 | R163: 2.3 | S163: 3.389267009 | T163: 4.406047112 | U163: -4.406047112 | V163: -168.1823623 | W163: 18.603441 | X163: -0.8380021953 | Y163: 0.8380021953 | Z163: 3.568044917 | AA163: 0 | AB163: 5.015319562 | AC163: 1 | AD163: 4.002919583 | AE163: 1.545388117 | AZ163: 28612 | BA163: 1978-05-02 | BB163: 1978-05-02 | BC163: 1 | BD163: 122 | BE163: 15.5153318 | BF163: 83.32868636 | BG163: 11.11049151 | BH163: 0.9833362852 | BI163: 27.08607238 | BK163: -9 | BM163: 70 | BN163: 0 | BO163: 4.002919583 | BP163: 1.545388117 | BQ163: 0 | BR163: 0 | BS163: 20.16 | BT163: 3.389267009
B164: 1978 | C164: 123 | D164: 25 | E164: 7.1 | G164: 0 | H164: 0 | J164: 16.05 | K164: 18.22312812 | L164: 9.111564061 | M164: 10.05 | N164: 992.9 | O164: 62 | P164: 2.5 | Q164: 1.3 | R164: 2.3 | S164: 3.682122675 | T164: 4.786759478 | U164: -4.786759478 | V164: -172.9691217 | W164: 17.73391608 | X164: -0.8695249192 | Y164: 0.8695249192 | Z164: 3.917234559 | AA164: 0 | AB164: 5.718551905 | AC164: 0.8375 | AD164: 4.062868247 | AE164: 1.492501396 | AZ164: 28613 | BA164: 1978-05-03 | BB164: 1978-05-03 | BC164: 1 | BD164: 123 | BE164: 15.81570286 | BF164: 83.19215978 | BG164: 11.09228797 | BH164: 0.9828484542 | BI164: 26.92008522 | BK164: -8 | BM164: 70 | BN164: 0 | BO164: 4.062868247 | BP164: 1.492501396 | BQ164: 0 | BR164: 0 | BS164: 17.84 | BT164: 3.682122675
B165: 1978 | C165: 124 | D165: 27.2 | E165: 8.8 | G165: 0 | H165: 0 | J165: 18 | K165: 18.36342751 | L165: 9.181713756 | M165: 12 | N165: 1004.9 | O165: 63 | P165: 2.5 | Q165: 1.3 | R165: 2.3 | S165: 3.868902977 | T165: 5.02957387 | U165: -5.02957387 | V165: -177.9986956 | W165: 16.8640347 | X165: -0.8698813783 | Y165: 0.8698813783 | Z165: 4.159692492 | AA165: 0 | AB165: 5.762578887 | AC165: 1 | AD165: 4.134999838 | AE165: 1.427423739 | AZ165: 28614 | BA165: 1978-05-04 | BB165: 1978-05-04 | BC165: 1 | BD165: 124 | BE165: 16.11138739 | BF165: 83.05732865 | BG165: 11.07431049 | BH165: 0.9823657056 | BI165: 26.7562257 | BK165: -7 | BM165: 70 | BN165: 0 | BO165: 4.134999838 | BP165: 1.427423739 | BQ165: 0 | BR165: 0 | BS165: 19.84 | BT165: 3.868902977
B166: 1978 | C166: 125 | D166: 28.8 | E166: 9.6 | G166: 0 | H166: 0 | J166: 19.2 | K166: 18.64504917 | L166: 9.322524585 | M166: 13.2 | N166: 1018.1 | O166: 64 | P166: 2.5 | Q166: 1.3 | R166: 2.3 | S166: 4.031187827 | T166: 5.240544175 | U166: -5.240544175 | V166: -183.2392398 | W166: 16.00302534 | X166: -0.8610093579 | Y166: 0.8610093579 | Z166: 4.379534817 | AA166: 0 | AB166: 5.850953839 | AC166: 1 | AD166: 4.20823764 | AE166: 1.359890043 | AZ166: 28615 | BA166: 1978-05-05 | BB166: 1978-05-05 | BC166: 1 | BD166: 125 | BE166: 16.40229777 | BF166: 82.92424381 | BG166: 11.05656584 | BH166: 0.9818881824 | BI166: 26.59456775 | BK166: -6 | BM166: 70 | BN166: 0 | BO166: 4.20823764 | BP166: 1.359890043 | BQ166: 0 | BR166: 0 | BS166: 21.12 | BT166: 4.031187827
B167: 1978 | C167: 126 | D167: 30.2 | E167: 11.5 | G167: 0 | H167: 0 | J167: 20.85 | K167: 18.29039674 | L167: 9.145198368 | M167: 14.85 | N167: 1032.95 | O167: 65 | P167: 2.5 | Q167: 1.3 | R167: 2.3 | S167: 4.080750858 | T167: 5.304976116 | U167: -5.304976116 | V167: -188.5442159 | W167: 15.17619417 | X167: -0.8268311721 | Y167: 0.8268311721 | Z167: 4.478144943 | AA167: 0 | AB167: 5.739661292 | AC167: 1 | AD167: 4.280082366 | AE167: 1.292246578 | AZ167: 28616 | BA167: 1978-05-06 | BB167: 1978-05-06 | BC167: 1 | BD167: 126 | BE167: 16.68834779 | BF167: 82.79295645 | BG167: 11.03906086 | BH167: 0.9814160261 | BI167: 26.43518414 | BK167: -5 | BM167: 70 | BN167: 0 | BO167: 4.280082366 | BP167: 1.292246578 | BQ167: 0 | BR167: 0 | BS167: 22.72 | BT167: 4.080750858
B168: 1978 | C168: 127 | D168: 29.2 | E168: 11 | G168: 0 | H168: 0 | J168: 20.1 | K168: 17.93702466 | L168: 8.968512331 | M168: 14.1 | N168: 1047.05 | O168: 66 | P168: 2.5 | Q168: 1.3 | R168: 2.3 | S168: 3.940009226 | T168: 5.122011994 | U168: -5.122011994 | V168: -193.6662279 | W168: 14.41843948 | X168: -0.7577546858 | Y168: 0.7577546858 | Z168: 4.364257309 | AA168: 0 | AB168: 5.628770531 | AC168: 1 | AD168: 4.350539045 | AE168: 1.224626759 | AZ168: 28617 | BA168: 1978-05-07 | BB168: 1978-05-07 | BC168: 1 | BD168: 127 | BE168: 16.9694527 | BF168: 82.66351809 | BG168: 11.02180241 | BH168: 0.9809493767 | BI168: 26.27814645 | BK168: -4 | BM168: 70 | BN168: 0 | BO168: 4.350539045 | BP168: 1.224626759 | BQ168: 0 | BR168: 0 | BS168: 21.92 | BT168: 3.940009226
B169: 1978 | C169: 128 | D169: 27.4 | E169: 9.8 | G169: 0 | H169: 0 | J169: 18.6 | K169: 17.53509387 | L169: 8.767546933 | M169: 12.6 | N169: 1059.65 | O169: 67 | P169: 2.5 | Q169: 1.3 | R169: 2.3 | S169: 3.733719471 | T169: 4.853835313 | U169: -4.853835313 | V169: -198.5200632 | W169: 13.73530539 | X169: -0.6831340902 | Y169: 0.6831340902 | Z169: 4.170701222 | AA169: 0 | AB169: 5.502641685 | AC169: 1 | AD169: 4.419416939 | AE169: 1.157381582 | AZ169: 28618 | BA169: 1978-05-08 | BB169: 1978-05-08 | BC169: 1 | BD169: 128 | BE169: 17.24552919 | BF169: 82.53598057 | BG169: 11.00479741 | BH169: 0.9804883723 | BI169: 26.123525 | BK169: -3 | BM169: 70 | BN169: 0 | BO169: 4.419416939 | BP169: 1.157381582 | BQ169: 0 | BR169: 0 | BS169: 20.36 | BT169: 3.733719471
B170: 1978 | C170: 129 | D170: 25.6 | E170: 6.1 | G170: 0 | H170: 0 | J170: 15.85 | K170: =IF(F170="",$C$28*SQRT((D170-E170))*BI170,F170) -> 18.34984765 | L170: =K170*0.5 -> 9.174923827 | M170: =MAX((J170-$C$14)*BC170,0) -> 9.85 | N170: 1069.5 | O170: 68 | P170: =IF(AND(MAX($L$9:$L$25)=0,$O170=0),0,IF(ISERROR($BL170)=TRUE,IF($O170=0,0,(VLOOKUP($BM170,$I$9:$N$24,4,0))),(IF($N170=0,0,VLOOKUP($BL170,$K$9:$N$24,2,0))))) -> 2.5 | Q170: =IF(AND(MAX($L$9:$L$25)=0,$O170=0),$C$20,IF(ISERROR($BL170)=TRUE,IF($O170=0,$C$20,(VLOOKUP($BM170,$I$9:$N$24,5,0))),(IF($N170=0,$C$20,VLOOKUP($BL170,$K$9:$N$24,3,0))))) -> 1.3 | R170: =IF(AND(MAX($L$9:$L$25)=0,$O170=0),0,IF(ISERROR($BL170)=TRUE,IF($O170=0,0,(VLOOKUP($BM170,$I$9:$N$24,6,0))),(IF($N170=0,0,VLOOKUP($BL170,$K$9:$N$24,4,0))))) -> 2.3 | S170: 3.704561036 | T170: 4.815929347 | U170: =G170+BQ170-T170 -> -4.815929347 | V170: -203.3359925 | W170: 13.08949841 | X170: -0.6458069848 | Y170: =IF(U170<0,MIN(W170,G170+BQ170+ABS(X170)),MIN(T170,W170)) -> 0.6458069848 | Z170: 4.170122362 | AA170: 0 | AB170: =$L170*(1-$C$25)*(1-EXP(-$C$24*$P170)) -> 5.758317428 | AC170: 0.8208333333 | AD170: 4.478581169 | AE170: =IF(AD170=0,0,(AD170-AD169)*(1-R170*(1-Y170/T170))+AE169) -> 1.098715849 | AZ170: 28619 | BA170: =IF($AZ$40=1,C170+CONCATENATE("1/1/",B170)-1,DATE(B170,VLOOKUP($C170,$BU$42:$BZ$77,6,0),VLOOKUP($C170,$BU$42:$BZ$77,5,0))) -> 1978-05-09 | BB170: 1978-05-09 | BC170: =IF($AZ$40=1,1,VLOOKUP($C170,$BU$42:$BW$77,2,0)) -> 1 | BD170: =IF($AZ$40=1,C170,VLOOKUP($C170,$BU$42:$BW$77,3,0)) -> 129 | BE170: 17.51649546 | BF170: =ACOS(-TAN(RADIANS($C$11))*TAN(RADIANS($BE170)))*(180/PI()) -> 82.41039594 | BG170: 10.98805279 | BH170: 0.9800331497 | BI170: =(118.11/PI())*BH170*((PI()/180)*BF170*SIN(RADIANS($C$11))*SIN(RADIANS($BE170))+COS(RADIANS($C$11))*COS(RADIANS($BE170))*SIN(RADIANS(BF170))) -> 25.97138885 | BJ170: =MAX(IF(N170-$K$10>0,-9999,N170-$K$10),IF(N170-$K$11>0,-9999,N170-$K$11),IF(N170-$K$12>0,-9999,N170-$K$12),IF(N170-$K$13>0,-9999,N170-$K$13),IF(N170-$K$14>0,-9999,N170-$K$14),IF(N170-$K$15>0,-9999,N170-$K$15),IF(N170-$K$16>0,-9999,N170-$K$16),IF(N170-$K$17>0,-9999,N170-$K$17),IF(N170-$K$18>0,-9999,N170-$K$18),IF(N170-$K$19>0,-9999,N170-$K$19),IF(N170-$K$20>0,-9999,N170-$K$20),IF(N170-$K$21>0,-9999,N170-$K$21),IF(N170-$K$22>0,-9999,N170-$K$22),IF(N170-$K$23>0,-9999,N170-$K$23),IF(N170-$K$24>0,-9999,N170-$K$24)) ->  | BK170: =MAX(IF(O170-$I$10>0,-9999,O170-$I$10),IF(O170-$I$11>0,-9999,O170-$I$11),IF(O170-$I$12>0,-9999,O170-$I$12),IF(O170-$I$13>0,-9999,O170-$I$13),IF(O170-$I$14>0,-9999,O170-$I$14),IF(O170-$I$15>0,-9999,O170-$I$15),IF(O170-$I$16>0,-9999,O170-$I$16),IF(O170-$I$17>0,-9999,O170-$I$17),IF(O170-$I$18>0,-9999,O170-$I$18),IF(O170-$I$19>0,-9999,O170-$I$19),IF(O170-$I$20>0,-9999,O170-$I$20),IF(O170-$I$21>0,-9999,O170-$I$21),IF(O170-$I$22>0,-9999,O170-$I$22),IF(O170-$I$23>0,-9999,O170-$I$23),IF(O170-$I$24>0,-9999,O170-$I$24)) -> -2 | BL170: =N170-BJ170 ->  | BM170: =O170-BK170 -> 70 | BN170: 0 | BO170: =AD170 -> 4.478581169 | BP170: =AE170 -> 1.098715849 | BQ170: 0 | BR170: 0 | BS170: 17.8 | BT170: 3.704561036
B171: 1978 | C171: 130 | D171: 26.4 | E171: 6.2 | G171: 0 | H171: 0 | J171: 16.3 | K171: 18.56873322 | L171: 9.28436661 | M171: 10.3 | N171: 1079.8 | O171: =IF(OR(O170>0,C171=$C$18),IF(BC171+O170>=MAX($I$10:$I$24),0,BC171+O170),0) -> 69 | P171: 2.5 | Q171: 1.3 | R171: 2.3 | S171: =IF(I171="",IF($C$34=1,BT171,0.011*(BI171/2.45)*0.36*(3*D171-E171)*BC171),I171) -> 3.790403559 | T171: 4.927524627 | U171: -4.927524627 | V171: -208.2635172 | W171: 12.4601433 | X171: =W171-W170 -> -0.6293551067 | Y171: 0.6293551067 | Z171: 4.29816952 | AA171: 0 | AB171: 5.827005331 | AC171: 0.8583333333 | AD171: =IF($P171=0,0,(($C$21*$AB171*$AC171*$C$22/(100*(1-$C$23)))*$BC171)+AD170) -> 4.541186313 | AE171: 1.035720139 | AZ171: =BA171*1 -> 28620 | BA171: 1978-05-10 | BB171: =IF($AZ$40=1,BA171,TRUNC(AVERAGE(BA171:BA172))) -> 1978-05-10 | BC171: 1 | BD171: 130 | BE171: 17.78227121 | BF171: 82.28681646 | BG171: =$BF171*(2/15) -> 10.97157553 | BH171: 0.9795838437 | BI171: 25.82180572 | BK171: -1 | BM171: 70 | BN171: =IF(AND(AD171>0,AD172=0),1,0) -> 0 | BO171: 4.541186313 | BP171: 1.035720139 | BQ171: =IF($C$30="Sim",IF(W170/$C$26<$C$31,$C$26-W170+T170,0),H171) -> 0 | BR171: =BQ171/$C$32 -> 0 | BS171: =0.6*D171+0.4*E171 -> 18.32 | BT171: =IF(F171="",K171,F171)*23.923*(0.000204 -0.000183 *$BT$40)*(BS171+29)*IF(D171>32,((D171-32)*0.05+1.1),IF(D171<5,0.01*EXP(0.18*(D171+20)),1.1)) -> 3.790403559
B172: 1978 | C172: 131 | D172: 28.4 | E172: 7.2 | G172: 0 | H172: 0 | J172: =AVERAGE(D172:E172) -> 17.8 | K172: 18.91453604 | L172: 9.457268022 | M172: 11.8 | N172: =IF(OR(N171>0,C172=$C$18),IF(AND(MAX($K$10:$K$24)=0,O172>0),N171+M172,IF(M172+N171>=MAX($K$10:$K$24),0,M172+N171)),0) -> 1091.6 | O172: 70 | P172: 2.5 | Q172: 1.3 | R172: 2.3 | S172: 3.991540865 | T172: =S172*Q172 -> 5.189003124 | U172: -5.189003124 | V172: =IF(U172<0,U172+V171,$C$26*LN(W172/$C$26)) -> -213.4525203 | W172: =IF(U172<0,$C$26*EXP(-ABS(V172/$C$26)),MIN(W171+U172,$C$26)) -> 11.83007459 | X172: -0.6300687133 | Y172: 0.6300687133 | Z172: =T172-Y172 -> 4.558934411 | AA172: =IF(OR(W172<$C$26,Z172>0),0,U172-X172) -> 0 | AB172: 5.935520807 | AC172: 0.9833333333 | AD172: 4.614244387 | AE172: 0.9611479245 | AZ172: 28621 | BA172: 1978-05-11 | BB172: 1978-05-11 | BC172: 1 | BD172: 131 | BE172: =23.45*SIN(RADIANS(360*(BD172-80)/365)) -> 18.04277769 | BF172: 82.16529454 | BG172: 10.95537261 | BH172: =1+0.033*COS(RADIANS((360/365)*BD172)) -> 0.9791405874 | BI172: 25.67484201 | BK172: 0 | BM172: 70 | BN172: 0 | BO172: 4.614244387 | BP172: 0.9611479245 | BQ172: 0 | BR172: 0 | BS172: 19.92 | BT172: 3.991540865
B173: 1978 | C173: 132 | D173: 28.2 | E173: 9.1 | G173: 0 | H173: 0 | J173: 18.65 | K173: 17.85241826 | L173: 8.926209129 | M173: 12.65 | N173: 1104.25 | O173: 71 | P173: 3 | Q173: 1.05 | R173: 0.5 | S173: 3.816689143 | T173: 4.0075236 | U173: -4.0075236 | V173: -217.4600439 | W173: 11.36535561 | X173: -0.4647189755 | Y173: 0.4647189755 | Z173: 3.542804624 | AA173: 0 | AB173: 6.058022444 | AC173: =MIN(1,MAX(0,IF(AND(J173>=$C$15,J173<=$C$16),1,IF(OR(J173<$C$14,J173>$C$17),0,IF(AND(J173>$C$16,J173<=$C$17),(J173-MAX($I$10:$I$24))/(C147-MAX($I$10:$I$24)),IF(AND(J173<$C$15,J173>=$C$14),(J173-$C$14)/($C$15-$C$14))))))) -> 1 | AD173: 4.690074117 | AE173: 1.003459459 | AZ173: 28622 | BA173: 1978-05-12 | BB173: 1978-05-12 | BC173: 1 | BD173: 132 | BE173: 18.29793771 | BF173: 82.04588269 | BG173: 10.93945103 | BH173: 0.9787035123 | BI173: 25.5305627 | BK173: -19 | BM173: 90 | BN173: 0 | BO173: 4.690074117 | BP173: 1.003459459 | BQ173: 0 | BR173: 0 | BS173: 20.56 | BT173: 3.816689143
B174: 1978 | C174: 133 | D174: 27 | E174: 8.6 | G174: 0 | H174: 0 | J174: 17.8 | K174: 17.42508988 | L174: 8.71254494 | M174: 11.8 | N174: 1116.05 | O174: 72 | P174: 3 | Q174: 1.05 | R174: 0.5 | S174: 3.65617548 | T174: 3.838984254 | U174: -3.838984254 | V174: -221.2990282 | W174: 10.93731027 | X174: -0.4280453465 | Y174: 0.4280453465 | Z174: 3.410938907 | AA174: 0 | AB174: 5.913013243 | AC174: 0.9833333333 | AD174: 4.762855154 | AE174: 1.043907507 | AZ174: 28623 | BA174: 1978-05-13 | BB174: 1978-05-13 | BC174: 1 | BD174: 133 | BE174: 18.54767565 | BF174: 81.92863344 | BG174: 10.92381779 | BH174: 0.9782727477 | BI174: 25.3890314 | BK174: -18 | BM174: 90 | BN174: 0 | BO174: 4.762855154 | BP174: 1.043907507 | BQ174: 0 | BR174: 0 | BS174: 19.64 | BT174: 3.65617548
B175: 1978 | C175: 134 | D175: 28.6 | E175: 9 | G175: 0 | H175: 0 | J175: 18.8 | K175: 17.88606221 | L175: 8.943031107 | M175: 12.8 | N175: 1128.85 | O175: 73 | P175: 3 | Q175: 1.05 | R175: 0.5 | S175: 3.839313246 | T175: 4.031278909 | U175: -4.031278909 | V175: -225.3303071 | W175: 10.50516578 | X175: -0.4321444849 | Y175: 0.4321444849 | Z175: 3.599134424 | AA175: 0 | AB175: 6.069439152 | AC175: 1 | AD175: 4.838827789 | AE175: 1.085965876 | AZ175: 28624 | BA175: 1978-05-14 | BB175: 1978-05-14 | BC175: 1 | BD175: 134 | BE175: 18.79191752 | BF175: 81.81359933 | BG175: 10.90847991 | BH175: 0.9778484214 | BI175: 25.25031025 | BK175: -17 | BM175: 90 | BN175: 0 | BO175: 4.838827789 | BP175: 1.085965876 | BQ175: 0 | BR175: 0 | BS175: 20.76 | BT175: 3.839313246
B176: 1978 | C176: 135 | D176: 29.7 | E176: 10.8 | G176: 0.7 | H176: 0 | J176: 20.25 | K176: 17.46926884 | L176: 8.73463442 | M176: 14.25 | N176: 1143.1 | O176: 74 | P176: 3 | Q176: 1.05 | R176: 0.5 | S176: 3.853841868 | T176: 4.046533962 | U176: -3.346533962 | V176: -228.676841 | W176: 10.15942429 | X176: -0.3457414958 | Y176: 1.045741496 | Z176: 3.000792466 | AA176: 0 | AB176: 5.928004889 | AC176: 1 | AD176: 4.913030057 | AE176: 1.132655017 | AZ176: 28625 | BA176: 1978-05-15 | BB176: 1978-05-15 | BC176: 1 | BD176: 135 | BE176: 19.03059093 | BF176: 81.70083281 | BG176: 10.89344438 | BH176: 0.9774306591 | BI176: 25.11445994 | BK176: -16 | BM176: 90 | BN176: 0 | BO176: 4.913030057 | BP176: 1.132655017 | BQ176: 0 | BR176: 0 | BS176: 22.14 | BT176: 3.853841868
B177: 1978 | C177: 136 | D177: 31.4 | E177: 16.8 | G177: 39.9 | H177: 0 | J177: 24.1 | K177: 15.27269265 | L177: 7.636346327 | M177: 18.1 | N177: 1161.2 | O177: 75 | P177: 3 | Q177: 1.05 | R177: 0.5 | S177: 3.594582142 | T177: 3.774311249 | U177: 36.12568875 | V177: -77.03498093 | W177: 46.28511304 | X177: 36.12568875 | Y177: 3.774311249 | Z177: 0 | AA177: 0 | AB177: 5.182620838 | AC177: 1 | AD177: 4.977902173 | AE177: 1.197527133 | AZ177: 28626 | BA177: 1978-05-16 | BB177: 1978-05-16 | BC177: 1 | BD177: 136 | BE177: 19.26362517 | BF177: 81.5903862 | BG177: 10.87871816 | BH177: 0.9770195846 | BI177: 24.98153968 | BK177: -15 | BM177: 90 | BN177: 0 | BO177: 4.977902173 | BP177: 1.197527133 | BQ177: 0 | BR177: 0 | BS177: 25.56 | BT177: 3.594582142
B178: 1978 | C178: 137 | D178: 28.4 | E178: 15.4 | G178: 0.1 | H178: 0 | J178: 21.9 | K178: 14.33659901 | L178: 7.168299506 | M178: 15.9 | N178: 1177.1 | O178: 76 | P178: 3 | Q178: 1.05 | R178: 0.5 | S178: 3.228308875 | T178: 3.389724318 | U178: -3.289724318 | V178: -80.32470525 | W178: 44.78723356 | X178: -1.497879482 | Y178: 1.597879482 | Z178: 1.791844837 | AA178: 0 | AB178: 4.864967723 | AC178: 1 | AD178: 5.038798148 | AE178: 1.242327974 | AZ178: 28627 | BA178: 1978-05-17 | BB178: 1978-05-17 | BC178: 1 | BD178: 137 | BE178: 19.49095119 | BF178: 81.48231161 | BG178: 10.86430822 | BH178: 0.9766153196 | BI178: 24.85160714 | BK178: -14 | BM178: 90 | BN178: 0 | BO178: 5.038798148 | BP178: 1.242327974 | BQ178: 0 | BR178: 0 | BS178: 23.2 | BT178: 3.228308875
B179: 1978 | C179: 138 | D179: 23.8 | E179: 14.9 | G179: 17.4 | H179: 0 | J179: 19.35 | K179: 11.80174812 | L179: 5.900874062 | M179: 13.35 | N179: 1190.45 | O179: 77 | P179: 3 | Q179: 1.05 | R179: 0.5 | S179: 2.506818115 | T179: 2.632159021 | U179: 14.76784098 | V179: -51.82686791 | W179: 59.55507453 | X179: 14.76784098 | Y179: 2.632159021 | Z179: 0 | AA179: 0 | AB179: 4.00479386 | AC179: 1 | AD179: 5.088927119 | AE179: 1.292456945 | AZ179: 28628 | BA179: 1978-05-18 | BB179: 1978-05-18 | BC179: 1 | BD179: 138 | BE179: 19.71250161 | BF179: 81.37666089 | BG179: 10.85022145 | BH179: 0.9762179841 | BI179: 24.72471849 | BK179: -13 | BM179: 90 | BN179: 0 | BO179: 5.088927119 | BP179: 1.292456945 | BQ179: 0 | BR179: 0 | BS179: 20.24 | BT179: 2.506818115
B180: 1978 | C180: 139 | D180: 18.6 | E180: 13.3 | G180: 0 | H180: 0 | J180: 15.95 | K180: 9.061694436 | L180: 4.530847218 | M180: 9.95 | N180: 1200.4 | O180: 78 | P180: 3 | Q180: 1.05 | R180: 0.5 | S180: 1.777822131 | T180: 1.866713237 | U180: -1.866713237 | V180: -53.69358115 | W180: 58.45366414 | X180: -1.10141039 | Y180: 1.10141039 | Z180: 0.7653028473 | AA180: 0 | AB180: 3.074986676 | AC180: 0.8291666667 | AD180: 5.120842035 | AE180: 1.317829727 | AZ180: 28629 | BA180: 1978-05-19 | BB180: 1978-05-19 | BC180: 1 | BD180: 139 | BE180: 19.9282108 | BF180: 81.27348555 | BG180: 10.83646474 | BH180: 0.9758276956 | BI180: 24.60092835 | BK180: -12 | BM180: 90 | BN180: 0 | BO180: 5.120842035 | BP180: 1.317829727 | BQ180: 0 | BR180: 0 | BS180: 16.48 | BT180: 1.777822131
B181: 1978 | C181: 140 | D181: 24.2 | E181: 10.8 | G181: 15 | H181: 0 | J181: 17.5 | K181: 14.33801187 | L181: 7.169005933 | M181: 11.5 | N181: 1211.9 | O181: 79 | P181: 3 | Q181: 1.05 | R181: 0.5 | S181: 2.958956258 | T181: 3.106904071 | U181: 11.89309593 | V181: -35.17334579 | W181: 70.34676007 | X181: 11.89309593 | Y181: 3.106904071 | Z181: 0 | AA181: 0 | AB181: 4.865447159 | AC181: 0.9583333333 | AD181: 5.179206429 | AE181: 1.376194121 | AZ181: 28630 | BA181: 1978-05-20 | BB181: 1978-05-20 | BC181: 1 | BD181: 140 | BE181: 20.13801482 | BF181: 81.17283668 | BG181: 10.82304489 | BH181: 0.97544457 | BI181: 24.48028974 | BK181: -11 | BM181: 90 | BN181: 0 | BO181: 5.179206429 | BP181: 1.376194121 | BQ181: 0 | BR181: 0 | BS181: 18.84 | BT181: 2.958956258
B182: 1978 | C182: 141 | D182: 28 | E182: 13.4 | G182: 0 | H182: 0 | J182: 20.7 | K182: 14.89445359 | L182: 7.447226795 | M182: 14.7 | N182: 1226.6 | O182: 80 | P182: 3 | Q182: 1.05 | R182: 0.5 | S182: 3.287104795 | T182: 3.451460035 | U182: -3.451460035 | V182: -38.62480582 | W182: 67.96019239 | X182: -2.386567682 | Y182: 2.386567682 | Z182: 1.064892353 | AA182: 0 | AB182: 5.054269559 | AC182: 1 | AD182: 5.242471941 | AE182: 1.429699856 | AZ182: 28631 | BA182: 1978-05-21 | BB182: 1978-05-21 | BC182: 1 | BD182: 141 | BE182: 20.34185152 | BF182: 81.07476491 | BG182: 10.80996865 | BH182: 0.9750687206 | BI182: 24.36285414 | BK182: -10 | BM182: 90 | BN182: 0 | BO182: 5.242471941 | BP182: 1.429699856 | BQ182: 0 | BR182: 0 | BS182: 22.16 | BT182: 3.287104795
B183: 1978 | C183: 142 | D183: 22.8 | E183: 10.6 | G183: 0 | H183: 0 | J183: 16.7 | K183: 13.55151488 | L183: 6.775757441 | M183: 10.7 | N183: 1237.3 | O183: 81 | P183: 3 | Q183: 1.05 | R183: 0.5 | S183: 2.742864088 | T183: 2.880007293 | U183: -2.880007293 | V183: -41.50481312 | W183: 66.03084985 | X183: -1.929342539 | Y183: 1.929342539 | Z183: 0.9506647536 | AA183: 0 | AB183: 4.598558029 | AC183: 0.8916666667 | AD183: 5.293797399 | AE183: 1.472554276 | AZ183: 28632 | BA183: 1978-05-22 | BB183: 1978-05-22 | BC183: 1 | BD183: 142 | BE183: 20.53966049 | BF183: 80.97932031 | BG183: 10.79724271 | BH183: 0.974700259 | BI183: 24.2486714 | BK183: -9 | BM183: 90 | BN183: 0 | BO183: 5.293797399 | BP183: 1.472554276 | BQ183: 0 | BR183: 0 | BS183: 17.92 | BT183: 2.742864088
B184: 1978 | C184: 143 | D184: 20.9 | E184: 9.2 | G184: 0 | H184: 0 | J184: 15.05 | K184: 13.21023108 | L184: 6.60511554 | M184: 9.05 | N184: 1246.35 | O184: 82 | P184: 3 | Q184: 1.05 | R184: 0.5 | S184: 2.576910951 | T184: 2.705756499 | U184: -2.705756499 | V184: -44.21056961 | W184: 64.26817029 | X184: -1.762679564 | Y184: 1.762679564 | Z184: 0.9430769348 | AA184: 0 | AB184: 4.482747112 | AC184: 0.7541666667 | AD184: 5.336114918 | AE184: 1.507497023 | AZ184: 28633 | BA184: 1978-05-23 | BB184: 1978-05-23 | BC184: 1 | BD184: 143 | BE184: 20.73138311 | BF184: 80.88655233 | BG184: 10.78487364 | BH184: 0.9743392941 | BI184: 24.1377898 | BK184: -8 | BM184: 90 | BN184: 0 | BO184: 5.336114918 | BP184: 1.507497023 | BQ184: 0 | BR184: 0 | BS184: 16.22 | BT184: 2.576910951
B185: 1978 | C185: 144 | D185: 21.4 | E185: 4.1 | G185: 0 | H185: 0 | J185: 12.75 | K185: 15.9919503 | L185: 7.995975149 | M185: 6.75 | N185: 1253.1 | O185: 83 | P185: 3 | Q185: 1.05 | R185: 0.5 | S185: 2.999503723 | T185: 3.149478909 | U185: -3.149478909 | V185: -47.36004852 | W185: 62.27560031 | X185: -1.99256998 | Y185: 1.99256998 | Z185: 1.15690893 | AA185: 0 | AB185: 5.426693036 | AC185: 0.5625 | AD185: 5.374323983 | AE185: 1.538688354 | AZ185: 28634 | BA185: 1978-05-24 | BB185: 1978-05-24 | BC185: 1 | BD185: 144 | BE185: 20.91696257 | BF185: 80.7965097 | BG185: 10.77286796 | BH185: 0.9739859332 | BI185: 24.03025598 | BK185: -7 | BM185: 90 | BN185: 0 | BO185: 5.374323983 | BP185: 1.538688354 | BQ185: 0 | BR185: 0 | BS185: 14.48 | BT185: 2.999503723
B186: 1978 | C186: 145 | D186: 22.8 | E186: 4.8 | G186: 0 | H186: 0 | J186: 13.8 | K186: 16.2415854 | L186: 8.120792701 | M186: 7.8 | N186: 1260.9 | O186: 84 | P186: 3 | Q186: 1.05 | R186: 0.5 | S186: 3.124796341 | T186: 3.281036158 | U186: -3.281036158 | V186: -50.64108468 | W186: 60.26547219 | X186: -2.010128123 | Y186: 2.010128123 | Z186: 1.270908035 | AA186: 0 | AB186: 5.511403972 | AC186: 0.65 | AD186: 5.419165906 | AE186: 1.574845526 | AZ186: 28635 | BA186: 1978-05-25 | BB186: 1978-05-25 | BC186: 1 | BD186: 145 | BE186: 21.09634389 | BF186: 80.70924041 | BG186: 10.76123205 | BH186: 0.9736402807 | BI186: 23.92611495 | BK186: -6 | BM186: 90 | BN186: 0 | BO186: 5.419165906 | BP186: 1.574845526 | BQ186: 0 | BR186: 0 | BS186: 15.6 | BT186: 3.124796341
B187: 1978 | C187: 146 | D187: 23.1 | E187: 5.4 | G187: 0 | H187: 0 | J187: 14.25 | K187: 16.0378815 | L187: 8.018940752 | M187: 8.25 | N187: 1269.15 | O187: 85 | P187: 3 | Q187: 1.05 | R187: 0.5 | S187: 3.114662038 | T187: 3.27039514 | U187: -3.27039514 | V187: -53.91147982 | W187: 58.32643306 | X187: -1.939039131 | Y187: 1.939039131 | Z187: 1.331356009 | AA187: 0 | AB187: 5.442279287 | AC187: 0.6875 | AD187: 5.466000003 | AE187: 1.6121467 | AZ187: 28636 | BA187: 1978-05-26 | BB187: 1978-05-26 | BC187: 1 | BD187: 146 | BE187: 21.26947391 | BF187: 80.62479154 | BG187: 10.74997221 | BH187: 0.9733024392 | BI187: 23.82541009 | BK187: -5 | BM187: 90 | BN187: 0 | BO187: 5.466000003 | BP187: 1.6121467 | BQ187: 0 | BR187: 0 | BS187: 16.02 | BT187: 3.114662038
B188: 1978 | C188: 147 | D188: 24.6 | E188: 6 | G188: 0 | H188: 0 | J188: 15.3 | K188: 16.37347799 | L188: 8.186738996 | M188: 9.3 | N188: 1278.45 | O188: 86 | P188: 3 | Q188: 1.05 | R188: 0.5 | S188: 3.260357168 | T188: 3.423375027 | U188: -3.423375027 | V188: -57.33485485 | W188: 56.36349164 | X188: -1.962941418 | Y188: 1.962941418 | Z188: 1.460433609 | AA188: 0 | AB188: 5.556160277 | AC188: 0.775 | AD188: 5.519899548 | AE188: 1.6545493 | AZ188: 28637 | BA188: 1978-05-27 | BB188: 1978-05-27 | BC188: 1 | BD188: 147 | BE188: 21.43630132 | BF188: 80.54320928 | BG188: 10.73909457 | BH188: 0.9729725087 | BI188: 23.72818314 | BK188: -4 | BM188: 90 | BN188: 0 | BO188: 5.519899548 | BP188: 1.6545493 | BQ188: 0 | BR188: 0 | BS188: 17.16 | BT188: 3.260357168
B189: 1978 | C189: 148 | D189: 24.2 | E189: 10 | G189: 0 | H189: 0 | J189: 17.1 | K189: 14.24984366 | L189: 7.124921831 | M189: 11.1 | N189: 1289.55 | O189: 87 | P189: 3 | Q189: 1.05 | R189: 0.5 | S189: 2.921090217 | T189: 3.067144728 | U189: -3.067144728 | V189: -60.40199958 | W189: 54.66098442 | X189: -1.702507216 | Y189: 1.702507216 | Z189: 1.364637511 | AA189: 0 | AB189: 4.835528246 | AC189: 0.925 | AD189: 5.575887462 | AE189: 1.69808211 | AZ189: 28638 | BA189: 1978-05-28 | BB189: 1978-05-28 | BC189: 1 | BD189: 148 | BE189: 21.5967767 | BF189: 80.4645388 | BG189: 10.72860517 | BH189: 0.9726505871 | BI189: 23.63447419 | BK189: -3 | BM189: 90 | BN189: 0 | BO189: 5.575887462 | BP189: 1.69808211 | BQ189: 0 | BR189: 0 | BS189: 18.52 | BT189: 2.921090217
B190: 1978 | C190: 149 | D190: 25.7 | E190: 9.7 | G190: 0 | H190: 0 | J190: 17.7 | K190: 15.06836589 | L190: 7.534182943 | M190: 11.7 | N190: 1301.25 | O190: 88 | P190: 3 | Q190: 1.05 | R190: 0.5 | S190: 3.139581247 | T190: 3.29656031 | U190: -3.29656031 | V190: -63.69855989 | W190: 52.8884293 | X190: -1.772555122 | Y190: 1.772555122 | Z190: 1.524005188 | AA190: 0 | AB190: 5.11328479 | AC190: 0.975 | AD190: 5.638291576 | AE190: 1.746061463 | AZ190: 28639 | BA190: 1978-05-29 | BB190: 1978-05-29 | BC190: 1 | BD190: 149 | BE190: 21.75085248 | BF190: 80.38882417 | BG190: 10.71850989 | BH190: 0.9723367697 | BI190: 23.5443217 | BK190: -2 | BM190: 90 | BN190: 0 | BO190: 5.638291576 | BP190: 1.746061463 | BQ190: 0 | BR190: 0 | BS190: 19.3 | BT190: 3.139581247
B191: 1978 | C191: 150 | D191: 22.8 | E191: 10.7 | G191: 0.9 | H191: 0 | J191: 16.75 | K191: 13.05567262 | L191: 6.527836312 | M191: 10.75 | N191: 1312 | O191: 89 | P191: 3 | Q191: 1.05 | R191: 0.5 | S191: 2.644757018 | T191: 2.776994869 | U191: -1.876994869 | V191: -65.57555475 | W191: 51.90497476 | X191: -0.9834545354 | Y191: 1.883454535 | Z191: 0.8935403337 | AA191: 0 | AB191: 4.430299394 | AC191: 0.8958333333 | AD191: 5.687970127 | AE191: 1.787747599 | AZ191: 28640 | BA191: 1978-05-30 | BB191: 1978-05-30 | BC191: 1 | BD191: 150 | BE191: 21.89848302 | BF191: 80.3161083 | BG191: 10.70881444 | BH191: 0.9720311495 | BI191: 23.45776243 | BK191: -1 | BM191: 90 | BN191: 0 | BO191: 5.687970127 | BP191: 1.787747599 | BQ191: 0 | BR191: 0 | BS191: 17.96 | BT191: 2.644757018
B192: 1978 | C192: 151 | D192: 22 | E192: 13.1 | G192: 0 | H192: 0 | J192: 17.55 | K192: 11.15741213 | L192: 5.578706066 | M192: 11.55 | N192: 1323.55 | O192: 90 | P192: 3 | Q192: 1.05 | R192: 0.5 | S192: 2.28331902 | T192: 2.397484971 | U192: -2.397484971 | V192: -67.97303972 | W192: 50.67535961 | X192: -1.229615152 | Y192: 1.229615152 | Z192: 1.167869818 | AA192: 0 | AB192: 3.786145504 | AC192: 0.9625 | AD192: 5.733585021 | AE192: 1.822252463 | AZ192: 28641 | BA192: 1978-05-31 | BB192: 1978-05-31 | BC192: 1 | BD192: 151 | BE192: 22.03962456 | BF192: 80.24643286 | BG192: 10.69952438 | BH192: 0.9717338171 | BI192: 23.37483153 | BK192: 0 | BM192: 90 | BN192: 0 | BO192: 5.733585021 | BP192: 1.822252463 | BQ192: 0 | BR192: 0 | BS192: 18.44 | BT192: 2.28331902
B193: 1978 | C193: 152 | D193: 18.6 | E193: 2.5 | G193: 0 | H193: 0 | J193: 10.55 | K193: 14.95567852 | L193: 7.477839262 | M193: 4.55 | N193: 1328.1 | O193: 91 | P193: 1.8 | Q193: 0.75 | R193: 0.2 | S193: 2.655460991 | T193: 1.991595743 | U193: -1.991595743 | V193: -69.96463547 | W193: 49.67609499 | X193: -0.9992646198 | Y193: 0.9992646198 | Z193: 0.9923311234 | AA193: 0 | AB193: 3.947368734 | AC193: 0.3791666667 | AD193: 5.752319709 | AE193: 1.839120205 | AZ193: 28642 | BA193: 1978-06-01 | BB193: 1978-06-01 | BC193: 1 | BD193: 152 | BE193: 22.17423529 | BF193: 80.17983822 | BG193: 10.6906451 | BH193: 0.9714448606 | BI193: 23.29556245 | BK193: -29 | BM193: 120 | BN193: 0 | BO193: 5.752319709 | BP193: 1.839120205 | BQ193: 0 | BR193: 0 | BS193: 12.16 | BT193: 2.655460991
B194: 1978 | C194: 153 | D194: 16.8 | E194: 1 | G194: 0 | H194: 0 | J194: 8.9 | K194: 14.76761967 | L194: 7.383809834 | M194: 2.9 | N194: 1331 | O194: 92 | P194: 1.8 | Q194: 0.75 | R194: 0.2 | S194: 2.515046861 | T194: 1.886285146 | U194: -1.886285146 | V194: -71.85092061 | W194: 48.74784444 | X194: -0.9282505518 | Y194: 0.9282505518 | Z194: 0.9580345942 | AA194: 0 | AB194: 3.897732896 | AC194: 0.2416666667 | AD194: 5.764110351 | AE194: 1.849713166 | AZ194: 28643 | BA194: 1978-06-02 | BB194: 1978-06-02 | BC194: 1 | BD194: 153 | BE194: 22.30227531 | BF194: 80.11636332 | BG194: 10.68218178 | BH194: 0.9711643656 | BI194: 23.21998702 | BK194: -28 | BM194: 120 | BN194: 0 | BO194: 5.764110351 | BP194: 1.849713166 | BQ194: 0 | BR194: 0 | BS194: 10.48 | BT194: 2.515046861
B195: 1978 | C195: 154 | D195: 20 | E195: 4 | G195: 0 | H195: 0 | J195: 12 | K195: 14.81480665 | L195: 7.407403324 | M195: 6 | N195: 1337 | O195: 93 | P195: 1.8 | Q195: 0.75 | R195: 0.2 | S195: 2.722475784 | T195: 2.041856838 | U195: -2.041856838 | V195: -73.89277745 | W195: 47.76257636 | X195: -0.9852680821 | Y195: 0.9852680821 | Z195: 1.056588756 | AA195: 0 | AB195: 3.910187323 | AC195: 0.5 | AD195: 5.78858273 | AE195: 1.871652827 | AZ195: 28644 | BA195: 1978-06-03 | BB195: 1978-06-03 | BC195: 1 | BD195: 154 | BE195: 22.42370668 | BF195: 80.05604566 | BG195: 10.67413942 | BH195: 0.9708924152 | BI195: 23.14813539 | BK195: -27 | BM195: 120 | BN195: 0 | BO195: 5.78858273 | BP195: 1.871652827 | BQ195: 0 | BR195: 0 | BS195: 13.6 | BT195: 2.722475784
B196: 1978 | C196: 155 | D196: 26.4 | E196: 4.4 | G196: 0 | H196: 0 | J196: 15.4 | K196: 17.32079436 | L196: 8.660397181 | M196: 9.4 | N196: 1346.4 | O196: 94 | P196: 1.8 | Q196: 0.75 | R196: 0.2 | S196: 3.481866863 | T196: 2.611400148 | U196: -2.611400148 | V196: -76.5041776 | W196: 46.53144916 | X196: -1.231127199 | Y196: 1.231127199 | Z196: 1.380272949 | AA196: 0 | AB196: 4.571612181 | AC196: 0.7833333333 | AD196: 5.833408176 | AE196: 1.911739715 | AZ196: 28645 | BA196: 1978-06-04 | BB196: 1978-06-04 | BC196: 1 | BD196: 155 | BE196: 22.53849343 | BF196: 79.9989212 | BG196: 10.66652283 | BH196: 0.97062909 | BI196: 23.08003604 | BK196: -26 | BM196: 120 | BN196: 0 | BO196: 5.833408176 | BP196: 1.911739715 | BQ196: 0 | BR196: 0 | BS196: 17.6 | BT196: 3.481866863
B197: 1978 | C197: 156 | D197: 23.3 | E197: 5.4 | G197: 0 | H197: 0 | J197: 14.35 | K197: 15.58012668 | L197: 7.790063339 | M197: 8.35 | N197: 1354.75 | O197: 95 | P197: 1.8 | Q197: 0.75 | R197: 0.2 | S197: 3.033828158 | T197: 2.275371118 | U197: -2.275371118 | V197: -78.77954872 | W197: 45.48464056 | X197: -1.046808601 | Y197: 1.046808601 | Z197: 1.228562517 | AA197: 0 | AB197: 4.1121842 | AC197: 0.6958333333 | AD197: 5.869224946 | AE197: 1.943688708 | AZ197: 28646 | BA197: 1978-06-05 | BB197: 1978-06-05 | BC197: 1 | BD197: 156 | BE197: 22.64660154 | BF197: 79.94502429 | BG197: 10.65933657 | BH197: 0.970374468 | BI197: 23.01571581 | BK197: -25 | BM197: 120 | BN197: 0 | BO197: 5.869224946 | BP197: 1.943688708 | BQ197: 0 | BR197: 0 | BS197: 16.14 | BT197: 3.033828158
B198: 1978 | C198: 157 | D198: 22.9 | E198: 4.8 | G198: 0 | H198: 0 | J198: 13.85 | K198: 15.62573118 | L198: 7.812865592 | M198: 7.85 | N198: 1362.6 | O198: 96 | P198: 1.8 | Q198: 0.75 | R198: 0.2 | S198: 3.010353563 | T198: 2.257765172 | U198: -2.257765172 | V198: -81.03731389 | W198: 44.46921033 | X198: -1.015430224 | Y198: 1.015430224 | Z198: 1.242334948 | AA198: 0 | AB198: 4.124220952 | AC198: 0.6541666667 | AD198: 5.90299556 | AE198: 1.973742867 | AZ198: 28647 | BA198: 1978-06-06 | BB198: 1978-06-06 | BC198: 1 | BD198: 157 | BE198: 22.74799897 | BF198: 79.8943876 | BG198: 10.65258501 | BH198: 0.9701286247 | BI198: 22.95519988 | BK198: -24 | BM198: 120 | BN198: 0 | BO198: 5.90299556 | BP198: 1.973742867 | BQ198: 0 | BR198: 0 | BS198: 15.66 | BT198: 3.010353563
B199: 1978 | C199: 158 | D199: 23 | E199: 5.6 | G199: 0 | H199: 0 | J199: 14.3 | K199: 15.2827625 | L199: 7.641381251 | M199: 8.3 | N199: 1370.9 | O199: 97 | P199: 1.8 | Q199: 0.75 | R199: 0.2 | S199: 2.969331493 | T199: 2.22699862 | U199: -2.22699862 | V199: -83.26431251 | W199: 43.48982753 | X199: -0.9793828028 | Y199: 0.9793828028 | Z199: 1.247615817 | AA199: 0 | AB199: 4.033698556 | AC199: 0.6916666667 | AD199: 5.937918349 | AE199: 2.004752746 | AZ199: 28648 | BA199: 1978-06-07 | BB199: 1978-06-07 | BC199: 1 | BD199: 158 | BE199: 22.84265567 | BF199: 79.84704208 | BG199: 10.64627228 | BH199: 0.969891633 | BI199: 22.89851177 | BK199: -23 | BM199: 120 | BN199: 0 | BO199: 5.937918349 | BP199: 2.004752746 | BQ199: 0 | BR199: 0 | BS199: 16.04 | BT199: 2.969331493
B200: 1978 | C200: 159 | D200: 28.4 | E200: 8.9 | G200: 40.6 | H200: 0 | J200: 18.65 | K200: 16.14140191 | L200: 8.070700955 | M200: 12.65 | N200: 1383.55 | O200: 98 | P200: 1.8 | Q200: 0.75 | R200: 0.2 | S200: 3.4536742 | T200: 2.59025565 | U200: 38.00974435 | V200: -20.45724187 | W200: 81.49957188 | X200: 38.00974435 | Y200: 2.59025565 | Z200: 0 | AA200: 0 | AB200: 4.260325944 | AC200: 1 | AD200: 5.991245877 | AE200: 2.058080274 | AZ200: 28649 | BA200: 1978-06-08 | BB200: 1978-06-08 | BC200: 1 | BD200: 159 | BE200: 22.93054361 | BF200: 79.80301685 | BG200: 10.64040225 | BH200: 0.969663563 | BI200: 22.84567335 | BK200: -22 | BM200: 120 | BN200: 0 | BO200: 5.991245877 | BP200: 2.058080274 | BQ200: 0 | BR200: 0 | BS200: 20.6 | BT200: 3.4536742
B201: 1978 | C201: 160 | D201: 25.5 | E201: 15.5 | G201: 0 | H201: 0 | J201: 20.5 | K201: 11.53432168 | L201: 5.767160839 | M201: 14.5 | N201: 1398.05 | O201: 99 | P201: 1.8 | Q201: 0.75 | R201: 0.2 | S201: 2.512707152 | T201: 1.884530364 | U201: -1.884530364 | V201: -22.34177224 | W201: 79.97806932 | X201: -1.52150256 | Y201: 1.52150256 | Z201: 0.3630278035 | AA201: 0 | AB201: 3.04434337 | AC201: 1 | AD201: 6.029352658 | AE201: 2.09471891 | AZ201: 28650 | BA201: 1978-06-09 | BB201: 1978-06-09 | BC201: 1 | BD201: 160 | BE201: 23.01163673 | BF201: 79.7623392 | BG201: 10.63497856 | BH201: 0.9694444824 | BI201: 22.79670485 | BK201: -21 | BM201: 120 | BN201: 0 | BO201: 6.029352658 | BP201: 2.09471891 | BQ201: 0 | BR201: 0 | BS201: 21.5 | BT201: 2.512707152
B202: 1978 | C202: 161 | D202: 24 | E202: 10.6 | G202: 0 | H202: 0 | J202: 17.3 | K202: 13.32553947 | L202: 6.662769735 | M202: 11.3 | N202: 1409.35 | O202: 100 | P202: 1.8 | Q202: 0.75 | R202: 0.2 | S202: 2.738514163 | T202: 2.053885622 | U202: -2.053885622 | V202: -24.39565786 | W202: 78.35216551 | X202: -1.625903808 | Y202: 1.625903808 | Z202: 0.427981814 | AA202: 0 | AB202: 3.517113435 | AC202: 0.9416666667 | AD202: 6.070809116 | AE202: 2.134447657 | AZ202: 28651 | BA202: 1978-06-10 | BB202: 1978-06-10 | BC202: 1 | BD202: 161 | BE202: 23.085911 | BF202: 79.72503448 | BG202: 10.6300046 | BH202: 0.969234456 | BI202: 22.75162485 | BK202: -20 | BM202: 120 | BN202: 0 | BO202: 6.070809116 | BP202: 2.134447657 | BQ202: 0 | BR202: 0 | BS202: 18.64 | BT202: 2.738514163
B203: 1978 | C203: 162 | D203: 21.4 | E203: 6.2 | G203: 0 | H203: 0 | J203: 13.8 | K203: 14.16666166 | L203: 7.08333083 | M203: 7.8 | N203: 1417.15 | O203: 101 | P203: 1.8 | Q203: 0.75 | R203: 0.2 | S203: 2.708480493 | T203: 2.03136037 | U203: -2.03136037 | V203: -26.42701823 | W203: 76.77660748 | X203: -1.57555803 | Y203: 1.57555803 | Z203: 0.4558023396 | AA203: 0 | AB203: 3.739117367 | AC203: 0.65 | AD203: 6.101231349 | AE203: 2.163504644 | AZ203: 28652 | BA203: 1978-06-11 | BB203: 1978-06-11 | BC203: 1 | BD203: 162 | BE203: 23.15334442 | BF203: 79.69112609 | BG203: 10.62548348 | BH203: 0.9690335461 | BI203: 22.71045029 | BK203: -19 | BM203: 120 | BN203: 0 | BO203: 6.101231349 | BP203: 2.163504644 | BQ203: 0 | BR203: 0 | BS203: 15.32 | BT203: 2.708480493
B204: 1978 | C204: 163 | D204: 23.8 | E204: 7.8 | G204: 0 | H204: 0 | J204: 15.8 | K204: 14.51084573 | L204: 7.255422863 | M204: 9.8 | N204: 1426.95 | O204: 102 | P204: 1.8 | Q204: 0.75 | R204: 0.2 | S204: 2.904485041 | T204: 2.178363781 | U204: -2.178363781 | V204: -28.60538201 | W204: 75.1222184 | X204: -1.654389083 | Y204: 1.654389083 | Z204: 0.523974698 | AA204: 0 | AB204: 3.829960549 | AC204: 0.8166666667 | AD204: 6.14038279 | AE204: 2.20077262 | AZ204: 28653 | BA204: 1978-06-12 | BB204: 1978-06-12 | BC204: 1 | BD204: 163 | BE204: 23.21391701 | BF204: 79.66063539 | BG204: 10.62141805 | BH204: 0.9688418122 | BI204: 22.67319645 | BK204: -18 | BM204: 120 | BN204: 0 | BO204: 6.14038279 | BP204: 2.20077262 | BQ204: 0 | BR204: 0 | BS204: 17.4 | BT204: 2.904485041
B205: 1978 | C205: 164 | D205: 24.4 | E205: 8 | G205: 0 | H205: 0 | J205: 16.2 | K205: 14.66952223 | L205: 7.334761116 | M205: 10.2 | N205: 1437.15 | O205: 103 | P205: 1.8 | Q205: 0.75 | R205: 0.2 | S205: 2.964089375 | T205: 2.223067031 | U205: -2.223067031 | V205: -30.82844904 | W205: 73.47062714 | X205: -1.651591262 | Y205: 1.651591262 | Z205: 0.5714757692 | AA205: 0 | AB205: 3.871841275 | AC205: 0.85 | AD205: 6.181577847 | AE205: 2.239849703 | AZ205: 28654 | BA205: 1978-06-13 | BB205: 1978-06-13 | BC205: 1 | BD205: 164 | BE205: 23.26761081 | BF205: 79.63358169 | BG205: 10.61781089 | BH205: 0.9686593112 | BI205: 22.639877 | BK205: -17 | BM205: 120 | BN205: 0 | BO205: 6.181577847 | BP205: 2.239849703 | BQ205: 0 | BR205: 0 | BS205: 17.84 | BT205: 2.964089375
B206: 1978 | C206: 165 | D206: 25 | E206: 7.6 | G206: 0 | H206: 0 | J206: 16.3 | K206: 15.09054237 | L206: 7.545271187 | M206: 10.3 | N206: 1447.45 | O206: 104 | P206: 1.8 | Q206: 0.75 | R206: 0.2 | S206: 3.06217919 | T206: 2.296634393 | U206: -2.296634393 | V206: -33.12508344 | W206: 71.80250411 | X206: -1.668123027 | Y206: 1.668123027 | Z206: 0.6285113656 | AA206: 0 | AB206: 3.982964401 | AC206: 0.8583333333 | AD206: 6.224370679 | AE206: 2.280300345 | AZ206: 28655 | BA206: 1978-06-14 | BB206: 1978-06-14 | BC206: 1 | BD206: 165 | BE206: 23.31440992 | BF206: 79.60998219 | BG206: 10.61466429 | BH206: 0.9684860971 | BI206: 22.61050396 | BK206: -16 | BM206: 120 | BN206: 0 | BO206: 6.224370679 | BP206: 2.280300345 | BQ206: 0 | BR206: 0 | BS206: 18.04 | BT206: 3.06217919
B207: 1978 | C207: 166 | D207: 25.6 | E207: 7.2 | G207: 0 | H207: 0 | J207: 16.4 | K207: 15.50067734 | L207: 7.750338672 | M207: 10.4 | N207: 1457.85 | O207: 105 | P207: 1.8 | Q207: 0.75 | R207: 0.2 | S207: 3.158777267 | T207: 2.36908295 | U207: -2.36908295 | V207: -35.49416639 | W207: 70.12143482 | X207: -1.681069294 | Y207: 1.681069294 | Z207: 0.6880136555 | AA207: 0 | AB207: 4.091214518 | AC207: 0.8666666667 | AD207: 6.268753302 | AE207: 2.322105106 | AZ207: 28656 | BA207: 1978-06-15 | BB207: 1978-06-15 | BC207: 1 | BD207: 166 | BE207: 23.35430046 | BF207: 79.58985197 | BG207: 10.61198026 | BH207: 0.9683222212 | BI207: 22.58508774 | BK207: -15 | BM207: 120 | BN207: 0 | BO207: 6.268753302 | BP207: 2.322105106 | BQ207: 0 | BR207: 0 | BS207: 18.24 | BT207: 3.158777267
... 697 more rows
